{"text_format":"1","workbook":"xlsx","n_sheets":2,"sheets":["Koyun","Rapor"],"not_rendered":{"charts":0,"images":0,"macros":1,"external_links":0,"defined_names":92,"comments":1,"pivot_tables":0},"unopened":[],"bounds":{"document_bytes":16777216,"sheet_cells":100000,"rows_first":2000,"rows_last":500,"rows_between":2000,"halvings":0,"cell_chars":16384,"cell_head_chars":4096},"cells_cut":0,"cells_raw":0,"read":"whole","date_system":"1900"}

{"sheet":"Koyun","index":0,"n_rows":51,"n_cols":21,"rows_kept":51,"cut":false,"hidden":false,"merged":[[2,1,3,1],[2,4,2,5],[18,7,18,8],[49,18,49,19],[40,18,40,20],[39,18,39,20],[19,7,19,8],[2,12,2,13],[0,6,0,7],[50,15,52,16],[50,18,50,19],[0,15,1,20],[2,15,2,20],[24,6,24,8],[3,12,3,13]]}
[null,"KOYUNLAR İÇİN EN DÜŞÜK MALİYETLİ",null,null,null,null,"Coşkun & İnal & İnal",null,null,{"$f":"TODAY()","v":"2025-08-18"},null,null,null,null,null,"Selçuk Üniversitesi Veteriner Fakültesi Rasyon Hazırlama Programları"]
[null,"Rasyon Hazırlama Programı"]
[null,"VERİLECEK YEMLER","MİKTAR","Fiyat, ₺","Yemler için",null,"BESİN MADDESİ","İHTİYAÇLAR","RASYON","SONUÇ","KM'de %",null,"Gerekli Kesif Yem Miktarı",null,null,"F.İNAL - Ş.İNAL - B.COŞKUN"]
[null,null,{"$f":"SUM(Rapor!Y5:Y30)","v":1.138045070576829},{"$f":"(C5*D5+C6*D6+C7*D7+C8*D8+C9*D9+C10*D10+C11*D11+C12*D12+C13*D13+C14*D14+C15*D15+C16*D16+C17*D17+C18*D18+C19*D19+C20*D20+C21*D21+C22*D22+C23*D23+C24*D24+C25*D25+C26*D26+C27*D27+C28*D28+C29*D29+C30*D30)","v":4.238181387056172},"En az","En çok",{"$f":"Rapor!G4","v":"KM,kg"},1.0041500000000001,{"$f":"Rapor!I4","v":1.0242330003859561},{"$f":"Rapor!J4","v":"FAZLA"},null,null,"ve KM'deki Bileşimi"]
[1,"Arpa Samanı",0.85612028090319736,1.5,0,1,{"$f":"Rapor!G5","v":"ME,Mcal"},1.92265,{"$f":"Rapor!I5","v":1.9053461500000797},{"$f":"Rapor!J5","v":"TAMAM"},{"$f":"Rapor!K5","v":"1860 kcal/kg"},null,"Miktar,kg",{"$f":"Rapor!O5","v":-2.2565168972984277E-2}]
[1,"Yonca Kuru Otu, Olgun",0,8.5,0,2,{"$f":"Rapor!G6","v":"Ham Protein,g"},79.145999999999987,{"$f":"Rapor!I6","v":78.43368605030291},{"$f":"Rapor!J6","v":"TAMAM"},{"$f":"Rapor!K6","v":"7,7"},null,"HP,%",{"$f":"Rapor!O6","v":-3.5468502514952691}]
[4,"Arpa, Tane",0.15491852772541792,8.5,0,0.5,{"$f":"Rapor!G7","v":"Metabolik Protein"},null,{"$f":"Rapor!I7","v":54.881067150301377},null,{"$f":"Rapor!K7","v":5.3582599984203636},null,"ME,Mcal",{"$f":"Rapor!O7","v":-0.86161677375761225}]
[6,"PAMUK TOHUMU KÜSPESİ, SOLVENT, % 25",0.12369826873989954,13,0,0.2,{"$f":"Rapor!G8","v":"Rumende Yıkılabilir Protein"},null,{"$f":"Rapor!I8","v":60.628794382005836},null,{"$f":"Rapor!K8","v":5.9194337967200257},null,"Ca,%",{"$f":"Rapor!O8","v":4.8490065265395073}]
[7,"Dikalsiyum Fosfat ",0,35,0,7.0000000000000007E-2,{"$f":"Rapor!G9","v":"Rumende Yıkımlanmayan Protein"},null,{"$f":"Rapor!I9","v":49.000281487500054},null,{"$f":"Rapor!K9","v":4.7840951686809099},null,"P,%",{"$f":"Rapor!O9","v":3.6902298246843563}]
[7,"Mermer Tozu",1.3079932083144318E-3,2,0,0.1,{"$f":"Rapor!G10","v":"Ca,g"},2.3734999999999999,{"$f":"Rapor!I10","v":3.3473259994399611},{"$f":"Rapor!J10","v":"FAZLA"},{"$f":"Rapor!K10","v":"0,33"},null,null,null,null,"Rasyonu hazırlanan hayvanın"]
[7,"Tuz",1E-3,1.5,1E-3,5.0000000000000001E-3,{"$f":"Rapor!G11","v":"P,g"},1.8063,{"$f":"Rapor!I11","v":2.5474088699340229},{"$f":"Rapor!J11","v":"FAZLA"},{"$f":"Rapor!K11","v":"0,25"},null,null,null,null,"Tipi :",{"$f":"IF(KoyunTipi=\"\",\"\",KoyunTipi)","v":"Koyun"}]
[7,"Vitamin-Mineral Karması",1.0000000000000002E-3,25,1E-3,4.0000000000000001E-3,{"$f":"Rapor!G12","v":"Ca/P Oranı"},1.3140120688700658,{"$f":"Rapor!I12","v":1.3140120688700656},{"$f":"Rapor!J12","v":"TAMAM"},{"$f":"Rapor!K12","v":0},null,null,null,null,"Fizyolojik Durumu :",{"$f":"IF(KoyunFizyo=\"\",\"\",KoyunFizyo)","v":"Flaşing"}]
[null,null,0,null,0,0,{"$f":"Rapor!G13","v":"Kaba Yem,%"},null,null,null,{"$f":"Rapor!K13","v":75.227829265658414},null,null,null,null,"Yavru Sayısı :",{"$f":"IF(KoyunYavruSay=\"\",\"\",KoyunYavruSay)","v":""}]
[null,null,0,null,0,0,{"$f":"Rapor!G14","v":"HS,%"},null,null,null,{"$f":"Rapor!K14","v":33.697493219517654},null,null,null,null,"Yaşı :",{"$f":"IF(KoyunYas=\"\",\"\",KoyunYas)","v":""}]
[null,null,0,null,0,0,{"$f":"Rapor!G15","v":"NDF,%"},null,null,null,{"$f":"Rapor!K15","v":64.117568074845309},null,null,null,null,"Bulunduğu Ortam :",{"$f":"IF(KoyunOrtam=\"\",\"\",KoyunOrtam)","v":""}]
[null,null,0,null,0,0,null,null,null,null,null,null,null,null,null,"Canlı Ağırlık :",{"$f":"IF(CA=\"\",\"\",CONCATENATE(CA,\" kg\"))","v":"50 kg"}]
[null,null,0,null,0,0,null,null,null,null,null,null,null,null,null,"Canlı Ağırlık Artışı :",{"$f":"IF(GCAA=\"\",\"\",CONCATENATE(GCAA,\" g/gün\"))","v":""}]
[null,null,0,null,0,0,"KOYUNUN  "]
[null,null,0,null,0,0,"Tipi :","Koyun"]
[null,null,0,null,0,0,"Fizyolojik Durumu :","Flaşing"]
[null,null,0,null,0,0,"Yavru Sayısı :","",null,null,null,null,null,null,null,null,"GÜNLÜK","BESİN "]
[null,null,0,null,0,0,"Yaşı :","",null,null,null,null,null,null,null,"VERİLECEK YEMLER","MİKTAR,kg","MADDELERİ","İHTİYAÇ","RASYON","SONUÇ"]
[null,null,0,null,0,0,"Canlı Ağırlık :",50,"kg",null,null,null,null,null,null,"Buğday Samanı",0.27684779728077713,"KM, kg",1.59375,1.6256249978161899,"TAMAM"]
[null,null,0,null,0,0,"Canlı Ağırlık Artışı :",null,"g/gün",null,null,null,null,null,null,"Mısır Sapları",1,"ME, Mcal",3.7156499999999997,3.6822091501898946,"TAMAM"]
[null,null,0,null,0,0,null,null,null,null,null,null,null,null,null,"Arpa, Tane",0.5,"Ham Protein,g",135.67015000000001,134.44911865,"TAMAM"]
[null,null,0,null,0,0,null,null,null,null,null,null,null,null,null,"Mısır, Tane",1.3261343271281988E-2,"Metabolik Protein,g",null,94.082887059468817]
[null,null,0,null,0,0,null,null,null,null,null,null,null,null,null,"PAMUK TOHUMU KÜSPESİ, SOLVENT, % 28",0.11536994700077979,"Rumende Yıkılabilir Protein,g",null,90.265597584416923]
[null,null,0,null,0,0,null,null,null,null,null,null,null,null,null,"Mermer Tozu",1.1262110654331543E-2,"Rumende Yıkımlanmayan Protein,g",null,53.478909645236335]
[null,null,0,null,0,0,null,null,null,null,null,null,null,null,null,"Vitamin-Mineral Karması",1E-3,"Ca, g",6.1622250000000012,7.7870363464127355,"FAZLA"]
[null,null,0,null,0,0,null,null,null,null,null,null,null,null,null,null,null,"P, g",3.7068999999999996,4.6843088411328093,"FAZLA"]
[null,null,null,null,null,null,null,null,null,null,null,null,null,null,null,null,null,"Ca/P Oranı",1.6623661280315092,1.6623661271082184,"TAMAM"]
[null,null,null,null,null,null,null,null,null,null,null,null,null,null,null,null,null,"Kaba Yem,%"]
[null,null,null,null,null,null,null,null,null,null,null,null,null,null,null,null,null,"HS,%"]
[null,null,null,null,null,null,null,null,null,null,null,null,null,null,null,null,null,"NDF,%"]
[]
[]
[]
[]
[]
[null,null,null,null,null,null,null,null,null,null,null,null,null,null,null,null,null,null,"Hazırlayan:"]
[null,null,null,null,null,null,null,null,null,null,null,null,null,null,null,null,null,null,"saim"]
[]
[]
[]
[]
[]
[]
[]
[null,null,null,null,null,null,null,null,null,null,null,null,null,null,null,"TOPLAM =",1.9177411982071704,"kg"]
[null,null,null,null,null,null,null,null,null,null,null,null,null,null,null,"Kurum:",null,null,"Tarih:"]
[null,null,null,null,null,null,null,null,null,null,null,null,null,null,null,"S.Ü.VET.FAK.ZOO.ABD",null,null,"20.03.2019"]

{"sheet":"Rapor","index":1,"n_rows":533,"n_cols":108,"rows_kept":533,"cut":false,"hidden":false,"merged":[[26,9,26,10],[25,9,25,10],[2,1,3,1],[3,12,3,14],[2,12,2,14],[21,11,21,13],[23,9,23,10],[24,9,24,10],[24,11,24,12],[1,23,2,23],[0,6,0,7],[2,4,2,5],[20,9,20,13],[23,11,23,13],[22,11,22,13],[21,9,21,10],[22,9,22,10]]}
[null,"Koyunlar İçin",null,null,null,null,"Coşkun & İnal & İnal",null,null,null,null,null,null,null,null,null,null,null,null,"KOYUNUN TANIMLANMASI",null,null,null,null,null,2,3,4,5,6,7,8,9,10,11,null,null,null,null,null,null,null,null,null,null,null,null,null,null,null,null,"Seçilen Yemler",null,null,null,null,null,null,null,null,null,null,null,null,null,null,null,null,null,null,null,null,null,null,null,null,null,null,null,null,null,null,null,null,null,null,null,null,null,null,null,null,null,null,null,null,null,null,null,null,null,null,null,null,null,null,null,"Seçilen"]
[null,"Rasyon Hazırlama Programı",null,null,null,null,null,null,null,null,null,null,null,null,null,null,null,null,null,{"$f":"CONCATENATE(KoyunTipi,\", \",KoyunFizyo,\", \",KoyunYavruSay,\", \",KoyunYas)","v":"Koyun, Flaşing, , "},null,null,null,"VERİLECEK YEMLER",{"$f":"SUM(Y5:Y30)","v":1.138045070576829},null,null,null,null,null,null,null,null,null,null,null,null,null,null,null,null,null,null,null,null,null,null,null,null,null,null,"Toplu yem seçimi için kullanılır","HAYVANIN ÖZELLİĞİ","KM","ME","HP(20)","HP(40)","HP(60)","MP","DIP","Ca","P","SütVerimi","VitE,IU","Na,g","Cl,g","K,g","Mg,g","S,g","Co,mg","Cu,mg","I,mg","Fe,mg","Mn,mg","Se,mg","Zn,mg",null,"KURU KABA YEMLER","KM,%","ME, Mcal/kg","HP,%","MP,%","DIP,%","RUP,%","Ca,%","P,%","HS,%","NDF,%","TSBM,%","SE, Mcal/kg","NEyp, Mcal/kg","NEb, Mcal/kg","NEl, Mcal/kg","ADF,%","eNDF,%","HY,%","HK,%","K,%","Cl,%","S,%","Zn,ppm","VitA, RE/kg","VitE,ppm","Fiyat,TL","En az","En çok",null,"Yemler"]
[null,"VERİLECEK YEMLER","MİKTAR","Fiyat, ₺","Yemler için",null,"BESİN MAD.","İHTİYAÇLAR","RASYON","SONUÇ","KM'de %",null,"Gerekli Kesif Yem Miktarı",null,null,null,null,null,null,null,null,null,null,null,"Miktar","KM","ME","HP","MP","DIP","RUP","Ca","P","HS","NDF",null,null,null,null,null,null,null,null,null,null,null,null,null,null,null,null,null,"Koyun, Yaşama payı, , ",{"$f":"-0.0000185*CA^2+0.0154*CA+0.1864","v":0.91015000000000001},{"$f":" -0.0000333*CA^2 + 0.029*CA + 0.3816","v":1.7483500000000001},{"$f":" -0.00087*CA^2+ 1.0755*CA + 17.521","v":69.120999999999995},{"$f":" -0.0009*CA^2 + 1.0476*CA + 15.95","v":66.08},{"$f":" -0.00083*CA^2+ 0.9929*CA + 15.553","v":63.123000000000005},{"$f":" -0.0004*CA^2 + 0.6918*CA + 13.228","v":46.817999999999998},{"$f":" -0.001418*CA^2 + 1.0841*CA + 12.091","v":62.751000000000005},{"$f":" -0.00002*CA^2 + 0.0224*CA + 0.932","v":2.0019999999999998},{"$f":" -0.00003*CA^2 + 0.0276*CA + 0.2274","v":1.5324},null,null,null,null,null,null,null,null,null,null,null,null,null,null,1,"Adi Japon Üçgülü (Lespedeza) Kuru Otu",92,2,14,9.8000000000000007,9.6,8.4,1.1000000000000001,0.22,30,null,54,2.4,1.2,0.4,1.2,null,null,3,7,1,null,0.19,29,8,null,8,0,1]
[null,null,{"$f":"SUM(Y5:Y30)","v":1.138045070576829},{"$f":"Koyun!D4","v":4.238181387056172},"En az","En çok","KM,kg",{"$f":"Koyun!H4","v":1.0041500000000001},{"$f":"Z32","v":1.0242330003859561},{"$f":"IF(OR(H4=\"\",H4=0)=TRUE,\" \",IF(I4>(H4*1.02),\"FAZLA\",IF(I4<(H4*0.99),\"EKSİK\",\"TAMAM\")))","v":"FAZLA"},null,null,"ve KM'deki Bileşimi",null,null,null,null,null,null,"Yem Grupları",null,null,null,null,null,null,null,null,null,null,null,null,null,null,null,null,null,null,null,null,null,null,null,null,null,null,null,null,null,null,null,"KİREÇTAŞI","Koyun, Flaşing, , ",{"$f":" -0.0000195*CA^2+ 0.0166*CA + 0.2229","v":1.0041500000000001},{"$f":" -0.0000403*CA^2 + 0.0324*CA + 0.4034","v":1.92265},{"$f":" -0.00125*CA^2+ 1.2988*CA + 19.151","v":80.965999999999994},{"$f":" -0.00105*CA^2 + 1.2172*CA + 19.091","v":77.325999999999993},{"$f":" -0.001*CA^2+ 1.1749*CA + 17.831","v":74.076000000000008},{"$f":" -0.00084*CA^2 + 0.8802*CA + 12.461","v":54.370999999999995},{"$f":" -0.001445*CA^2 + 1.1706*CA + 14.443","v":69.360500000000002},{"$f":" -0.000027*CA^2 + 0.0284*CA + 1.021","v":2.3734999999999999},{"$f":" -0.000035*CA^2 + 0.0332*CA + 0.2338","v":1.8063},null,null,null,null,null,null,null,null,null,null,null,null,null,null,2,"Arpa Kuru Otu",90,2.1,9,6.3,5.0999999999999996,null,0.3,0.28000000000000003,28,65,57,2.5,1.3,0.6,1.3,37,98,2.1,8,1.6,null,0.19,25,10.6,null,5,0,1]
[{"$f":"Koyun!A5","v":1},{"$f":"Koyun!B5","v":"Arpa Samanı"},{"$f":"Koyun!C5","v":0.85612028090319736},{"$f":"Koyun!D5","v":1.5},{"$f":"Koyun!E5","v":0},{"$f":"Koyun!F5","v":1},"ME,Mcal",{"$f":"Koyun!H5","v":1.92265},{"$f":"AA32","v":1.9053461500000797},{"$f":"IF(OR(H5=\"\",H5=0)=TRUE,\"     \",IF(I5>(H5*1.01),\"FAZLA\",IF(I5<(H5*0.99),\"EKSİK\",\"TAMAM\")))","v":"TAMAM"},{"$f":"IF(I$5>0,CONCATENATE(TEXT((I5*1000)/I$4,\"0\"),\" kcal/kg\"),\"\")","v":"1860 kcal/kg"},null,"Miktar,kg",null,{"$f":"(H23-I4)/0.89","v":-2.2565168972984277E-2},null,null,null,null,"Kuru Kaba Yemler",null,null,null,{"$f":"Koyun!B5","v":"Arpa Samanı"},{"$f":"IF(X5=0,0,C5)","v":0.85612028090319736},{"$f":"IF($X5=0,0,VLOOKUP($B5,$BZ$3:$DB$533,Z$1,FALSE))","v":90},1.6,4,2.8,0.6,2.8,0.33,0.08,42,78,null,null,null,null,null,null,null,null,null,null,null,null,null,null,null,null,"VİTAMİN-MİNERAL KARMASI","Koyun, Erken Gebe, Tek kuzu, ",{"$f":"-0.0000239*CA^2+0.0183*CA+0.2998","v":1.1550500000000001},{"$f":" -0.0000457*CA^2 + 0.0351*CA + 0.568","v":2.2087499999999998},{"$f":" -0.0016*CA^2 + 1.4219*CA + 28.279","v":95.373999999999995},{"$f":" -0.0015*CA^2 + 1.3478*CA + 27.365","v":91.004999999999995},{"$f":" -0.00156*CA^2 + 1.3182*CA + 25.014","v":87.024000000000001},{"$f":" -0.00118*CA^2+ 0.9776*CA + 18.137","v":64.067000000000007},{"$f":" -0.001697*CA^2 + 1.2681*CA + 20.521","v":79.683500000000009},{"$f":" -0.00006*CA^2 + 0.0434*CA + 1.7799","v":3.7999000000000001},{"$f":" -0.00006*CA^2 + 0.0434*CA + 0.7799","v":2.7999000000000001},null,null,null,null,null,null,null,null,null,null,null,null,null,null,3,"Arpa Samanı",90,1.6,4,2.8,0.6,2.8,0.33,0.08,42,78,4.3,1.9,1,0,0.9,52,100,1.9,7,2.1,0.67,0.16,7,400,null,1.5,0,1]
[{"$f":"Koyun!A6","v":1},{"$f":"Koyun!B6","v":"Yonca Kuru Otu, Olgun"},{"$f":"Koyun!C6","v":0},{"$f":"Koyun!D6","v":8.5},{"$f":"Koyun!E6","v":0},{"$f":"Koyun!F6","v":2},"Ham Protein,g",{"$f":"Koyun!H6","v":79.145999999999987},{"$f":"AB32","v":78.43368605030291},{"$f":"IF(OR(H6=\"\",H6=0)=TRUE,\"     \",IF(I6>(H6*1.01),\"FAZLA\",IF(I6<(H6*0.99),\"EKSİK\",\"TAMAM\")))","v":"TAMAM"},{"$f":"IF(I6>0,CONCATENATE(TEXT(I6/(I$4*1000)*100,\"0,0\")),\"\")","v":"7,7"},null,"HP,%",null,{"$f":"((H25-I6)/10)/($H23-$I4)","v":-3.5468502514952691},null,null,null,null,"Sulu Kaba Yemler",null,null,null,{"$f":"Koyun!B6","v":"Yonca Kuru Otu, Olgun"},0,88,1.8,13,9.1,8.6999999999999993,3.9,1.18,0.19,38,59,null,null,null,null,null,null,null,null,null,null,null,null,null,null,null,null,"TUZ","Koyun, Erken Gebe, İkiz kuzu, ",{"$f":"-0.00003*CA^2+0.021*CA+0.3504","v":1.3254000000000001},{"$f":" -0.000054*CA^2 + 0.03965*CA + 0.6923","v":2.5398000000000001},{"$f":" -0.002*CA^2 + 1.6722*CA + 35.47","v":114.08},{"$f":" -0.00205*CA^2 + 1.6257*CA + 32.758","v":108.91800000000001},{"$f":" -0.0018*CA^2+ 1.5236*CA + 32.525","v":104.20500000000001},{"$f":" -0.00138*CA^2 + 1.1279*CA + 23.913","v":76.85799999999999},{"$f":" -0.002073*CA^2 + 1.4551*CA + 23.708","v":91.280500000000004},{"$f":" -0.000117*CA^2 + 0.0677*CA + 2.2918","v":5.3842999999999996},{"$f":" -0.000099*CA^2 + 0.0587*CA + 1.0151","v":3.7025999999999999},null,null,null,null,null,null,null,null,null,null,null,null,null,null,4,"Badem Kabukları",89,2.1,5,3.5,1.5,3,0.25,0.1,16,35,59,2.6,1.3,0.6,1.3,27,100,3.3,7,2,0.03,7.0000000000000007E-2,20,null,null,3,0,1]
[{"$f":"Koyun!A7","v":4},{"$f":"Koyun!B7","v":"Arpa, Tane"},{"$f":"Koyun!C7","v":0.15491852772541792},{"$f":"Koyun!D7","v":8.5},{"$f":"Koyun!E7","v":0},{"$f":"Koyun!F7","v":0.5},"Metabolik Protein",null,{"$f":"AC32","v":54.881067150301377},null,{"$f":"AC32/Z32/10","v":5.3582599984203636},null,"ME,Mcal",null,{"$f":"(H24-I5)/($H23-$I4)","v":-0.86161677375761225},null,null,null,null,"Silajlar",null,null,null,{"$f":"Koyun!B7","v":"Arpa, Tane"},0.15491852772541792,89,3,12,8.4,7.8,3.4,0.06,0.38,5,20,null,null,null,null,null,null,null,null,null,null,null,null,null,null,null,null,null,"Koyun, Erken Gebe, Üçüz kuzu, ",{"$f":" - 0.00002*CA^2 + 0.0207*CA + 0.4929","v":1.4779},{"$f":" -0.000055*CA^2 + 0.0416*CA + 0.8406","v":2.7831000000000001},{"$f":" -0.00158*CA^2+ 1.6866*CA + 48.693","v":129.07299999999998},{"$f":" -0.0036*CA^2+ 2.0343*CA + 26.457","v":119.172},{"$f":" -0.00325*CA^2 + 1.9149*CA + 26.21","v":113.83000000000001},{"$f":" -0.00249*CA^2 + 1.4299*CA + 18.575","v":83.845000000000013},{"$f":" -0.00202*CA^2+ 1.5084*CA + 29.795","v":100.16500000000001},{"$f":" -0.000187*CA^2 + 0.091*CA + 2.2479","v":6.3303999999999991},{"$f":" -0.000174*CA^2 + 0.079*CA + 0.6644","v":4.1794000000000002},null,null,null,null,null,null,null,null,null,null,null,null,null,null,5,"Beyaz Üçgül (Clover Ladino) Kuru Otu",90,2.2000000000000002,21,14.7,15.9,5.3,1.35,0.32,22,36,61,2.7,1.4,0.7,1.3,32,92,2,9,2.4,0.3,0.2,17,16.600000000000001,null,12,0,1]
[{"$f":"Koyun!A8","v":6},{"$f":"Koyun!B8","v":"PAMUK TOHUMU KÜSPESİ, SOLVENT, % 25"},{"$f":"Koyun!C8","v":0.12369826873989954},{"$f":"Koyun!D8","v":13},{"$f":"Koyun!E8","v":0},{"$f":"Koyun!F8","v":0.2},"Rumende Yıkılabilir Protein",null,{"$f":"AD32","v":60.628794382005836},null,{"$f":"AD32/Z32/10","v":5.9194337967200257},null,"Ca,%",null,{"$f":"((H29-I10)/10)/($H23-$I4)","v":4.8490065265395073},null,null,null,null,"Enerji Kaynakları",null,null,null,{"$f":"Koyun!B8","v":"PAMUK TOHUMU KÜSPESİ, SOLVENT, % 25"},0.12369826873989954,91,2.2999999999999998,27.6,19.3,40.200000000000003,20.2,0.22,1.25,13,25,null,null,null,null,null,null,null,null,null,null,null,null,null,null,null,null,null,"Koyun, Geç Gebe, Tek kuzu, ",{"$f":"- 0.0000383*CA^2 + 0.0235*CA + 0.3456","v":1.4248500000000002},{"$f":" -0.00006*CA^2+ 0.04193*CA + 0.8059","v":2.7524000000000002},{"$f":" -0.00217*CA^2 + 1.7701*CA + 42.733","v":125.81299999999999},{"$f":" -0.0037*CA^2 + 2.0319*CA + 24.169","v":116.51399999999998},{"$f":" -0.0035*CA^2 + 1.9288*CA + 23.927","v":111.61699999999999},{"$f":" -0.0024*CA^2 + 1.3908*CA + 18.877","v":82.417000000000002},{"$f":" -0.00193*CA^2 + 1.4747*CA + 30.475","v":99.384999999999991},{"$f":" -0.000165*CA^2 + 0.0752*CA + 1.6667","v":5.0142000000000007},{"$f":" -0.000165*CA^2+ 0.0704*CA + 0.2411","v":3.3485999999999998},null,null,null,null,null,null,null,null,null,null,null,null,null,null,6,"Bezelye Kuru Otu",89,2.2000000000000002,10,7,6,0,1.2,0.21,32,62,60,2.6,1.3,0.7,1.3,52,92,1.8,7,1.2,0,0.2,20,0,0,10,0,1]
[{"$f":"Koyun!A9","v":7},{"$f":"Koyun!B9","v":"Dikalsiyum Fosfat "},{"$f":"Koyun!C9","v":0},{"$f":"Koyun!D9","v":35},{"$f":"Koyun!E9","v":0},{"$f":"Koyun!F9","v":7.0000000000000007E-2},"Rumende Yıkımlanmayan Protein",null,{"$f":"AE32","v":49.000281487500054},null,{"$f":"AE32/Z32/10","v":4.7840951686809099},null,"P,%",null,{"$f":"((H30-I11)/10)/($H23-$I4)","v":3.6902298246843563},null,null,null,null,"Yan Ürünler",null,null,null,{"$f":"Koyun!B9","v":"Dikalsiyum Fosfat "},0,96,0,0,0,3,0,22,18.649999999999999,0,0,null,null,null,null,null,null,null,null,null,null,null,null,null,null,null,null,null,"Koyun, Geç Gebe, İkiz kuzu, ",{"$f":" - 0.0000076*CA^2 + 0.0197*CA + 0.4773","v":1.4433},{"$f":" -0.000075*CA^2+ 0.0512*CA + 1.1335","v":3.5060000000000002},{"$f":" -0.0041*CA^2 + 2.6804*CA + 27.53","v":151.30000000000001},{"$f":" -0.0035*CA^2 + 2.4892*CA + 28.991","v":144.70099999999999},{"$f":" -0.00368*CA^2 + 2.4414*CA + 25.1","v":137.97},{"$f":" -0.002575*CA^2+ 1.7752*CA + 19.21","v":101.5325},{"$f":" -0.00287*CA^2 + 1.8717*CA + 39.895","v":126.30500000000001},{"$f":" -0.000198*CA^2 + 0.1092*CA + 2.2438","v":7.2088000000000001},{"$f":" -0.000152*CA^2 + 0.0896*CA + 0.0224","v":4.1223999999999998},null,null,null,null,null,null,null,null,null,null,null,null,null,null,7,"Bezelye Samanı",89,1.8,7,4.9000000000000004,3.3,null,0.6,0.15,42,72,50,2.2000000000000002,1.1000000000000001,0.3,1.1000000000000001,49,98,1.3,7,1.1000000000000001,null,0.15,null,null,null,3,0,1]
[{"$f":"Koyun!A10","v":7},{"$f":"Koyun!B10","v":"Mermer Tozu"},{"$f":"Koyun!C10","v":1.3079932083144318E-3},{"$f":"Koyun!D10","v":2},{"$f":"Koyun!E10","v":0},{"$f":"Koyun!F10","v":0.1},"Ca,g",{"$f":"Koyun!H10","v":2.3734999999999999},{"$f":"AF32","v":3.3473259994399611},{"$f":"IF(OR(H10=\"\",H10=0)=TRUE,\"     \",IF(I10>(H10*1.01),\"FAZLA\",IF(I10<(H10*0.99),\"EKSİK\",\"TAMAM\")))","v":"FAZLA"},{"$f":"IF(I10>0,CONCATENATE(TEXT(I10/(I$4*1000)*100,\"0,00\")),\"\")","v":"0,33"},null,null,null,null,null,null,null,null,"Protein Kaynakları",null,null,null,{"$f":"Koyun!B10","v":"Mermer Tozu"},1.3079932083144318E-3,98,0,0,0,0,0,37,0,0,0,null,null,null,null,null,null,null,null,null,null,null,null,null,null,null,null,null,"Koyun, Geç Gebe, Üçüz kuzu, ",{"$f":" - 0.0000161*CA^2 + 0.0233*CA + 0.3589","v":1.4836500000000001},{"$f":" -0.000086*CA^2 + 0.057*CA + 1.3899","v":4.0249000000000006},{"$f":" -0.0067*CA^2 + 3.0971*CA + 35.342","v":173.447},{"$f":" 0.0005*CA^2 + 1.9335*CA + 67.854","v":165.779},{"$f":" 0.0002*CA^2 + 1.8986*CA + 62.922","v":158.352},{"$f":" 0.00036*CA^2 + 1.3673*CA + 47.274","v":116.539},{"$f":" -0.00276*CA^2 + 2.0077*CA + 51.018","v":144.50299999999999},{"$f":" -0.000058*CA^2 + 0.0969*CA + 4.0132","v":8.7132000000000005},{"$f":" 0.000078*CA^2 + 0.0529*CA + 1.9347","v":4.7747000000000002},null,null,null,null,null,null,null,null,null,null,null,null,null,null,8,"Brom Otu (Bromegrass) Kuru Otu ",89,2,10,7,6,33,0.4,0.23,35,66,55,2.4,1.2,0.5,1.2,41,98,2.2999999999999998,9,1.9,0.4,0.19,19,6.8,null,8,0,1]
[{"$f":"Koyun!A11","v":7},{"$f":"Koyun!B11","v":"Tuz"},{"$f":"Koyun!C11","v":1E-3},{"$f":"Koyun!D11","v":1.5},{"$f":"Koyun!E11","v":1E-3},{"$f":"Koyun!F11","v":5.0000000000000001E-3},"P,g",{"$f":"Koyun!H11","v":1.8063},{"$f":"AG32","v":2.5474088699340229},{"$f":"IF(OR(H11=\"\",H11=0)=TRUE,\"     \",IF(I11>(H11*1.01),\"FAZLA\",IF(I11<(H11*0.99),\"EKSİK\",\"TAMAM\")))","v":"FAZLA"},{"$f":"IF(I11>0,CONCATENATE(TEXT(I11/(I$4*1000)*100,\"0,00\")),\"\")","v":"0,25"},null,null,null,null,null,null,null,null,"Vitamin-Mineral ve Katkı Maddeleri",null,null,null,{"$f":"Koyun!B11","v":"Tuz"},1E-3,100,0,0,0,0,0,0,0,0,0,null,null,null,null,null,null,null,null,null,null,null,null,null,null,null,null,null,"Koyun, Erken laktasyon, Tek kuzu, 1,5 yaş üzeri",{"$f":" - 0.0000646*CA^2 + 0.0296*CA + 0.1783","v":1.4967999999999999},{"$f":" -0.000061*CA^2 + 0.044*CA + 0.9448","v":2.9922999999999997},{"$f":" -0.006*CA^2 + 3.0108*CA + 44.503","v":180.04300000000001},{"$f":" -0.006*CA^2 + 2.9105*CA + 42.575","v":173.10000000000002},{"$f":" -0.0055*CA^2 + 2.7405*CA + 42.05","v":165.32499999999999},{"$f":" -0.004095*CA^2 + 2.0208*CA + 31.073","v":121.87549999999999},{"$f":" -0.0024*CA^2 + 1.6058*CA + 33.854","v":108.14399999999999},{"$f":" -0.000183*CA^2 + 0.0762*CA + 1.3621","v":4.7145999999999999},{"$f":" -0.000224*CA^2 + 0.0893*CA + 0.2064","v":4.1113999999999997},"0,71-1,32 kg",null,null,null,null,null,null,null,null,null,null,null,null,null,9,"Buğday Kuru Otu",90,2.1,9,6.3,5.0999999999999996,2.2999999999999998,0.21,0.22,29,66,57,2.5,1.3,0.6,1.3,38,98,2,8,1.4,0.5,0.19,23,17,null,8,0,1]
[{"$f":"Koyun!A12","v":7},{"$f":"Koyun!B12","v":"Vitamin-Mineral Karması"},{"$f":"Koyun!C12","v":1.0000000000000002E-3},{"$f":"Koyun!D12","v":25},{"$f":"Koyun!E12","v":1E-3},{"$f":"Koyun!F12","v":4.0000000000000001E-3},"Ca/P Oranı",{"$f":"Koyun!H12","v":1.3140120688700658},{"$f":"I10/I11","v":1.3140120688700656},{"$f":"IF(OR(H12=\"\",H12=0)=TRUE,\"     \",IF(I12>(H12*1.01),\"FAZLA\",IF(I12<(H12*0.99),\"EKSİK\",\"TAMAM\")))","v":"TAMAM"},null,null,null,null,null,null,null,null,null,null,null,null,null,{"$f":"Koyun!B12","v":"Vitamin-Mineral Karması"},{"$f":"IF(X12=0,0,C12)","v":1.0000000000000002E-3},100,0,0,0,0,0,0,0,0,0,null,null,null,null,null,null,null,null,null,null,null,null,null,null,null,null,null,"Koyun, Erken laktasyon, İkiz kuzu, 1,5 yaş üzeri",{"$f":" - 0.0000074*CA^2 + 0.0191*CA + 0.6647","v":1.6012},{"$f":" -0.0000865*CA^2 + 0.0548*CA + 1.318","v":3.8417500000000002},{"$f":" 0.00148*CA^2 + 2.2437*CA + 139.56","v":255.44499999999999},{"$f":" -0.0002*CA^2+ 2.517*CA + 115.16","v":240.51},{"$f":" -0.00018*CA^2 + 2.3997*CA + 110.53","v":230.065},{"$f":" -0.00027*CA^2 + 1.7879*CA + 80.479","v":169.19900000000001},{"$f":" -0.00315*CA^2 + 1.9769*CA + 47.621","v":138.59100000000001},{"$f":" 0.000055*CA^2 + 0.0533*CA + 3.847","v":6.6494999999999997},{"$f":" 0.000144*CA^2 + 0.0417*CA + 3.1854","v":5.6303999999999998},"1,18-2,21 kg",null,null,null,null,null,null,null,null,null,null,null,null,null,10,"Buğday Samanı",91,1.5,3,2.1,0.3,1.8,0.16,0.05,43,81,42,1.9,0.9,0,0.9,58,98,1.8,8,1.3,0.32,0.17,6,400,null,6,0,1]
[{"$f":"Koyun!A13","v":0},{"$f":"Koyun!B13","v":0},{"$f":"Koyun!C13","v":0},{"$f":"Koyun!D13","v":0},{"$f":"Koyun!E13","v":0},{"$f":"Koyun!F13","v":0},"Kaba Yem,%",null,null,null,{"$f":"IF(Y32=0,0,Y32/I4*100)","v":75.227829265658414},null,null,null,null,null,null,null,null,"Hayvanın Tipi",null,null,null,{"$f":"Koyun!B13","v":0},0,0,0,0,0,0,0,0,0,0,0,null,null,null,null,null,null,null,null,null,null,null,null,null,null,null,null,null,"Koyun, Erken laktasyon, Üçüz kuzu, 1,5 yaş üzeri",{"$f":" - 0.000012*CA^2 + 0.0237*CA + 0.6816","v":1.8366},{"$f":" -0.000097*CA^2 + 0.0616*CA + 1.6305","v":4.468},{"$f":" -0.0107*CA^2 + 5.0597*CA + 81.008","v":307.24299999999999},{"$f":" -0.0099*CA^2 + 4.786*CA + 77.932","v":292.48199999999997},{"$f":" -0.0096*CA^2 + 4.6088*CA + 73.543","v":279.98299999999995},{"$f":" -0.00715*CA^2+ 3.4111*CA + 53.242","v":205.92199999999997},{"$f":" -0.0035*CA^2+ 2.2141*CA + 59.119","v":161.07400000000001},{"$f":" -0.000389*CA^2 + 0.1486*CA + 1.7643","v":8.2218},{"$f":" -0.000389*CA^2 + 0.1549*CA + 0.0667","v":6.8391999999999999},"1,53-2,87 kg",null,null,null,null,null,null,null,null,null,null,null,null,null,11,"Buğday Samanı, Amonyakla muamele ",85,1.8,9,6.3,5.0999999999999996,2.2999999999999998,0.15,0.05,40,76,50,2.2000000000000002,1.1000000000000001,0.3,1.1000000000000001,55,98,1.5,9,1.3,0.3,0.16,6,null,null,1.5,0,1,null,"Mermer Tozu"]
[{"$f":"Koyun!A14","v":0},{"$f":"Koyun!B14","v":0},{"$f":"Koyun!C14","v":0},{"$f":"Koyun!D14","v":0},{"$f":"Koyun!E14","v":0},{"$f":"Koyun!F14","v":0},"HS,%",null,null,null,{"$f":"AH32/Z32*100","v":33.697493219517654},null,null,null,null,null,null,null,null,"Koyun",null,null,null,{"$f":"Koyun!B14","v":0},0,0,0,0,0,0,0,0,0,0,0,null,null,null,null,null,null,null,null,null,null,null,null,null,null,null,null,null,"Koyun, Erken laktasyon, Sağmal, 1,5 yaş üzeri",{"$f":" - 0.0000022165*CA^3 + 0.0007*CA^2 - 0.0398*CA + 2.4142","v":1.8971374999999999},{"$f":" -0.000105*CA^2 + 0.0706*CA + 2.2716","v":5.5390999999999995},{"$f":" -0.0015*CA^2 + 4.2283*CA + 183.76","v":391.42499999999995},{"$f":" -0.00275*CA^2 + 4.2722*CA + 167.11","v":373.84500000000003},{"$f":" -0.00185*CA^2 + 3.8548*CA + 171.38","v":359.495},{"$f":" -0.00163*CA^2 + 2.8892*CA + 124.05","v":264.435},{"$f":" -0.003895*CA^2 + 2.5623*CA + 81.178","v":199.55549999999999},{"$f":" -0.000029*CA^2 + 0.1056*CA + 5.2414","v":10.4489},{"$f":" 0.000105*CA^2 + 0.0831*CA + 4.1467","v":8.5641999999999996},"2,37-3,97 kg",null,null,null,null,null,null,null,null,null,null,null,null,null,12,"Çavdar Samanı",89,1.6,4,2.8,0.6,null,0.24,0.09,44,71,44,1.9,1,0,0.9,55,100,1.5,6,1,0.24,0.11,null,null,null,2,0,1]
[{"$f":"Koyun!A15","v":0},{"$f":"Koyun!B15","v":0},{"$f":"Koyun!C15","v":0},{"$f":"Koyun!D15","v":0},{"$f":"Koyun!E15","v":0},{"$f":"Koyun!F15","v":0},"NDF,%",null,null,null,{"$f":"AI32/Z32*100","v":64.117568074845309},null,null,null,null,null,null,null,null,"Koç",null,null,null,{"$f":"Koyun!B15","v":0},0,{"$f":"IF($X15=0,0,VLOOKUP($B15,$BZ$3:$DB$533,Z$1,FALSE))","v":0},0,0,0,0,0,0,0,0,0,null,null,null,null,null,null,null,null,null,null,null,null,null,null,null,null,null,"Koyun, Orta laktasyon, Tek kuzu, 1,5 yaş üzeri",{"$f":" -0.00003*CA^2 + 0.0211*CA + 0.4155","v":1.3955},{"$f":"-0.00006*CA^2 + 0.0406*CA + 0.7967","v":2.6766999999999999},{"$f":" -0.0031*CA^2+ 2.1361*CA + 54.425","v":153.47999999999999},{"$f":" -0.0027*CA^2 + 2.004*CA + 53.087","v":146.53700000000001},{"$f":" -0.00246*CA^2+ 1.8921*CA + 52.087","v":140.54199999999997},{"$f":" -0.00196*CA^2 + 1.4185*CA + 37.397","v":103.422},{"$f":" -0.00199*CA^2 + 1.447*CA + 28.79","v":96.16500000000002},{"$f":" -0.00006*CA^2+ 0.0434*CA + 1.8799","v":3.8998999999999997},{"$f":" -0.000079*CA^2+ 0.0521*CA + 1.1571","v":3.5646000000000004},"0,47-0,89 kg",null,null,null,null,null,null,null,null,null,null,null,null,null,13,"Çayır Kelp Kuyruğu (Timothy) Kuru Otu, Çiçek Başı",88,2.1,11,7.7,6.9,2.4,0.57999999999999996,0.26,32,63,59,2.6,1.3,0.6,1.3,39,98,2.7,6,1.9,0.51,0.21,30,5.6,38,3,0,1]
[{"$f":"Koyun!A16","v":0},{"$f":"Koyun!B16","v":0},{"$f":"Koyun!C16","v":0},{"$f":"Koyun!D16","v":0},{"$f":"Koyun!E16","v":0},{"$f":"Koyun!F16","v":0},null,null,null,null,null,null,null,null,null,null,null,null,null,"Dişi Kuzu",null,null,null,{"$f":"Koyun!B16","v":0},0,0,0,0,0,0,0,0,0,0,0,null,null,null,null,null,null,null,null,null,null,null,null,null,null,null,null,null,"Koyun, Orta laktasyon, İkiz kuzu, 1,5 yaş üzeri",{"$f":" -0.000038*CA^2 + 0.0251*CA + 0.5617","v":1.7217000000000002},{"$f":" -0.000075*CA^2 + 0.0483*CA + 1.0611","v":3.2885999999999997},{"$f":" -0.0043*CA^2 + 2.7931*CA + 81.753","v":210.65800000000002},{"$f":" -0.004283*CA^2 + 2.6979*CA + 76.694","v":200.88150000000002},{"$f":" -0.0039*CA^2 + 2.5395*CA + 75.183","v":192.40800000000002},{"$f":" -0.003*CA^2 + 1.8922*CA + 54.452","v":141.56200000000001},{"$f":" -0.00251*CA^2+ 1.7133*CA + 39.1","v":118.49000000000001},{"$f":" -0.000117*CA^2 + 0.0651*CA + 2.4795","v":5.4420000000000002},{"$f":" -0.0001352*CA^2 + 0.0731*CA + 1.6023","v":4.9192999999999998},"0,79-1,48 kg",null,null,null,null,null,null,null,null,null,null,null,null,null,14,"Çayır Kelp Kuyruğu (Timothy) Kuru Otu, Tam Çiçeklenme",88,2.1,8,5.6,4.2,2.4,0.43,0.2,34,65,57,2.5,1.3,0.6,1.3,40,98,2.6,5,1.8,0.62,0.13,25,null,null,11,0,1]
[{"$f":"Koyun!A17","v":0},{"$f":"Koyun!B17","v":0},{"$f":"Koyun!C17","v":0},{"$f":"Koyun!D17","v":0},{"$f":"Koyun!E17","v":0},{"$f":"Koyun!F17","v":0},null,null,null,null,null,null,null,null,null,null,null,null,null,"Erkek Kuzu",null,null,null,{"$f":"Koyun!B17","v":0},0,0,0,0,0,0,0,0,0,0,0,null,null,null,null,null,null,null,null,null,null,null,null,null,null,null,null,null,"Koyun, Orta laktasyon, Üçüz kuzu, 1,5 yaş üzeri",{"$f":" -0.000038*CA^2 + 0.0267*CA + 0.7316","v":1.9716},{"$f":" -0.000079*CA^2 + 0.0528*CA + 1.3049","v":3.7474000000000003},{"$f":" -0.0046*CA^2 + 3.1396*CA + 109.25","v":254.73000000000002},{"$f":" -0.0069*CA^2+ 3.5337*CA + 78.018","v":237.453},{"$f":" -0.0068*CA^2 + 3.403*CA + 74.142","v":227.292},{"$f":" -0.0048*CA^2 + 2.4757*CA + 55.32","v":167.10499999999999},{"$f":" -0.00287*CA^2 + 1.9033*CA + 47.397","v":135.387},{"$f":" -0.000195*CA^2 + 0.0906*CA + 2.3808","v":6.4233000000000002},{"$f":" -0.000254*CA^2 + 0.1051*CA + 1.0922","v":5.7122000000000002},"1,03-1,92 kg",null,null,null,null,null,null,null,null,null,null,null,null,null,15,"Çayır Kuru Otu",88,2.1,10,7,6,3,0.6,0.21,33,63,58,2.6,1.3,0.6,1.3,41,98,3,6,2,null,0.2,28,null,null,11,0,1,null,"Tuz"]
[{"$f":"Koyun!A18","v":0},{"$f":"Koyun!B18","v":0},{"$f":"Koyun!C18","v":0},{"$f":"Koyun!D18","v":0},{"$f":"Koyun!E18","v":0},{"$f":"Koyun!F18","v":0},null,null,null,null,null,null,null,null,null,null,null,null,null,"Dişi Toklu",null,null,null,{"$f":"Koyun!B18","v":0},0,0,0,0,0,0,0,0,0,0,0,null,null,null,null,null,null,null,null,null,null,null,null,null,null,null,null,null,"Koyun, Orta laktasyon, Sağmal, 1,5 yaş üzeri",{"$f":" -0.0002*CA^2 + 0.066*CA - 0.9191","v":1.8809000000000002},{"$f":" -0.000089*CA^2 + 0.0603*CA + 1.7437","v":4.5362},{"$f":" -0.0102*CA^2 + 4.9702*CA + 82.428","v":305.43799999999999},{"$f":" -0.01006*CA^2 + 4.8267*CA + 73.914","v":290.09899999999999},{"$f":" -0.0096*CA^2 + 4.6158*CA + 70.573","v":277.363},{"$f":" -0.00726*CA^2 + 3.4229*CA + 51.318","v":204.31299999999999},{"$f":" -0.0033*CA^2+ 2.1917*CA + 62.062","v":163.39699999999999},{"$f":" -0.000313*CA^2 + 0.1341*CA + 1.856","v":7.7785000000000002},{"$f":" -0.000388*CA^2 + 0.154*CA - 0.1698","v":6.5602},"1,59-2,66 kg",null,null,null,null,null,null,null,null,null,null,null,null,null,16,"Çayır Kuru Otu (Meadow)",90,1.8,7,4.9000000000000004,3.3,1.6,0.61,0.18,33,70,50,2.2000000000000002,1.1000000000000001,0.3,1.1000000000000001,44,98,2.5,9,1.6,null,0.17,24,null,null,11,0,1,null,"Vitamin-Mineral Karması"]
[{"$f":"Koyun!A19","v":0},{"$f":"Koyun!B19","v":0},{"$f":"Koyun!C19","v":0},{"$f":"Koyun!D19","v":0},{"$f":"Koyun!E19","v":0},{"$f":"Koyun!F19","v":0},null,null,null,null,null,null,null,null,null,null,null,null,null,null,null,null,null,{"$f":"Koyun!B19","v":0},0,0,0,0,0,0,0,0,0,0,0,null,null,null,null,null,null,null,null,null,null,null,null,null,null,null,null,null,"Koyun, Geç laktasyon, Tek kuzu, 1,5 yaş üzeri",{"$f":" -0.000026*CA^2 + 0.0198*CA + 0.339","v":1.264},{"$f":" -0.000052*CA^2 + 0.0382*CA + 0.6307","v":2.4106999999999998},{"$f":" -0.002*CA^2 + 1.7282*CA + 38.763","v":120.173},{"$f":" -0.00184*CA^2 + 1.6339*CA + 37.612","v":114.70699999999999},{"$f":" -0.00184*CA^2+ 1.5776*CA + 35.484","v":109.76400000000001},{"$f":" -0.00164*CA^2 + 1.2099*CA + 24.292","v":80.686999999999998},{"$f":" -0.00198*CA^2 + 1.3908*CA + 22.662","v":87.25200000000001},{"$f":" -0.000048*CA^2 + 0.0355*CA + 1.3502","v":3.0051999999999999},{"$f":" -0.000068*CA^2 + 0.0446*CA + 0.6489","v":2.7088999999999999},"0,23-0,45 kg",null,null,null,null,null,null,null,null,null,null,null,null,null,17,"Çayır Kuru Otu (Prairie)",91,1.8,7,4.9000000000000004,3.3,2.6,0.4,0.15,34,67,50,2.2000000000000002,1.1000000000000001,0.3,1.1000000000000001,47,98,2,8,1.1000000000000001,0.06,0.06,34,4.8,null,11,0,1]
[{"$f":"Koyun!A20","v":0},{"$f":"Koyun!B20","v":0},{"$f":"Koyun!C20","v":0},{"$f":"Koyun!D20","v":0},{"$f":"Koyun!E20","v":0},{"$f":"Koyun!F20","v":0},null,null,null,null,null,null,null,null,null,null,null,null,null,"Fizyolojik Durumu",null,null,null,{"$f":"Koyun!B20","v":0},0,0,0,0,0,0,0,0,0,0,0,null,null,null,null,null,null,null,null,null,null,null,null,null,null,null,null,null,"Koyun, Geç laktasyon, İkiz kuzu, 1,5 yaş üzeri",{"$f":" -0.000032*CA^2 + 0.0238*CA + 0.4877","v":1.5977000000000001},{"$f":" -0.000061*CA^2 + 0.0453*CA + 0.9392","v":3.0517000000000003},{"$f":" -0.0029*CA^2 + 2.265*CA + 56.621","v":162.62100000000001},{"$f":" -0.00272*CA^2+ 2.141*CA + 55.301","v":155.55099999999999},{"$f":" -0.00281*CA^2 + 2.0872*CA + 51.543","v":148.87800000000001},{"$f":" -0.00181*CA^2+ 1.4883*CA + 39.858","v":109.74799999999999},{"$f":" -0.00218*CA^2 + 1.6323*CA + 33.731","v":109.89600000000002},{"$f":" -0.000079*CA^2 + 0.0521*CA + 1.7571","v":4.1646000000000001},{"$f":" -0.00008*CA^2 + 0.0558*CA + 1.1119","v":3.7019000000000002},"0,38-0,75 kg",null,null,null,null,null,null,null,null,null,null,null,null,null,18,"Çayır Kuru Otu (Rye Grass) ",90,2.1,10,7,6,3,0.45,0.3,33,65,58,2.6,1.3,0.6,1.3,38,98,3.3,8,2.2000000000000002,null,0.18,27,24,211,11,0,1]
[{"$f":"Koyun!A21","v":0},{"$f":"Koyun!B21","v":0},{"$f":"Koyun!C21","v":0},{"$f":"Koyun!D21","v":0},{"$f":"Koyun!E21","v":0},{"$f":"Koyun!F21","v":0},null,null,null,"Hayvanın",null,null,null,null,null,null,null,null,null,"Yaşama Payı",null,null,null,{"$f":"Koyun!B21","v":0},0,0,0,0,0,0,0,0,0,0,0,null,null,null,null,null,null,null,null,null,null,null,null,null,null,null,null,null,"Koyun, Geç laktasyon, Üçüz kuzu, 1,5 yaş üzeri",{"$f":" -0.000042*CA^2 + 0.0275*CA + 0.5616","v":1.8315999999999999},{"$f":" -0.000077*CA^2 + 0.0518*CA + 1.1179","v":3.5153999999999996},{"$f":" -0.0042*CA^2 + 2.7656*CA + 65.861","v":193.64100000000002},{"$f":" -0.00383*CA^2 + 2.5932*CA + 65.292","v":185.37700000000001},{"$f":" -0.0037*CA^2 + 2.4934*CA + 61.872","v":177.29199999999997},{"$f":" -0.00247*CA^2 + 1.7885*CA + 47.247","v":130.49700000000001},{"$f":" -0.00267*CA^2+ 1.8594*CA + 40.072","v":126.367},{"$f":" -0.000112*CA^2+ 0.0652*CA + 2.0603","v":5.0403000000000002},{"$f":" -0.0001*CA^2 + 0.0652*CA + 1.4184","v":4.4283999999999999},"0,55-0,97 kg",null,null,null,null,null,null,null,null,null,null,null,null,null,19,"Çayır Salkım Otu (Bluegrass) Samanı ",93,1.6,6,4.2,2.4,null,0.2,0.1,40,78,45,2,1,0.1,1,50,90,1.1000000000000001,6,null,null,null,null,null,null,11,0,1]
[{"$f":"Koyun!A22","v":0},{"$f":"Koyun!B22","v":0},{"$f":"Koyun!C22","v":0},{"$f":"Koyun!D22","v":0},{"$f":"Koyun!E22","v":0},{"$f":"Koyun!F23","v":0},"BESİN MAD.","İHTİYAÇLAR",null,"Hayvanın Tipi :",null,"Koyun",null,null,null,null,null,null,null,"Flaşing",null,null,null,{"$f":"Koyun!B22","v":0},0,0,0,0,0,0,0,0,0,0,0,null,null,null,null,null,null,null,null,null,null,null,null,null,null,null,null,null,"Koyun, Geç laktasyon, Sağmal, 1,5 yaş üzeri",{"$f":" -0.000033*CA^2 + 0.0279*CA + 0.795","v":2.1074999999999999},{"$f":" -0.000065*CA^2 + 0.0536*CA + 1.5028","v":4.0202999999999998},{"$f":" -0.0034*CA^2 + 2.919*CA + 97.878","v":235.32799999999997},{"$f":" -0.00313*CA^2 + 2.7646*CA + 94.321","v":224.72600000000003},{"$f":" -0.00307*CA^2+ 2.6631*CA + 89.162","v":214.642},{"$f":" -0.00221*CA^2 + 1.9505*CA + 66.128","v":158.12799999999999},{"$f":" -0.00213*CA^2 + 1.8876*CA + 56.438","v":145.49299999999999},{"$f":" -0.000102*CA^2+ 0.0721*CA + 2.8027","v":6.1527000000000003},{"$f":" -0.000111*CA^2 + 0.0749*CA + 1.9025","v":5.37},"0,85-1,35 kg",null,null,null,null,null,null,null,null,null,null,null,null,null,20,"Çayır Üçgülü (Clover Red) Kuru Otu",88,2,15,10.5,10.5,4.2,1.5,0.25,30,51,55,2.4,1.2,0.5,1.2,39,92,2.5,8,1.7,0.32,0.17,17,4,null,2,0,1]
[{"$f":"Koyun!A23","v":0},{"$f":"Koyun!B23","v":0},{"$f":"Koyun!C23","v":0},{"$f":"Koyun!D23","v":0},{"$f":"Koyun!E23","v":0},{"$f":"Koyun!F24","v":0},"Kuru Madde, kg",{"$f":"VLOOKUP(Koyun,KoyunReqs,2,FALSE)","v":1.0041500000000001},null,"Fizyolojik Durumu :",null,"Flaşing",null,null,null,null,null,null,null,"Erken Gebe",null,null,null,{"$f":"Koyun!B23","v":0},0,0,0,0,0,0,0,0,0,0,0,null,null,null,null,null,null,null,null,null,null,null,null,null,null,null,null,null,"Koyun, Erken laktasyon, Tek kuzu, 1 yaşında",{"$f":" -0.000044*CA^2 + 0.0251*CA + 0.4798","v":1.6248},{"$f":" -0.0000795*CA^2 + 0.0478*CA + 0.9192","v":3.1104500000000002},{"$f":" -0.0041*CA^2 + 2.5701*CA + 71.022","v":189.27699999999999},{"$f":" -0.0045*CA^2 + 2.542*CA + 64.703","v":180.553},{"$f":" -0.00406*CA^2 + 2.3961*CA + 62.821","v":172.476},{"$f":" -0.002825*CA^2 + 1.7364*CA + 47.311","v":127.0685},{"$f":" -0.0029*CA^2+ 1.7327*CA + 32.65","v":112.035},{"$f":" -0.000096*CA^2 + 0.0588*CA + 2.3104","v":5.0103999999999997},{"$f":" -0.000126*CA^2 + 0.0676*CA + 1.5059","v":4.5709},"0,71-1,22 kg",null,null,null,null,null,null,null,null,null,null,null,null,null,21,"Domuz Ayrığı (Orchardgrass) Kuru Otu",88,2.1,10,7,6,2.7,0.32,0.3,34,67,59,2.6,1.3,0.6,1.3,40,98,3.3,8,2.6,0.41,0.2,26,4.4000000000000004,191,11,0,1]
[{"$f":"Koyun!A24","v":0},{"$f":"Koyun!B24","v":0},{"$f":"Koyun!C24","v":0},{"$f":"Koyun!D24","v":0},{"$f":"Koyun!E24","v":0},{"$f":"Koyun!F25","v":0},"Metabolik Enerji, Mcal",{"$f":"VLOOKUP(Koyun,KoyunReqs,3,FALSE)","v":1.92265},null,"Yavru Sayısı :",null,"",null,null,null,null,null,null,null,"Geç Gebe",null,null,null,{"$f":"Koyun!B24","v":0},0,0,0,0,0,0,0,0,0,0,0,null,null,null,null,null,null,null,null,null,null,null,null,null,null,null,null,null,"Koyun, Erken laktasyon, İkiz kuzu, 1 yaşında",{"$f":" - 0.000041*CA^2 + 0.0283*CA + 0.7695","v":2.0819999999999999},{"$f":" -0.0000943*CA^2 + 0.0575*CA + 1.3024","v":3.9416500000000001},{"$f":" -0.01092*CA^2 + 4.4769*CA + 62.653","v":259.19799999999998},{"$f":" -0.01065*CA^2 + 4.3117*CA + 58.426","v":247.38600000000002},{"$f":" -0.01007*CA^2+ 4.0954*CA + 57.003","v":236.59799999999996},{"$f":" -0.00754*CA^2 + 3.0355*CA + 41.37","v":174.29500000000002},{"$f":" -0.00353*CA^2 + 2.08*CA + 47.162","v":142.33699999999999},{"$f":" -0.000348*CA^2 + 0.1238*CA + 1.5877","v":6.9076999999999993},{"$f":" -0.000412*CA^2 + 0.1381*CA + 0.1964","v":6.0713999999999997},"1,18-2,05 kg",null,null,null,null,null,null,null,null,null,null,null,null,null,22,"Fiğ Kuru Otu",89,2.1,18,12.6,13.2,2.5,1.25,0.34,30,48,58,2.6,1.3,0.6,1.3,33,92,1.8,8,2.4,null,0.13,null,92.2,null,11,0,1]
[{"$f":"Koyun!A25","v":0},{"$f":"Koyun!B25","v":0},{"$f":"Koyun!C25","v":0},{"$f":"Koyun!D25","v":0},{"$f":"Koyun!E25","v":0},{"$f":"Koyun!F26","v":0},"Ham Protein, g",{"$f":"(VLOOKUP(Koyun,KoyunReqs,4,FALSE)+VLOOKUP(Koyun,KoyunReqs,5,FALSE))/2","v":79.145999999999987},null,"Yaşı :",null,"",null,null,null,null,null,null,null,"Erken Laktasyon",null,null,null,{"$f":"Koyun!B25","v":0},0,{"$f":"IF($X25=0,0,VLOOKUP($B25,$BZ$3:$DB$533,Z$1,FALSE))","v":0},0,0,0,0,0,0,0,0,0,null,null,null,null,null,null,null,null,null,null,null,null,null,null,null,null,null,"Koyun, Erken laktasyon, Üçüz kuzu, 1 yaşında",{"$f":"  - 0.000034*CA^2 + 0.0291*CA + 1.0797","v":2.4497},{"$f":" -0.000116*CA^2 + 0.0658*CA + 1.5738","v":4.5738000000000003},{"$f":" -0.0134*CA^2+ 5.5117*CA + 66.568","v":308.65300000000002},{"$f":" -0.01273*CA^2 + 5.2552*CA + 63.642","v":294.577},{"$f":" -0.01*CA^2 + 4.6985*CA + 70.583","v":280.50800000000004},{"$f":" -0.0075*CA^2 + 3.4774*CA + 51.381","v":206.501},{"$f":" -0.00437*CA^2 + 2.4003*CA + 55.734","v":164.82400000000001},{"$f":" -0.00037*CA^2 + 0.1469*CA + 1.7669","v":8.1868999999999996},{"$f":" -0.000398*CA^2+ 0.1573*CA + 0.0328","v":6.9028},"1,53-2,66 kg",null,null,null,null,null,null,null,null,null,null,null,null,null,23,"Kamışsı Yumak Kuru Otu, Olgun",88,1.9,11,7.7,6.9,3.3,0.45,0.26,30,73,52,2.2999999999999998,1.1000000000000001,0.4,1.1000000000000001,42,98,5,6,1.7,null,0.14000000000000001,22,null,null,6,0,1]
[{"$f":"Koyun!A26","v":0},{"$f":"Koyun!B26","v":0},{"$f":"Koyun!C26","v":0},{"$f":"Koyun!D26","v":0},{"$f":"Koyun!E26","v":0},{"$f":"Koyun!F22","v":0},"Metabolik Protein,g",null,"MP","Canlı Ağırlık :",null,50,"kg",null,null,null,null,null,null,"Orta Laktasyon",null,null,null,{"$f":"Koyun!B26","v":0},0,0,0,0,0,0,0,0,0,0,0,null,null,null,null,null,null,null,null,null,null,null,null,null,null,null,null,null,"Koyun, Erken laktasyon, Sağmal, 1 yaşında",{"$f":" -0.00019*CA^2 + 0.05841*CA - 0.4419","v":2.0035999999999996},{"$f":" -0.00012*CA^2 + 0.07309*CA + 2.2753","v":5.6298000000000004},{"$f":" -0.01263*CA^2+ 5.9008*CA + 125.64","v":389.10500000000002},{"$f":" -0.01186*CA^2+ 5.60171*CA + 121.22","v":371.65549999999996},{"$f":" -0.01113*CA^2+ 5.32438*CA + 117.17","v":355.56400000000002},{"$f":" -0.00862*CA^2+ 3.99397*CA + 83.325","v":261.4735},{"$f":" -0.00455*CA^2+ 2.66611*CA + 77.437","v":199.36750000000001},{"$f":" -0.000398*CA^2+ 0.16404*CA + 3.1793","v":10.3863},{"$f":" -0.00045*CA^2+ 0.17044*CA + 1.0434","v":8.4404000000000003},"2,35-4,10 kg",null,null,null,null,null,null,null,null,null,null,null,null,null,24,"Kamışsı Yumak Samanı",94,1.6,4,2.8,0.6,null,0,0.06,41,null,43,1.9,1,0,0.9,null,null,1.1000000000000001,6,null,null,null,null,null,null,10,0,1]
[{"$f":"Koyun!A27","v":0},{"$f":"Koyun!B27","v":0},{"$f":"Koyun!C27","v":0},{"$f":"Koyun!D27","v":0},{"$f":"Koyun!E27","v":0},{"$f":"Koyun!F27","v":0},"Rumende Yıkılabilir Protein,g",null,"DIP","Canlı Ağırlık Artışı :",null,null,"g/gün",null,null,null,null,null,null,"Geç Laktasyon",null,null,null,{"$f":"Koyun!B27","v":0},0,0,0,0,0,0,0,0,0,0,0,null,null,null,null,null,null,null,null,null,null,null,null,null,null,null,null,null,"Koyun, Orta laktasyon, Tek kuzu, 1 yaşında",{"$f":" -0.0000365*CA^2 + 0.0228*CA + 0.3996","v":1.44835},{"$f":" -0.0000709*CA^2 + 0.04406*CA + 0.7423","v":2.7680500000000006},{"$f":" -0.00395*CA^2 + 2.2783*CA + 51.171","v":155.21100000000001},{"$f":" -0.00358*CA^2 + 2.1493*CA + 49.347","v":147.86199999999999},{"$f":" -0.00335*CA^2 + 2.0374*CA + 48.347","v":141.84199999999998},{"$f":" -0.00249*CA^2 + 1.5012*CA + 35.563","v":104.39800000000001},{"$f":" -0.00239*CA^2 + 1.5492*CA + 28.244","v":99.728999999999999},{"$f":" -0.000109*CA^2 + 0.0516*CA + 1.6532","v":3.9607000000000001},{"$f":" -0.00012*CA^2 + 0.0592*CA + 1.0252","v":3.6852},"0,47-0,82 kg",null,null,null,null,null,null,null,null,null,null,null,null,null,25,"Kamışsı Yumak, Yaş, Çiçek Başı",88,2.4,18,12.6,13.2,4,0.45,0.37,25,64,65,2.9,1.5,0.8,1.5,31,98,6.6,8,2.7,null,0.24,24,null,null,3,0,1]
[{"$f":"Koyun!A28","v":0},{"$f":"Koyun!B28","v":0},{"$f":"Koyun!C28","v":0},{"$f":"Koyun!D28","v":0},{"$f":"Koyun!E28","v":0},{"$f":"Koyun!F28","v":0},"Rumende Yıkımlanmayan Protein,g",null,"RUP",null,null,null,null,null,null,null,null,null,null,"Erken Erginleşen",null,null,null,{"$f":"Koyun!B28","v":0},0,0,0,0,0,0,0,0,0,0,0,null,null,null,null,null,null,null,null,null,null,null,null,null,null,null,null,null,"Koyun, Orta laktasyon, İkiz kuzu, 1 yaşında",{"$f":" -0.000043*CA^2 + 0.0264*CA + 0.5573","v":1.7698},{"$f":" -0.000085*CA^2 + 0.05113*CA + 1.0452","v":3.3892000000000002},{"$f":" -0.0052*CA^2 + 2.93*CA + 78.829","v":212.32900000000001},{"$f":" -0.005*CA^2 + 2.8128*CA + 74.496","v":202.63600000000002},{"$f":" -0.00447*CA^2 + 2.6228*CA + 74.146","v":194.11099999999999},{"$f":" -0.00348*CA^2 + 1.9767*CA + 52.308","v":142.44299999999998},{"$f":" -0.00284*CA^2+ 1.8055*CA + 38.986","v":122.161},{"$f":" -0.000145*CA^2 + 0.0704*CA + 2.3252","v":5.4827000000000004},{"$f":" -0.000131*CA^2 + 0.0734*CA + 1.6711","v":5.0136000000000003},"0,79-1,37 kg",null,null,null,null,null,null,null,null,null,null,null,null,null,26,"Kır Ayrığı (Wheatgrass) Kuru Otu",92,2,10,7,6,3.3,0.33,0.2,33,65,54,2.4,1.2,0.4,1.2,36,98,2.4,7,2,null,null,32,null,null,11,0,1]
[{"$f":"Koyun!A29","v":0},{"$f":"Koyun!B29","v":0},{"$f":"Koyun!C29","v":0},{"$f":"Koyun!D29","v":0},{"$f":"Koyun!E29","v":0},{"$f":"Koyun!F29","v":0},"Ca, g",{"$f":"VLOOKUP(Koyun,KoyunReqs,9,FALSE)","v":2.3734999999999999},null,null,null,null,null,null,null,null,null,null,null,"Geç Erginleşen",null,null,null,{"$f":"Koyun!B29","v":0},0,0,0,0,0,0,0,0,0,0,0,null,null,null,null,null,null,null,null,null,null,null,null,null,null,null,null,null,"Koyun, Orta laktasyon, Üçüz kuzu, 1 yaşında",{"$f":" - 0.000038*CA^2 + 0.0273*CA + 0.7604","v":2.0304000000000002},{"$f":" -0.0000937*CA^2 + 0.0561*CA + 1.282","v":3.8527499999999999},{"$f":" -0.01055*CA^2+ 4.2796*CA + 58.49","v":246.09500000000003},{"$f":" -0.00967*CA^2+ 4.0187*CA + 58.305","v":235.065},{"$f":" -0.00958*CA^2 + 3.8962*CA + 53.894","v":224.75400000000002},{"$f":" -0.00682*CA^2 + 2.8402*CA + 40.218","v":165.178},{"$f":" -0.00323*CA^2 + 2.006*CA + 46.493","v":138.71799999999999},{"$f":" -0.000331*CA^2 + 0.1153*CA + 1.3796","v":6.3170999999999999},{"$f":" -0.000408*CA^2 + 0.1328*CA - 0.0263","v":5.5936999999999992},"1,03-1,78 kg",null,null,null,null,null,null,null,null,null,null,null,null,null,27,"Korunga Kuru Otu",88,2.2000000000000002,14,9.8000000000000007,9.6,8.4,null,null,24,null,61,2.7,1.4,0.7,1.4,null,null,3.1,9,null,null,null,null,null,null,11,0,1]
[{"$f":"Koyun!A30","v":0},{"$f":"Koyun!B30","v":0},{"$f":"Koyun!C30","v":0},{"$f":"Koyun!D30","v":0},{"$f":"Koyun!E30","v":0},{"$f":"Koyun!F30","v":0},"P, g",{"$f":"VLOOKUP(Koyun,KoyunReqs,10,FALSE)","v":1.8063},null,null,null,null,null,null,null,null,null,null,null,null,null,null,null,{"$f":"Koyun!B30","v":0},0,0,0,0,0,0,0,0,0,0,0,null,null,null,null,null,null,null,null,null,null,null,null,null,null,null,null,null,"Koyun, Orta laktasyon, Sağmal, 1 yaşında",{"$f":" -0.00022*CA^2 + 0.06665*CA - 0.7936","v":1.9888999999999997},{"$f":" -0.00008*CA^2 + 0.05923*CA + 1.8688","v":4.6303000000000001},{"$f":" -0.00999*CA^2+ 4.96603*CA + 80.937","v":304.26350000000002},{"$f":" -0.00939*CA^2+ 4.71945*CA + 78.125","v":290.6225},{"$f":" -0.00891*CA^2+ 4.50478*CA + 74.798","v":277.762},{"$f":" -0.00702*CA^2+ 3.38429*CA + 52.851","v":204.51549999999997},{"$f":" -0.00308*CA^2+ 2.15612*CA + 63.486","v":163.59199999999998},{"$f":" -0.00032*CA^2+ 0.13525*CA + 1.911","v":7.8734999999999999},{"$f":" -0.00041*CA^2+ 0.15769*CA - 0.218","v":6.6415000000000006},"1,59-2,74 kg",null,null,null,null,null,null,null,null,null,null,null,null,null,28,"Köpekdişi (Bermudagrass) Kuru Otu ",89,2,10,7,6,2,0.47,0.21,30,73,56,2.5,1.2,0.5,1.2,36,98,2.1,6,1.5,null,0.22,16,21,null,11,0,1]
[null,null,null,null,null,null,"Süt Verimi",{"$f":"VLOOKUP(Koyun,KoyunReqs,11,FALSE)","v":0},null,null,null,null,null,null,null,null,null,null,null,"Yavru sayısı",null,null,null,null,null,null,null,null,null,null,null,null,null,null,null,null,null,null,null,null,null,null,null,null,null,null,null,null,null,null,null,null,"Koyun, Geç laktasyon, Tek kuzu, 1 yaşında",{"$f":" -0.000032*CA^2 + 0.0316*CA + 0.3345","v":1.8345},{"$f":" -0.000067*CA^2 + 0.0615*CA + 0.5897","v":3.4972000000000003},{"$f":" -0.00246*CA^2 + 2.7034*CA + 37.062","v":166.08199999999999},{"$f":" -0.0024*CA^2 + 2.5865*CA + 35.003","v":158.32799999999997},{"$f":" -0.00273*CA^2 + 2.544*CA + 31.143","v":151.518},{"$f":" -0.00196*CA^2 + 1.8669*CA + 23.193","v":111.63799999999999},{"$f":" -0.00193*CA^2 + 2.1406*CA + 24.12","v":126.325},{"$f":" -0.000039*CA^2 + 0.0603*CA + 1.5261","v":4.4436},{"$f":" -0.000049*CA^2 + 0.0506*CA + 0.5289","v":2.9363999999999999},"0,23-0,41 kg",null,null,null,null,null,null,null,null,null,null,null,null,null,29,"Köpekdişi (Bermudagrass) Kuru Otu ",89,1.9,10,7,6,1.8,0.46,0.2,30,78,53,2.2999999999999998,1.2,0.4,1.2,39,98,1.9,8,1.5,null,0.25,33,11.6,null,11,0,1]
[null,null,null,null,null,null,"VitE,IU",{"$f":"VLOOKUP(Koyun,KoyunReqs,12,FALSE)","v":0},null,null,null,null,null,null,null,null,null,null,null,"Tek Kuzu",null,null,null,"TOPLAM",{"$f":"SUM(Y35:Y60)","v":0.7705082528128776},{"$f":"SUM(Z35:Z60)","v":1.0242330003859561},1.9053461500000797,78.43368605030291,54.881067150301377,60.628794382005836,49.000281487500054,3.3473259994399611,2.5474088699340229,0.34514084585711979,0.656713291267496,null,null,null,null,null,null,null,null,null,null,null,null,null,null,null,null,null,"Koyun, Geç laktasyon, İkiz kuzu, 1 yaşında",{"$f":" (-0.000032*CA^2 + 0.0316*CA + 0.3345)*1.15","v":2.1096749999999997},{"$f":" -0.000072*CA^2 + 0.0683*CA + 0.9029","v":4.1379000000000001},{"$f":" -0.00715*CA^2 + 4.0195*CA + 15.864","v":198.964},{"$f":" -0.006*CA^2 + 3.7455*CA + 15.639","v":187.91399999999999},{"$f":" -0.006*CA^2 + 3.6192*CA + 13.566","v":179.52600000000001},{"$f":" -0.004373*CA^2 + 2.6582*CA + 10.213","v":132.19049999999999},{"$f":" -0.0027*CA^2 + 2.4701*CA + 32.451","v":149.20599999999999},{"$f":" -0.000227*CA^2 + 0.11*CA + 0.2014","v":5.1338999999999997},{"$f":" -0.000199*CA^2 + 0.0886*CA - 0.5504","v":3.3820999999999994},"0,38-0,69 kg",null,null,null,null,null,null,null,null,null,null,null,null,null,30,"Köpekdişi (Bermudagrass), Kuru Otu, Kaliteli",90,2.2000000000000002,16,11.2,11.4,6.4,0.4,0.25,26,40,62,2.7,1.4,0.7,1.4,29,10,3.8,7,1.8,null,0.23,18,null,null,11,0,1]
[null,null,null,null,null,null,"Na,g",{"$f":"VLOOKUP(Koyun,KoyunReqs,13,FALSE)","v":0},null,null,null,null,null,null,null,null,null,null,null,"İkiz Kuzu",null,null,null,"HESAPLAMALAR","KabaY","KM","ME","HP","MP","DIP","RUP","Ca","P","HS","NDF",null,null,null,null,null,null,null,null,null,null,null,null,null,null,null,null,null,"Koyun, Geç laktasyon, Üçüz kuzu, 1 yaşında",{"$f":" 0.00039*CA^2 - 0.03*CA + 2.5","v":1.9750000000000001},{"$f":" -0.000078*CA^2 + 0.0732*CA + 1.1359","v":4.6009000000000002},{"$f":" 0.0105*CA^2 + 1.3002*CA + 135.37","v":226.63},{"$f":" 0.00985*CA^2 + 1.2773*CA + 127.79","v":216.28000000000003},{"$f":" 0.00902*CA^2 + 1.2906*CA + 119.38","v":206.45999999999998},{"$f":" 0.006895*CA^2+ 0.9033*CA + 90.032","v":152.43450000000001},{"$f":" -0.00267*CA^2 + 2.6133*CA + 41.972","v":165.96200000000002},{"$f":" 0.000408*CA^2 + 0.0083*CA + 4.5108","v":5.9458000000000002},{"$f":" 0.000448*CA^2 - 0.0166*CA + 3.7296","v":4.0195999999999996},"0,55-0,90 kg",null,null,null,null,null,null,null,null,null,null,null,null,null,31,"Kudzu Kuru Otu",90,2,16,11.2,11.4,null,3,0.23,33,null,54,2.4,1.2,0.4,1.2,null,null,2.6,7,null,null,null,null,null,null,11,0,1]
[null,null,null,null,null,null,"Cl,g",{"$f":"VLOOKUP(Koyun,KoyunReqs,14,FALSE)","v":0},null,null,null,null,null,null,null,null,null,null,null,"Üçüz Kuzu",null,null,null,null,null,null,null,null,null,null,null,null,null,null,null,null,null,null,null,null,null,null,null,null,null,null,null,null,null,null,null,null,"Koyun, Geç laktasyon, Sağmal, 1 yaşında",{"$f":" -0.00004*CA^2 + 0.02888*CA + 0.8624","v":2.2063999999999999},{"$f":" -0.00008*CA^2 + 0.05598*CA + 1.5136","v":4.1125999999999996},{"$f":" -0.00357*CA^2+ 2.94844*CA + 96.771","v":235.26799999999997},{"$f":" -0.00321*CA^2+ 2.77818*CA + 93.85","v":224.73399999999998},{"$f":" -0.00357*CA^2+ 2.74845*CA + 85.771","v":214.26850000000002},{"$f":" -0.00262*CA^2+ 2.02044*CA + 63.36","v":157.83199999999999},{"$f":" -0.00239*CA^2+ 1.93085*CA + 54.81","v":145.3775},{"$f":" -0.000084*CA^2+ 0.06907*CA + 3.0283","v":6.2718000000000007},{"$f":" -0.0001*CA^2+ 0.07257*CA + 2.1167","v":5.4951999999999996},"0,87-1,39 kg",null,null,null,null,null,null,null,null,null,null,null,null,null,32,"Mısır Bitkisi, Peletlenmiş",91,2.2999999999999998,9,6.3,5.0999999999999996,4.0999999999999996,0.5,0.24,21,40,63,2.8,1.4,0.7,1.4,24,6,2.4,6,0.9,null,0.14000000000000001,null,null,null,20,0,1]
[null,null,null,null,null,null,"K,g",{"$f":"VLOOKUP(Koyun,KoyunReqs,15,FALSE)","v":0},null,null,null,null,null,null,null,null,null,null,null,"Sağmal",null,null,null,{"$f":"X5","v":"Arpa Samanı"},{"$f":"IF(X5=0,0,IF(OR(A5=1,A5=2,A5=3)=TRUE,Z35,0))","v":0.7705082528128776},{"$f":"IF($X5=0,0,IF(ISERROR(Y5*Z5/100)=TRUE,0,Y5*Z5/100))","v":0.7705082528128776},{"$f":"IF($X5=0,0,IF(ISERROR(Z35*AA5)=TRUE,0,Z35*AA5))","v":1.2328132045006042},{"$f":"IF($X5=0,0,IF(ISERROR(Z35*AB5*10)=TRUE,0,Z35*AB5*10))","v":30.820330112515105},{"$f":"IF($X5=0,0,IF(ISERROR(Z35*AC5*10)=TRUE,0,Z35*AC5*10))","v":21.574231078760569},{"$f":"IF($X5=0,0,IF(ISERROR(Z35*AD5*10)=TRUE,0,Z35*AD5*10))","v":4.6230495168772654},{"$f":"IF($X5=0,0,IF(ISERROR(Z35*AE5*10)=TRUE,0,Z35*AE5*10))","v":21.574231078760569},{"$f":"IF($X5=0,0,IF(ISERROR(Z35*AF5*10)=TRUE,0,Z35*AF5*10))","v":2.5426772342824959},{"$f":"IF($X5=0,0,IF(ISERROR(Z35*AG5*10)=TRUE,0,Z35*AG5*10))","v":0.61640660225030208},{"$f":"IF($X5=0,0,IF(ISERROR(Z35*AH5/100)=TRUE,0,Z35*AH5/100))","v":0.32361346618140857},{"$f":"IF($X5=0,0,IF(ISERROR(Z35*AI5/100)=TRUE,0,Z35*AI5/100))","v":0.6009964371940445},null,null,null,null,null,null,null,null,null,null,null,null,null,null,null,null,null,"Koç, Yaşama payı, , ",{"$f":" -0.0000095*CA^2 + 0.015*CA + 0.363","v":1.0892499999999998},{"$f":" -0.0000195*CA^2 + 0.0289*CA + 0.689","v":2.0852499999999998},{"$f":" -0.00043*CA^2 + 1.0502*CA + 27.4","v":78.834999999999994},{"$f":" -0.00072*CA^2+ 1.0996*CA + 19.2","v":72.38},{"$f":" -0.000435*CA^2 + 0.9702*CA + 24.4","v":71.822499999999991},{"$f":" -0.000365*CA^2 + 0.7298*CA + 16.6","v":52.177500000000002},{"$f":" -0.00062*CA^2 + 1.0151*CA + 26.7","v":75.905000000000001},{"$f":" -0.0000184*CA^2 + 0.0245*CA + 1.03","v":2.2090000000000001},{"$f":" -0.0000365*CA^2 + 0.033*CA + 0.16","v":1.71875},null,null,null,null,null,null,null,null,null,null,null,null,null,null,33,"Mısır Kuru Otu",80,2.4,9,6.3,5.0999999999999996,4.0999999999999996,0.5,0.25,25,48,67,3,1.5,0.9,1.5,29,100,2.4,7,0.9,0.2,0.14000000000000001,null,526.4,null,2,0,1]
[null,null,null,null,null,null,"Mg,g",{"$f":"VLOOKUP(Koyun,KoyunReqs,16,FALSE)","v":0},null,null,null,null,null,null,null,null,null,null,null,null,null,null,null,"Yonca Kuru Otu, Olgun",0,0,0,0,0,0,0,0,0,0,0,null,null,null,null,null,null,null,null,null,null,null,null,null,null,null,null,null,"Koç, Flaşing, , ",{"$f":" -0.000012*CA^2 + 0.0167*CA + 0.396","v":1.2010000000000001},{"$f":" -0.000021*CA^2 + 0.0317*CA + 0.762","v":2.2945000000000002},{"$f":" -0.0007*CA^2+ 1.2955*CA + 27.5","v":90.525000000000006},{"$f":" -0.00061*CA^2+ 1.2151*CA + 28.7","v":87.93},{"$f":" -0.00062*CA^2 + 1.1751*CA + 25.7","v":82.905000000000001},{"$f":" -0.000545*CA^2+ 0.8947*CA + 16.9","v":60.272500000000001},{"$f":" -0.000875*CA^2 + 1.1804*CA + 24.8","v":81.632499999999993},{"$f":" -0.0000255*CA^2+ 0.0285*CA + 1.01","v":2.3712499999999999},{"$f":" -0.0000255*CA^2 + 0.0325*CA + 0.41","v":1.9712499999999999},null,null,null,null,null,null,null,null,null,null,null,null,null,null,34,"Mısır Sapları",80,2.1,5,3.5,1.5,1.5,0.35,0.19,35,70,59,2.6,1.3,0.6,1.3,44,100,1.3,7,1.1000000000000001,0.3,0.14000000000000001,22,null,null,2,0,1]
[null,null,null,null,null,null,"S,g",{"$f":"VLOOKUP(Koyun,KoyunReqs,17,FALSE)","v":0},null,null,null,null,null,null,null,null,null,null,null,"Yaşı, Koyun+Yaşama Payı",null,null,null,"Arpa, Tane",0,0.13787748967562194,0.41363246902686579,16.545298761074633,11.581709132752243,10.754444194698511,4.6878346489711458,8.2726493805373169E-2,0.52393446076736339,6.8938744837810971E-3,2.7575497935124389E-2,null,null,null,null,null,null,null,null,null,null,null,null,null,null,null,null,null,"Dişi Kuzu, Geç Erginleşen, , 4 aylık",{"$f":"(0.014+0.0052*CA)+0.0044*GCAA","v":0.27400000000000002},{"$f":"IF(CA<30,(0.00326*GCAA+0.7667),  IF(CA<60,(0.00000016*CA^2 - 0.000009*CA + 0.0058)*GCAA+(-0.0000415*CA^2+0.0128*CA+0.0541),  ( 0.000000315*CA^2 - 0.00004*CA + 0.0096)*GCAA+ (-0.0000415*CA^2+0.0128*CA+0.0541) ))","v":0.59035000000000004},{"$f":"IF(CA<30,(-0.00005*GCAA^2+0.415*GCAA+35),  IF(CA<40,(0.00006678*GCAA^2+0.4433*GCAA+30),  IF(CA<50,(0.4*GCAA+71),  IF(CA<60,(-0.00005*GCAA^2+0.535*GCAA+22),  IF(CA<70,(0.00022852*GCAA^2+0.2286*GCAA+110.57),  IF(CA<80,(-0.0000163*GCAA^2+0.5733*GCAA+45.389), (0.0000166*GCAA^2+0.5517*GCAA+54)))))))","v":22},{"$f":"IF(CA<30,(-0.00005*GCAA^2+0.395*GCAA+34),  IF(CA<40,(0.46*GCAA+24),  IF(CA<50,(0.3333*GCAA+79.667),  IF(CA<60,(0.46*GCAA+34),  IF(CA<70,(0.00022854*GCAA^2+0.2086*GCAA+107.57),  IF(CA<80,(-0.00001395*GCAA^2+0.5463*GCAA+43.342), (-0.00001395*GCAA^2+0.5463*GCAA+48.342)))))))","v":34},{"$f":"IF(CA<30,(0.36*GCAA+34),  IF(CA<40,(0.37*GCAA+51),  IF(CA<50,(0.368*GCAA+64),  IF(CA<60,(0.38857*GCAA+63.857),  IF(CA<70,(0.38858*GCAA+68.857),  IF(CA<80,(0.51429*GCAA+42.857), (0.51429*GCAA+47.857)))))))","v":63.856999999999999},{"$f":"IF(CA<30,(0.265*GCAA+24.5),  IF(CA<40,(0.27*GCAA+38),  IF(CA<50,(0.268*GCAA+48),  IF(CA<60,(0.28572*GCAA+47.571),  IF(CA<70,(0.28572*GCAA+50.571),  IF(CA<80,(0.37714*GCAA+31.429), (0.37714*GCAA+35.429)))))))","v":47.570999999999998},{"$f":"IF(CA<30,(0.12*GCAA+27),  IF(CA<40,(0.115*GCAA+50),  IF(CA<50,(0.12*GCAA+61),  IF(CA<60,(0.14571*GCAA+58.571),  IF(CA<70,(0.14571*GCAA+62.571),  IF(CA<80,(0.3*GCAA+27), (0.30285*GCAA+29.571)))))))","v":58.570999999999998},{"$f":"IF(CA<30,(0.014*GCAA+0.9),  IF(CA<40,(0.014*GCAA+1.3),  IF(CA<50,(0.0144*GCAA+1.4),  IF(CA<60,(0.01457*GCAA+1.4571),  IF(CA<70,(0.01486*GCAA+1.3857),  IF(CA<80,(0.01771*GCAA+0.7429), (0.018*GCAA+0.7)))))))","v":1.4571000000000001},{"$f":"IF(CA<30,(0.01*GCAA+0.5),IF(CA<40,(0.0105*GCAA+0.8),IF(CA<50,(0.0104*GCAA+1.1),IF(CA<60,(0.00001106*GCAA^2+0.0015*GCAA+2.7286),IF(CA<70,(0.00000452*GCAA^2+0.007*GCAA+1.7714),IF(CA<80,(0.01429*GCAA+0.2571),(0.01429*GCAA+0.3571)))))))","v":2.7286000000000001},"GCAA 100-600 g",null,null,null,null,null,null,null,null,null,null,null,null,null,35,"Pamuk Çırçır Artığı",91,1.5,10,7,6,null,1.7,0.25,34,70,42,1.9,0.9,0,0.9,51,100,2,14,1.9,null,0.14000000000000001,25,null,null,8,0,1]
[null,null,null,null,null,null,"Co,mg",{"$f":"VLOOKUP(Koyun,KoyunReqs,18,FALSE)","v":0},null,null,null,null,null,null,null,null,null,null,null,null,null,null,null,"PAMUK TOHUMU KÜSPESİ, SOLVENT, % 25",0,0.11256542455330859,0.25890047647260972,31.068057176713172,21.725126938788559,45.251300670430055,22.738215759768337,0.24764393401727891,1.4070678069163574,1.4633505191930116E-2,2.8141356138327148E-2,null,null,null,null,null,null,null,null,null,null,null,null,null,null,null,null,null,"Dişi Kuzu, Erken Erginleşen, , 4 aylık",{"$f":"(-0.1027+0.0224*CA)+0.00227*GCAA","v":1.0172999999999999},{"$f":"IF(CA<30,(0.000032*GCAA^2-0.0008*GCAA+1.27),  IF(CA<40,(0.0000352*GCAA^2-0.0122*GCAA+3.89),  IF(CA<50,(0.00001185*GCAA^2+0.00002*GCAA+2.8533),  IF(CA<60,(0.0000088*GCAA^2+0.0022*GCAA+2.6171),  IF(CA<70,(-0.00001505*GCAA^2+0.0224*GCAA-0.8443),  IF(CA<80,(-0.0000114*GCAA^2+0.0141*GCAA+2), (0.00001795*GCAA^2-0.0034*GCAA+4.4267)))))))","v":2.6171000000000002},{"$f":"IF(CA<30,(0.00035*GCAA^2+0.255*GCAA+41),  IF(CA<40,(0.365*GCAA+52),  IF(CA<50,(0.0004133*GCAA^2+0.058*GCAA+114.67),  IF(CA<60,(0.00034293*GCAA^2+0.0971*GCAA+115.29),  IF(CA<70,(0.0003166*GCAA^2+0.0817*GCAA+139),  IF(CA<80,(0.0001*GCAA^2+0.255*GCAA+111.5), (0.00036*GCAA^2+0.186*GCAA+121)))))))","v":115.29},{"$f":"IF(CA<30,(0.0003*GCAA^2+0.26*GCAA+37),  IF(CA<40,(0.0006*GCAA^2-0.01*GCAA+97),  IF(CA<50,(0.0003867*GCAA^2+0.062*GCAA+108.33),  IF(CA<60,(0.00030945*GCAA^2+0.1055*GCAA+108.29),  IF(CA<70,(0.00019426*GCAA^2+0.2063*GCAA+95.286),  IF(CA<80,(0.368*GCAA+89.8), (0.00032*GCAA^2+0.192*GCAA+114)))))))","v":108.29},{"$f":"IF(CA<30,(0.36*GCAA+28),  IF(CA<40,(0.335*GCAA+47),  IF(CA<50,(0.336*GCAA+58),  IF(CA<60,(0.35429*GCAA+58.429),  IF(CA<70,(0.35429*GCAA+63.429),  IF(CA<80,(0.29142*GCAA+95.286), (0.38285*GCAA+86.571)))))))","v":58.429000000000002},{"$f":"IF(CA<30,(0.265*GCAA+20.5),  IF(CA<40,(0.245*GCAA+35),  IF(CA<50,(0.248*GCAA+42),  IF(CA<60,(0.26*GCAA+43),  IF(CA<70,(0.26*GCAA+47),  IF(CA<80,(0.21714*GCAA+69.429), (0.28*GCAA+64)))))))","v":43},{"$f":"IF(CA<30,(0.345*GCAA+20.5),  IF(CA<40,(0.32*GCAA+39),  IF(CA<50,(0.32*GCAA+50),  IF(CA<60,(0.34286*GCAA+48.286),  IF(CA<70,(0.34286*GCAA+52.286),  IF(CA<80,(0.28286*GCAA+82.571), (0.37714*GCAA+71.429)))))))","v":48.286000000000001},{"$f":"IF(CA<30,(0.014*GCAA+0.7),  IF(CA<40,(0.0135*GCAA+1),  IF(CA<50,(0.0132*GCAA+1.3),  IF(CA<60,(0.014*GCAA+1.1),  IF(CA<70,(0.01371*GCAA+1.2714),  IF(CA<80,(0.01229*GCAA+1.8571), (0.01429*GCAA+1.6571)))))))","v":1.1000000000000001},{"$f":"IF(CA<30,(0.0125*GCAA+0.25),IF(CA<40,(0.012*GCAA+0.6),IF(CA<50,(0.0116*GCAA+0.9),IF(CA<60,(0.01229*GCAA+0.7286),IF(CA<70,(0.012*GCAA+0.9),IF(CA<80,(0.01058*GCAA+1.5143),(0.01286*GCAA+1.2714)))))))","v":0.72860000000000003},"GCAA 100-600 g",null,null,null,null,null,null,null,null,null,null,null,null,null,36,"Parlak Yalancı Darı (Bahiagrass) Kuru Otu ",90,1.8,8,5.6,4.2,3,0.48,0.2,32,72,51,2.2000000000000002,1.1000000000000001,0.3,1.1000000000000001,41,98,1.9,8,1.4,null,0.21,null,36.6,null,9,0,1]
[null,null,null,null,null,null,"Cu,mg",{"$f":"VLOOKUP(Koyun,KoyunReqs,19,FALSE)","v":0},null,null,null,null,null,null,null,null,null,null,null,"1 yaşında",null,null,null,"Dikalsiyum Fosfat ",0,0,0,0,0,0,0,0,0,0,0,null,null,null,null,null,null,null,null,null,null,null,null,null,null,null,null,null,"Dişi Kuzu, Geç Erginleşen, , 8 aylık",{"$f":"(0.1438+0.021*CA)+0.00141*GCAA","v":1.1938},{"$f":"IF(CA<30,(0.000006*GCAA^2+0.004*GCAA+0.95),  IF(CA<40,(0.000044*GCAA^2-0.0172*GCAA+4.14),  IF(CA<50,(-0.0000125*GCAA^2+0.0155*GCAA+0.005),  IF(CA<60,(-0.0000098*GCAA^2+0.015*GCAA+0.1625),  IF(CA<70,(-0.00001025*GCAA^2+0.0127*GCAA+1.9043),  IF(CA<80,(0.0000066*GCAA^2+0.0029*GCAA+2.8129), (0.00000645*GCAA^2+0.0031*GCAA+2.9714)))))))","v":0.16250000000000001},{"$f":"IF(CA<30,(0.00025*GCAA^2+0.315*GCAA+39),  IF(CA<40,(0.0005*GCAA^2+0.09*GCAA+91),  IF(CA<50,(0.00029335*GCAA^2+0.176*GCAA+97.667),  IF(CA<60,(0.0002666*GCAA^2+0.1567*GCAA+121),  IF(CA<70,(0.0002381*GCAA^2+0.1119*GCAA+165.14),  IF(CA<80,(0.00025709*GCAA^2+0.2586*GCAA+110.43), (0.00029709*GCAA^2+0.2326*GCAA+121.43)))))))","v":121},{"$f":"IF(CA<30,(0.00025*GCAA^2+0.295*GCAA+38),  IF(CA<40,(0.42*GCAA+30),  IF(CA<50,(0.00029332*GCAA^2+0.156*GCAA+95.667),  IF(CA<60,(0.000154248*GCAA^2+0.2603*GCAA+85.286),  IF(CA<70,(0.0002143*GCAA^2+0.1207*GCAA+154.43),  IF(CA<80,(0.00021708*GCAA^2+0.2646*GCAA+103.43), (0.00025709*GCAA^2+0.2386*GCAA+113.43)))))))","v":85.286000000000001},{"$f":"IF(CA<30,(0.375*GCAA+29.5),  IF(CA<40,(0.36*GCAA+45),  IF(CA<50,(0.364*GCAA+55),  IF(CA<60,(0.37429*GCAA+59.429),  IF(CA<70,(0.28571*GCAA+118.57),  IF(CA<80,(0.38858*GCAA+83.714), (0.38858*GCAA+89.714)))))))","v":59.429000000000002},{"$f":"IF(CA<30,(0.28*GCAA+21),  IF(CA<40,(0.265*GCAA+33),  IF(CA<50,(0.264*GCAA+42),  IF(CA<60,(0.27429*GCAA+44.429),  IF(CA<70,(0.21143*GCAA+87.143),  IF(CA<80,(0.28572*GCAA+61.143), (0.28572*GCAA+66.143)))))))","v":44.429000000000002},{"$f":"IF(CA<30,(0.23*GCAA+28),  IF(CA<40,(0.215*GCAA+46),  IF(CA<50,(0.22*GCAA+57),  IF(CA<60,(0.23429*GCAA+61.429),  IF(CA<70,(0.14285*GCAA+124.29),  IF(CA<80,(0.26*GCAA+83), (0.26286*GCAA+89.571)))))))","v":61.429000000000002},{"$f":"IF(CA<30,(0.014*GCAA+0.8),  IF(CA<40,(0.014*GCAA+1),  IF(CA<50,(0.014*GCAA+1.2),  IF(CA<60,(0.01429*GCAA+1.2286),  IF(CA<70,(0.012*GCAA+2.7),  IF(CA<80,(0.01458*GCAA+1.7143), (0.01458*GCAA+1.8143)))))))","v":1.2285999999999999},{"$f":"IF(CA<30,(0.0115*GCAA+0.35),IF(CA<40,(0.011*GCAA+0.7),IF(CA<50,(0.0112*GCAA+0.8),IF(CA<60,(0.01143*GCAA+0.8429),IF(CA<70,(0.00914*GCAA+2.3143),IF(CA<80,(0.01171*GCAA+1.3429),(0.01171*GCAA+1.4429)))))))","v":0.84289999999999998},"GCAA 100-600 g",null,null,null,null,null,null,null,null,null,null,null,null,null,37,"Pirinç Kabukları",92,0.5,3,2.1,0.3,1.4,0.14000000000000001,7.0000000000000007E-2,44,81,13,0.6,0.8,0,0.2,70,90,0.9,20,0.5,0.08,0.08,24,null,null,5,0,1]
[null,null,null,null,null,null,"I,mg",{"$f":"VLOOKUP(Koyun,KoyunReqs,20,FALSE)","v":0},null,null,null,null,null,null,null,null,null,null,null,"1,5 yaş üzeri",null,null,null,"Mermer Tozu",0,1.2818333441481429E-3,0,0,0,0,0,0.47427833733481295,0,0,0,null,null,null,null,null,null,null,null,null,null,null,null,null,null,null,null,null,"Dişi Kuzu, Erken Erginleşen, , 8 aylık",{"$f":"(0.0042+0.00001*CA)*GCAA+(0.0065-0.00005*CA^2+0.0108*CA)","v":0.42150000000000004},{"$f":"(-0.00000008*CA^2 + 0.000026*CA + 0.0124)*GCAA + (-0.000039*CA^2 + 0.02195*CA + 0.1751)","v":1.1751000000000003},{"$f":"IF(CA<30,(-0.00005*GCAA^2+0.445*GCAA+24),  IF(CA<40,(0.43*GCAA+33),  IF(CA<50,(-0.00001335*GCAA^2+0.442*GCAA+39.333),  IF(CA<60,(0.44*GCAA+46),  IF(CA<70,(0.00001395*GCAA^2+0.4309*GCAA+55.429),  IF(CA<80,(0.0001095*GCAA^2+0.2174*GCAA+146.93), (0.00012862*GCAA^2+0.2021*GCAA+157.79)))))))","v":46},{"$f":"IF(CA<30,(-0.00005*GCAA^2+0.425*GCAA+23),  IF(CA<40,(0.41*GCAA+32),  IF(CA<50,(-0.00001915*GCAA^2+0.4259*GCAA+36.804),  IF(CA<60,(0.42*GCAA+44),  IF(CA<70,(-0.00001645*GCAA^2+0.4366*GCAA+47.893),  IF(CA<80,(0.00010475*GCAA^2+0.2062*GCAA+140.71), (0.0001237*GCAA^2+0.191*GCAA+150.57)))))))","v":44},{"$f":"IF(CA<30,(0.39*GCAA+23),  IF(CA<40,(0.39*GCAA+31),  IF(CA<50,(0.396*GCAA+37),  IF(CA<60,(0.4*GCAA+43),  IF(CA<70,(0.40286*GCAA+49.286),  IF(CA<80,(0.26*GCAA+128), (0.26*GCAA+135)))))))","v":43},{"$f":"IF(CA<30,(0.285*GCAA+17.5),  IF(CA<40,(0.29*GCAA+22),  IF(CA<50,(0.292*GCAA+27),  IF(CA<60,(0.29429*GCAA+31.429),  IF(CA<70,(0.29714*GCAA+35.714),  IF(CA<80,(0.19142*GCAA+94.286), (0.191422*GCAA+99.286)))))))","v":31.428999999999998},{"$f":"IF(CA<30,(0.46*GCAA+22),  IF(CA<40,(0.475*GCAA+28),  IF(CA<50,(0.48*GCAA+36),  IF(CA<60,(0.48571*GCAA+42.571),  IF(CA<70,(0.43714*GCAA+82.714),  IF(CA<80,(0.36*GCAA+125), (0.36287*GCAA+131.57)))))))","v":42.570999999999998},{"$f":"IF(CA<30,(0.0145*GCAA+0.55),  IF(CA<40,(0.015*GCAA+0.5),  IF(CA<50,(0.0148*GCAA+0.7),  IF(CA<60,(0.01486*GCAA+0.6857),  IF(CA<70,(0.01343*GCAA+1.6429),  IF(CA<80,(0.01142*GCAA+2.5857), (0.01142*GCAA+2.6857)))))))","v":0.68569999999999998},{"$f":"IF(CA<30,(0.014*GCAA+0.1),IF(CA<40,(0.014*GCAA+0.2),IF(CA<50,(0.014*GCAA+0.3),IF(CA<60,(0.01429*GCAA+0.2286),IF(CA<70,(0.01257*GCAA+1.3571),IF(CA<80,(0.01029*GCAA+2.3571),(0.01029*GCAA+2.4571)))))))","v":0.2286},"GCAA 100-600 g",null,null,null,null,null,null,null,null,null,null,null,null,null,38,"Pirinç Samanı",91,1.4,4,2.8,0.6,null,0.25,0.08,40,72,40,1.8,0.9,0,0.8,55,100,1.4,12,1.1000000000000001,null,0.11,null,null,null,3.5,0,1]
[null,null,null,null,null,null,"Fe,mg",{"$f":"VLOOKUP(Koyun,KoyunReqs,21,FALSE)","v":0},null,null,null,null,null,null,null,null,null,null,null,null,null,null,null,"Tuz",0,1E-3,0,0,0,0,0,0,0,0,0,null,null,null,null,null,null,null,null,null,null,null,null,null,null,null,null,null,"Erkek kuzu, Geç Erginleşen, , 4 aylık",{"$f":"IF(CA<30,(0.0000005*GCAA^2-0.00005*GCAA+0.6),  IF(CA<40,(0.0024*GCAA+0.19),  IF(CA<50,(-0.00002*GCAA^2+0.015*GCAA-1.15),  IF(CA<60,(0.0000062*GCAA^2-0.0043*GCAA+2.1171),  IF(CA<70,(-0.000012*GCAA^2+0.0109*GCAA-0.4957),  IF(CA<80,(0.0044*GCAA+0.45), (0.00445*GCAA+0.4906)))))))","v":2.1171000000000002},{"$f":"IF(CA<30,(0.00325*GCAA+0.8167),  IF(CA<40,(0.0000308*GCAA^2-0.0149*GCAA+3.784),  IF(CA<50,(0.0000168*GCAA^2-0.00918*GCAA+3.8567),  IF(CA<60,(0.0000105*GCAA^2-0.0046*GCAA+3.2396),  IF(CA<70,(-0.000022*GCAA^2+0.0224*GCAA-1.4071),  IF(CA<80,(0.00844*GCAA+0.8558), (0.00848*GCAA+0.9502)))))))","v":3.2395999999999998},{"$f":"IF(CA<30,(-0.00005*GCAA^2+0.415*GCAA+36),  IF(CA<40,(0.4*GCAA+59),  IF(CA<50,(0.4*GCAA+73),  IF(CA<60,(-0.00005*GCAA^2+0.535*GCAA+24),  IF(CA<70,(0.00026854*GCAA^2+0.1946*GCAA+119.57),  IF(CA<80,(-0.00001145*GCAA^2+0.5703*GCAA+48.714), (-0.00001145*GCAA^2+0.5703*GCAA+54.714)))))))","v":24},{"$f":"IF(CA<30,(0.00005*GCAA^2+0.355*GCAA+38),  IF(CA<40,(0.3*GCAA+73),  IF(CA<50,(0.33332*GCAA+81.667),  IF(CA<60,(0.40286*GCAA+70.286),  IF(CA<70,(0.305*GCAA+135),  IF(CA<80,(-0.00001422*GCAA^2+0.5464*GCAA+46.357), (0.54*GCAA+52)))))))","v":70.286000000000001},{"$f":"IF(CA<30,(0.365*GCAA+33.5),  IF(CA<40,(0.365*GCAA+54),  IF(CA<50,(0.364*GCAA+67),  IF(CA<60,(0.38858*GCAA+65.857),  IF(CA<70,(0.38571*GCAA+72.571),  IF(CA<80,(0.51714*GCAA+44.429), (0.51714*GCAA+49.429)))))))","v":65.856999999999999},{"$f":"IF(CA<30,(0.265*GCAA+25.5),  IF(CA<40,(0.27*GCAA+39),  IF(CA<50,(0.272*GCAA+48),  IF(CA<60,(0.28572*GCAA+48.571),  IF(CA<70,(0.28572*GCAA+52.571),  IF(CA<80,(0.38*GCAA+33), (0.38*GCAA+37)))))))","v":48.570999999999998},{"$f":"IF(CA<30,(0.12*GCAA+29),  IF(CA<40,(0.12*GCAA+51),  IF(CA<50,(0.12*GCAA+64),  IF(CA<60,(0.14572*GCAA+62.571),  IF(CA<70,(0.14572*GCAA+66.571),  IF(CA<80,(0.30572*GCAA+30.143), (0.30572*GCAA+34.143)))))))","v":62.570999999999998},{"$f":"IF(CA<30,(0.014*GCAA+0.9),  IF(CA<40,(0.014*GCAA+1.3),  IF(CA<50,(0.014*GCAA+1.6),  IF(CA<60,(0.01486*GCAA+1.3857),  IF(CA<70,(0.01457*GCAA+1.5571),  IF(CA<80,(0.018*GCAA+0.7), (0.018*GCAA+0.8)))))))","v":1.3856999999999999},{"$f":"IF(CA<30,(0.01*GCAA+0.5),IF(CA<40,(0.01*GCAA+1),IF(CA<50,(0.0104*GCAA+1.1),IF(CA<60,(0.01086*GCAA+1.0857),IF(CA<70,(0.01086*GCAA+1.1857),IF(CA<80,(0.01429*GCAA+0.3571),(0.01458*GCAA+0.3143)))))))","v":1.0857000000000001},"GCAA 100-600 g",null,null,null,null,null,null,null,null,null,null,null,null,null,39,"Pirinç Samanı, Amonyakla muamele",87,1.6,9,6.3,5.0999999999999996,null,0.25,0.08,39,68,45,2,1,0.1,1,53,100,1.3,12,1.1000000000000001,null,0.11,null,null,null,4,0,1]
[null,null,null,null,null,null,"Mn,mg",{"$f":"VLOOKUP(Koyun,KoyunReqs,22,FALSE)","v":0},null,null,null,null,null,null,null,null,null,null,null,"Yaşı, Koyun+Flaşing",null,null,null,{"$f":"X12","v":"Vitamin-Mineral Karması"},{"$f":"IF(X12=0,0,IF(OR(A12=1,A12=2,A12=3)=TRUE,Z42,0))","v":0},{"$f":"IF($X12=0,0,IF(ISERROR(Y12*Z12/100)=TRUE,0,Y12*Z12/100))","v":1.0000000000000002E-3},{"$f":"IF($X12=0,0,IF(ISERROR(Z42*AA12)=TRUE,0,Z42*AA12))","v":0},{"$f":"IF($X12=0,0,IF(ISERROR(Z42*AB12*10)=TRUE,0,Z42*AB12*10))","v":0},{"$f":"IF($X12=0,0,IF(ISERROR(Z42*AC12*10)=TRUE,0,Z42*AC12*10))","v":0},{"$f":"IF($X12=0,0,IF(ISERROR(Z42*AD12*10)=TRUE,0,Z42*AD12*10))","v":0},{"$f":"IF($X12=0,0,IF(ISERROR(Z42*AE12*10)=TRUE,0,Z42*AE12*10))","v":0},{"$f":"IF($X12=0,0,IF(ISERROR(Z42*AF12*10)=TRUE,0,Z42*AF12*10))","v":0},{"$f":"IF($X12=0,0,IF(ISERROR(Z42*AG12*10)=TRUE,0,Z42*AG12*10))","v":0},{"$f":"IF($X12=0,0,IF(ISERROR(Z42*AH12/100)=TRUE,0,Z42*AH12/100))","v":0},{"$f":"IF($X12=0,0,IF(ISERROR(Z42*AI12/100)=TRUE,0,Z42*AI12/100))","v":0},null,null,null,null,null,null,null,null,null,null,null,null,null,null,null,null,null,"Erkek kuzu, Erken Erginleşen, , 4 aylık",{"$f":"IF(CA<30,(0.00001*GCAA^2-0.00113*GCAA+0.6627),  IF(CA<40,(0.0037*GCAA+0.1637),  IF(CA<50,(0.00001*GCAA^2-0.00562*GCAA+2.3267),  IF(CA<60,(0.000007*GCAA^2-0.0033*GCAA+1.9862),  IF(CA<70,(0.000007*GCAA^2-0.0033*GCAA+2.0362),  IF(CA<80,(-0.0000152*GCAA^2+0.0108*GCAA+0.6029), (0.000008*GCAA^2-0.00204*GCAA+2.0686)))))))","v":1.9862},{"$f":"IF(CA<30,(0.0000114*GCAA^2+0.0054*GCAA+0.9018),  IF(CA<40,(-0.00000056*GCAA^2+0.011*GCAA+0.401),  IF(CA<50,(0.000012*GCAA^2+2.94),  IF(CA<60,(0.0000074*GCAA^2+0.0035*GCAA+2.4859),  IF(CA<70,(0.0000072*GCAA^2+0.0037*GCAA+2.5667),  IF(CA<80,(0.000003*GCAA^2+0.006*GCAA+2.6307), (0.000014*GCAA^2+0.0019*GCAA+3.1044)))))))","v":2.4859},{"$f":"IF(CA<30,(0.00035*GCAA^2+0.255*GCAA+42),IF(CA<40,(0.00013325*GCAA^2+0.3467*GCAA+40),IF(CA<50,(0.0004133*GCAA^2+0.058*GCAA+116.67),IF(CA<60,(0.00021726*GCAA^2+0.2011*GCAA+100.14),IF(CA<70,(0.00021725*GCAA^2+0.2011*GCAA+106.14),IF(CA<80,(0.0000666*GCAA^2+0.2767*GCAA+112),(0.00036*GCAA^2+0.186*GCAA+125)))))))","v":100.14},{"$f":"IF(CA<30,(0.38*GCAA+29),  IF(CA<40,(0.00005*GCAA^2+0.385*GCAA+29),  IF(CA<50,(0.3067*GCAA+73.333),  IF(CA<60,(0.3714*GCAA+63.143),  IF(CA<70,(0.3714*GCAA+69.143),  IF(CA<80,(0.00006*GCAA^2+0.2655*GCAA+106.79), (0.4*GCAA+94)))))))","v":63.143000000000001},{"$f":"IF(CA<30,(0.36*GCAA+29),  IF(CA<40,(0.395*GCAA+24),  IF(CA<50,(0.336*GCAA+60),  IF(CA<60,(0.35429*GCAA+60.429),  IF(CA<70,(0.35429*GCAA+66.429),  IF(CA<80,(0.29142*GCAA+98.286), (0.38286*GCAA+89.571)))))))","v":60.429000000000002},{"$f":"IF(CA<30,(0.27*GCAA+20),  IF(CA<40,(0.29*GCAA+18),  IF(CA<50,(0.248*GCAA+44),  IF(CA<60,(0.26*GCAA+45),  IF(CA<70,(0.26*GCAA+49),  IF(CA<80,(0.21714*GCAA+71.429), (0.28286*GCAA+65.571)))))))","v":45},{"$f":"IF(CA<30,(0.35*GCAA+21),  IF(CA<40,(0.385*GCAA+16),  IF(CA<50,(0.324*GCAA+52),  IF(CA<60,(0.34571*GCAA+51.571),  IF(CA<70,(0.34858*GCAA+54.857),  IF(CA<80,(0.28571*GCAA+87.143), (0.38*GCAA+77)))))))","v":51.570999999999998},{"$f":"IF(CA<30,(0.014*GCAA+0.7),IF(CA<40,(0.0145*GCAA+0.6),IF(CA<50,(0.0136*GCAA+1.2),IF(CA<70,(0.01371*GCAA+1.2714),IF(CA<80,(0.01229*GCAA+1.9571),(0.01458*GCAA+1.6143))))))","v":1.2714000000000001},{"$f":"IF(CA<30,(0.0125*GCAA+0.25),IF(CA<40,(0.0135*GCAA),IF(CA<50,(0.012*GCAA+0.8),IF(CA<60,(0.012*GCAA+0.9),IF(CA<70,(0.01229*GCAA+0.8286),IF(CA<80,(0.01058*GCAA+1.6143),(0.01314*GCAA+1.2286)))))))","v":0.9},"GCAA 100-600 g",null,null,null,null,null,null,null,null,null,null,null,null,null,40,"Sarı Çiçekli Gazal Boynuzu (Birdsfoot) Kuru Otu",89,2.1,16,11.2,11.4,3.5,1.73,0.24,31,50,57,2.5,1.3,0.6,1.3,38,92,2.2000000000000002,8,1.8,null,0.25,28,null,null,8,0,1]
[null,null,null,null,null,null,"Se,mg",{"$f":"VLOOKUP(Koyun,KoyunReqs,23,FALSE)","v":0},null,null,null,null,null,null,null,null,null,null,null,null,null,null,null,0,0,0,0,0,0,0,0,0,0,0,0,null,null,null,null,null,null,null,null,null,null,null,null,null,null,null,null,null,"Erkek kuzu, Geç Erginleşen, , 8 aylık",{"$f":"IF(CA<30,(0.000008*GCAA^2-0.00135*GCAA+0.68),  IF(CA<40,(0.000013*GCAA^2-0.0066*GCAA+1.89),  IF(CA<50,(-0.0000118*GCAA^2+0.0101*GCAA-0.415),  IF(CA<60,(0.000004*GCAA^2-0.0018*GCAA+1.67),  IF(CA<70,(0.0000043*GCAA^2-0.0021*GCAA+1.83),  IF(CA<80,(0.00375*GCAA+0.7267), (0.0000073*GCAA^2-0.0028*GCAA+2.2729)))))))","v":1.67},{"$f":"IF(CA<30,(0.000006*GCAA^2+0.0041*GCAA+1.03),  IF(CA<40,(0.00001265*GCAA^2-0.0015*GCAA+2.39),  IF(CA<50,(0.0000079*GCAA^2+0.0002*GCAA+2.7333),  IF(CA<60,(0.00000476*GCAA^2+0.0026*GCAA+2.5698),  IF(CA<70,(-0.0000071*GCAA^2+0.0127*GCAA+1.0314),  IF(CA<80,(0.0000096*GCAA^2+0.0013*GCAA+3.2464), (-0.0000264*GCAA^2+0.0251*GCAA+0.6607)))))))","v":2.5697999999999999},{"$f":"IF(CA<30,(0.00035*GCAA^2+0.275*GCAA+44),IF(CA<40,(0.00045*GCAA^2+0.125*GCAA+88),IF(CA<50,(0.00032*GCAA^2+0.152*GCAA+106),IF(CA<60,(0.00025709*GCAA^2+0.1929*GCAA+106.71),IF(CA<70,(0.0002666*GCAA^2+0.1567*GCAA+133),IF(CA<80,(0.00025709*GCAA^2+0.2586*GCAA+116.43),(0.00029709*GCAA^2+0.2326*GCAA+127.43)))))))","v":106.71},{"$f":"IF(CA<30,(0.00025*GCAA^2+0.295*GCAA+39),  IF(CA<40,(0.00045*GCAA^2+0.105*GCAA+86),  IF(CA<50,(0.00029335*GCAA^2+0.156*GCAA+98.667),  IF(CA<60,(0.00024293*GCAA^2+0.1821*GCAA+103.29),  IF(CA<70,(0.00015425*GCAA^2+0.2603*GCAA+96.286),  IF(CA<80,(0.00025709*GCAA^2+0.2386*GCAA+112.43), (0.00025709*GCAA^2+0.2386*GCAA+119.43)))))))","v":103.29},{"$f":"IF(CA<30,(0.38*GCAA+30),  IF(CA<40,(0.36*GCAA+48),  IF(CA<50,(0.36*GCAA+59),  IF(CA<60,(0.37142*GCAA+64.143),  IF(CA<70,(0.37142*GCAA+71.143),  IF(CA<80,(0.38858*GCAA+88.714), (0.38858*GCAA+95.714)))))))","v":64.143000000000001},{"$f":"IF(CA<30,(0.28*GCAA+22),  IF(CA<40,(0.265*GCAA+35),  IF(CA<50,(0.264*GCAA+44),  IF(CA<60,(0.27714*GCAA+45.714),  IF(CA<70,(0.27714*GCAA+50.714),  IF(CA<80,(0.28571*GCAA+65.143), (0.28571*GCAA+71.143)))))))","v":45.713999999999999},{"$f":"IF(CA<30,(0.235*GCAA+30.5),  IF(CA<40,(0.215*GCAA+51),  IF(CA<50,(0.224*GCAA+62),  IF(CA<60,(0.23715*GCAA+67.714),  IF(CA<70,(0.24286*GCAA+74.286),  IF(CA<80,(0.26286*GCAA+92.571), (0.26858*GCAA+98.714)))))))","v":67.713999999999999},{"$f":"IF(CA<30,(0.0145*GCAA+0.75),IF(CA<40,(0.014*GCAA+1.1),IF(CA<50,(0.014*GCAA+1.3),IF(CA<60,(0.01429*GCAA+1.3286),IF(CA<70,(0.01429*GCAA+1.4286),IF(CA<80,(0.01458*GCAA+1.8143),(0.01458*GCAA+1.9143)))))))","v":1.3286},{"$f":"IF(CA<30,(0.0115*GCAA+0.35),IF(CA<40,(0.0115*GCAA+0.6),IF(CA<50,(0.0112*GCAA+0.9),IF(CA<60,(0.01143*GCAA+0.9429),IF(CA<70,(0.01143*GCAA+1.0429),IF(CA<80,(0.012*GCAA+1.4),(0.012*GCAA+1.5)))))))","v":0.94289999999999996},"GCAA 100-600 g",null,null,null,null,null,null,null,null,null,null,null,null,null,41,"Sığır Gübresi, Kurutulmuş",92,1.4,17,11.9,12.3,null,1.35,1,34,55,38,1.7,0.9,0,0.8,37,0,2.6,14,0.6,null,1.78,240,null,null,100,0,1]
[null,null,null,null,null,null,"Zn,mg",{"$f":"VLOOKUP(Koyun,KoyunReqs,24,FALSE)","v":0},null,null,null,null,null,null,null,null,null,null,null,null,null,null,null,0,0,0,0,0,0,0,0,0,0,0,0,null,null,null,null,null,null,null,null,null,null,null,null,null,null,null,null,null,"Erkek kuzu, Erken Erginleşen, , 8 aylık",{"$f":"IF(CA<70, ( -0.00000016*CA^2 + 0.00002*CA + 0.0042)* GCAA+ (0.0000011*CA^2 + 0.00748*CA + 0.0893), IF(CA<80, 0.00000835*GCAA^2-0.0026*GCAA+2.2867,  0.0000087*GCAA^2-0.0029*GCAA+2.4367    ))","v":0.46604999999999996},{"$f":"IF(CA<70,(0.0000235*CA+0.0125)*GCAA+( -0.000102*CA^2 + 0.0296*CA + 0.1306),  (0.0000000074*CA+0.000003)*GCAA^2+0.0079*GCAA+(0.02408*CA+2.2965))","v":1.3556000000000001},{"$f":"IF(CA<30,(0.43*GCAA+27),IF(CA<40,(0.43*GCAA+36),IF(CA<50,(0.44*GCAA+42),IF(CA<60,(0.44*GCAA+51),IF(CA<70,(-0.00005*GCAA^2+0.485*GCAA+59),IF(CA<80,(0.00014762*GCAA^2+0.1869*GCAA+158.64),(0.00014765*GCAA^2+0.1869*GCAA+167.64)))))))","v":51},{"$f":"IF(CA<30,(0.41*GCAA+26),  IF(CA<40,(0.42*GCAA+32),  IF(CA<50,(0.42*GCAA+40),  IF(CA<60,(-0.00001895*GCAA^2+0.439*GCAA+44.429),  IF(CA<70,(-0.00002277*GCAA^2+0.4451*GCAA+51.143),  IF(CA<80,(0.00063435*GCAA^2-0.1409*GCAA+187.86), (0.27141*GCAA+149.29)))))))","v":44.429000000000002},{"$f":"IF(CA<30,(0.39*GCAA+25),  IF(CA<40,(0.395*GCAA+32),  IF(CA<50,(0.4*GCAA+39),  IF(CA<60,(0.40286*GCAA+46.286),  IF(CA<70,(0.40858*GCAA+51.857),  IF(CA<80,(0.26*GCAA+134), (0.25713*GCAA+143.43)))))))","v":46.286000000000001},{"$f":"IF(CA<30,(0.29*GCAA+18),  IF(CA<40,(0.29*GCAA+24),  IF(CA<50,(0.296*GCAA+28),  IF(CA<60,(0.29714*GCAA+33.714),  IF(CA<70,(0.3*GCAA+38),  IF(CA<80,(0.18858*GCAA+99.714), (0.18858*GCAA+105.71)))))))","v":33.713999999999999},{"$f":"IF(CA<30,(0.47*GCAA+24),  IF(CA<40,(0.475*GCAA+34),  IF(CA<50,(0.484*GCAA+42),  IF(CA<60,(0.49429*GCAA+48.429),  IF(CA<70,(0.44286*GCAA+91.286),  IF(CA<80,(0.36571*GCAA+134.14), (0.36859*GCAA+142.71)))))))","v":48.429000000000002},{"$f":"IF(CA<30,(0.015*GCAA+0.5),IF(CA<40,(0.0145*GCAA+0.7),IF(CA<50,(0.0148*GCAA+0.7),IF(CA<60,(0.01486*GCAA+0.7857),IF(CA<70,(0.01343*GCAA+1.7429),IF(CA<80,(0.01142*GCAA+2.6857),(0.01142*GCAA+2.7857)))))))","v":0.78569999999999995},{"$f":"IF(CA<30,(0.014*GCAA+0.1),IF(CA<40,(0.014*GCAA+0.2),IF(CA<50,(0.0144*GCAA+0.2),IF(CA<60,(0.01429*GCAA+0.3286),IF(CA<70,(0.01257*GCAA+1.4571),IF(CA<80,(0.01058*GCAA+2.4143),(0.01058*GCAA+2.5143)))))))","v":0.3286},"GCAA 100-600 g",null,null,null,null,null,null,null,null,null,null,null,null,null,42,"Sorgum Sapları",87,2,5,3.5,1.5,null,0.49,0.12,33,65,55,2.4,1.2,0.5,1.2,41,100,1.9,10,1.2,null,null,null,null,null,5,0,1]
[null,null,null,null,null,null,null,null,null,null,null,null,null,null,null,null,null,null,null,null,null,null,null,0,0,0,0,0,0,0,0,0,0,0,0,null,null,null,null,null,null,null,null,null,null,null,null,null,null,null,null,null,"Dişi Toklu, Yaşama payı, , ",{"$f":" -0.000017*CA^2 + 0.0262*CA + 0.1594","v":1.4269000000000001},{"$f":" -0.0000405*CA^2 + 0.0627*CA + 0.3718","v":3.4055500000000003},{"$f":" -0.0008*CA^2 + 2.0605*CA + 15.91","v":116.935},{"$f":" -0.00079*CA^2 + 1.9605*CA + 15.91","v":111.96},{"$f":" -0.00072*CA^2 + 1.8762*CA + 15.104","v":107.114},{"$f":" -0.000645*CA^2 + 1.4006*CA + 10.23","v":78.647500000000008},{"$f":" -0.00195*CA^2 + 2.3343*CA + 10.941","v":122.78099999999999},{"$f":" -0.000049*CA^2 + 0.0616*CA + 0.7148","v":3.6722999999999999},{"$f":" -0.000035*CA^2 + 0.0446*CA - 0.0392","v":2.1032999999999999},null,null,null,null,null,null,null,null,null,null,null,null,null,null,43,"Soya Kabukları ",90,2.8,13,9.1,8.6999999999999993,3.6,0.55000000000000004,0.17,38,62,77,3.4,1.8,1.1000000000000001,1.7,46,28,2.6,5,1.4,0.02,0.12,38,null,null,6,0,1]
[null,null,null,null,null,null,null,null,null,null,null,null,null,null,null,null,null,null,null,"4 aylık",null,null,null,0,0,0,0,0,0,0,0,0,0,0,0,null,null,null,null,null,null,null,null,null,null,null,null,null,null,null,null,null,"Dişi Toklu, Flaşing, , ",{"$f":" -0.0000175*CA^2 + 0.0282*CA + 0.1828","v":1.54905},{"$f":" -0.000044*CA^2 + 0.0677*CA + 0.4245","v":3.6995},{"$f":" 2.1662*CA + 23.955","v":132.26499999999999},{"$f":" -0.0008*CA^2+ 2.1915*CA + 18.49","v":126.065},{"$f":" -0.0011*CA^2 + 2.1465*CA + 16.112","v":120.687},{"$f":" -0.0005*CA^2+ 1.5303*CA + 13.689","v":88.954000000000008},{"$f":" -0.001635*CA^2 + 2.4483*CA + 14.739","v":133.06649999999999},{"$f":" -0.0000305*CA^2 + 0.0686*CA + 0.9202","v":4.2739500000000001},{"$f":" -0.000003*CA^2 + 0.046*CA + 0.2406","v":2.5331000000000001},null,null,null,null,null,null,null,null,null,null,null,null,null,null,44,"Soya Kuru Otu",89,1.9,15,10.5,10.5,null,1.29,0.3,35,55,52,2.2999999999999998,1.1000000000000001,0.4,1.1000000000000001,40,92,2.2000000000000002,8,1.1000000000000001,0.15,0.24,24,9,30,6,0,1]
[null,null,null,null,null,null,null,null,null,null,null,null,null,null,null,null,null,null,null,"8 aylık",null,null,null,0,0,0,0,0,0,0,0,0,0,0,0,null,null,null,null,null,null,null,null,null,null,null,null,null,null,null,null,null,"Dişi Toklu, Erken Gebe, Tek kuzu, ",{"$f":" -0.00002117*CA^2 + 0.0286*CA + 0.2216","v":1.5986750000000001},{"$f":" -0.000047*CA^2 + 0.0674*CA + 0.5732","v":3.8256999999999999},{"$f":" 2.1268*CA + 32.08","v":138.41999999999999},{"$f":" -0.0013*CA^2 + 2.2337*CA + 23.711","v":132.14599999999999},{"$f":" -0.00113*CA^2+ 2.1181*CA + 23.05","v":126.13},{"$f":" -0.000845*CA^2+ 1.5568*CA + 17.249","v":92.976500000000001},{"$f":" -0.00188*CA^2 + 2.4602*CA + 19.739","v":138.04899999999998},{"$f":" -0.000086*CA^2 + 0.0788*CA + 1.3829","v":5.1078999999999999},{"$f":" 0.05*CA + 0.8","v":3.3},null,null,null,null,null,null,null,null,null,null,null,null,null,null,45,"Soya Samanı",88,1.5,5,3.5,1.5,null,1.59,0.06,44,70,42,1.9,0.9,0,0.9,54,100,1.4,6,0.6,null,0.26,null,null,null,2,0,1]
[null,null,null,null,null,null,null,null,null,null,null,null,null,null,null,null,null,null,null,null,null,null,null,0,0,0,0,0,0,0,0,0,0,0,0,null,null,null,null,null,null,null,null,null,null,null,null,null,null,null,null,null,"Dişi Toklu, Erken Gebe, İkiz kuzu, ",{"$f":" -0.000026*CA^2 + 0.0304*CA + 0.2784","v":1.7334000000000001},{"$f":" -0.000108*CA^2 + 0.08105*CA + 0.2871","v":4.0696000000000003},{"$f":" 2.3429*CA+ 34.857","v":152.00200000000001},{"$f":" -0.0048*CA^2 + 3.0074*CA + 5.4398","v":143.8098},{"$f":" -0.00482*CA^2 + 2.9137*CA + 3.619","v":137.25399999999999},{"$f":" -0.00323*CA^2 + 2.0909*CA + 4.8711","v":101.3411},{"$f":" -0.0039*CA^2 + 2.9241*CA + 10.353","v":146.80800000000002},{"$f":" -0.000307*CA^2 + 0.1254*CA + 1.1409","v":6.6434000000000006},{"$f":" -0.000212*CA^2 + 0.0894*CA + 0.1132","v":4.0531999999999995},null,null,null,null,null,null,null,null,null,null,null,null,null,null,46,"Sudan Otu, Kuru ",88,2.1,9,6.3,5.0999999999999996,2.7,0.5,0.22,36,67,57,2.5,1.3,0.6,1.3,43,98,1.8,10,2.2000000000000002,0.8,0.12,26,11.8,null,10,0,1]
[null,null,null,null,null,null,null,null,null,null,null,null,null,null,null,null,null,null,null,"Bulunduğu Ortam",null,null,null,0,0,0,0,0,0,0,0,0,0,0,0,null,null,null,null,null,null,null,null,null,null,null,null,null,null,null,null,null,"Dişi Toklu, Erken Gebe, Üçüz kuzu, ",{"$f":" -0.000021*CA^2 + 0.0303*CA + 0.3591","v":1.8216000000000001},{"$f":" -0.00013*CA^2 + 0.08822*CA + 0.1306","v":4.2166000000000006},{"$f":" -0.00716*CA^2 + 3.6676*CA - 8.6303","v":156.84969999999998},{"$f":" -0.0065*CA^2 + 3.4408*CA - 5.9328","v":149.85719999999998},{"$f":" -0.00635*CA^2 + 3.3188*CA - 6.7731","v":143.2919},{"$f":" -0.00485*CA^2 + 2.4725*CA - 6.3109","v":105.1891},{"$f":" -0.00493*CA^2 + 3.2053*CA + 3.7059","v":151.64590000000001},{"$f":" -0.000305*CA^2 + 0.1454*CA + 1.0154","v":7.5228999999999999},{"$f":" -0.000218*CA^2 + 0.1045*CA - 0.2395","v":4.4405000000000001},null,null,null,null,null,null,null,null,null,null,null,null,null,null,47,"Şeker Kamışı Posası",91,1.3,1,0.7,2.1,null,0.9,0.28999999999999998,49,86,36,1.6,0.9,0,0.7,59,100,0.7,3,0.5,null,0.1,null,null,null,5,0,1]
[null,null,null,null,null,null,null,null,null,null,null,null,null,null,null,null,null,null,null,"Ağılda",null,null,null,0,0,0,0,0,0,0,0,0,0,0,0,null,null,null,null,null,null,null,null,null,null,null,null,null,null,null,null,null,"Dişi Toklu, Geç Gebe, Tek kuzu, ",{"$f":"( -0.00001*CA^2 + 0.0251*CA + 0.4345) / 1.15","v":1.4473913043478264},{"$f":" -0.000128*CA^2 + 0.087*CA + 0.1533","v":4.1832999999999991},{"$f":" -0.00676*CA^2+ 3.5932*CA - 6.5742","v":156.1858},{"$f":" -0.0065*CA^2 + 3.432*CA - 6.3754","v":148.97459999999998},{"$f":" -0.00584*CA^2 + 3.2298*CA - 4.2773","v":142.61270000000002},{"$f":" -0.00424*CA^2 + 2.3673*CA - 2.7927","v":104.97230000000002},{"$f":" -0.00492*CA^2+ 3.1847*CA + 3.986","v":150.92099999999996},{"$f":" -0.000245*CA^2 + 0.1317*CA + 0.9011","v":6.8736000000000015},{"$f":" -0.000216*CA^2 + 0.1021*CA - 0.3796","v":4.1853999999999996},null,null,null,null,null,null,null,null,null,null,null,null,null,null,48,"Taş Yoncası (Clover Sweet) Kuru Otu",91,1.9,16,11.2,11.4,4.8,1.27,0.25,30,50,53,2.2999999999999998,1.2,0.4,1.2,38,92,2.4,9,1.8,0.37,0.46,null,19.8,null,20,0,1]
[null,null,null,null,null,null,null,null,null,null,null,null,null,null,null,null,null,null,null,"Merada",null,null,null,0,0,0,0,0,0,0,0,0,0,0,0,null,null,null,null,null,null,null,null,null,null,null,null,null,null,null,null,null,"Dişi Toklu, Geç Gebe, İkiz kuzu, ",{"$f":" -0.00001*CA^2 + 0.0251*CA + 0.4345","v":1.6645000000000003},{"$f":" 0.000104*CA^2 + 0.0541*CA + 1.7979","v":4.7629000000000001},{"$f":" 0.0089*CA^2 + 1.3093*CA + 95.608","v":183.32299999999998},{"$f":" 0.0082*CA^2 + 1.2942*CA + 89.644","v":174.85400000000001},{"$f":" 0.00856*CA^2 + 1.1223*CA + 89.964","v":167.47899999999998},{"$f":" 0.00617*CA^2+ 0.8477*CA + 65.398","v":123.208},{"$f":" 0.00371*CA^2 + 1.9456*CA + 65.361","v":171.916},{"$f":" 0.00018*CA^2 + 0.09*CA + 4.7513","v":9.7012999999999998},{"$f":" 0.000265*CA^2 + 0.0405*CA + 2.8832","v":5.5707000000000004},null,null,null,null,null,null,null,null,null,null,null,null,null,null,49,"Tritikale Kuru Otu ",90,2,10,7,6,null,0.3,0.26,34,69,56,2.5,1.2,0.5,1.2,41,98,null,null,2.2999999999999998,null,null,25,null,null,5.5,0,1]
[null,null,null,null,null,null,null,null,null,null,null,null,null,null,null,null,null,null,null,null,null,null,null,0,0,0,0,0,0,0,0,0,0,0,0,null,null,null,null,null,null,null,null,null,null,null,null,null,null,null,null,null,"Dişi Toklu, Geç Gebe, Üçüz kuzu, ",{"$f":"( -0.00001*CA^2 + 0.0251*CA + 0.4345 )* 1.1","v":1.8309500000000005},{"$f":" -0.000095*CA^2 + 0.0854*CA + 1.1739","v":5.2064000000000004},{"$f":" -0.00378*CA^2 + 3.242*CA + 52.79","v":205.44},{"$f":" -0.00325*CA^2 + 3.0355*CA + 52.655","v":196.30500000000001},{"$f":" -0.00288*CA^2 + 2.8636*CA + 51.975","v":187.95500000000001},{"$f":" -0.00236*CA^2 + 2.1436*CA + 36.891","v":138.17099999999999},{"$f":" -0.00352*CA^2 + 3.0863*CA + 42.342","v":187.85699999999997},{"$f":" -0.000275*CA^2 + 0.1746*CA + 3.7151","v":11.7576},{"$f":" -0.000143*CA^2+ 0.1092*CA + 1.572","v":6.6745000000000001},null,null,null,null,null,null,null,null,null,null,null,null,null,null,50,"Üzüm Posası, sapsız",91,1.1000000000000001,12,8.4,7.8,5.4,0.5,0.08,32,53,30,1.3,0.8,0,0.6,48,34,7.5,9,0.5,0.01,null,24,null,null,2.5,0,1]
[null,null,null,null,null,null,null,null,null,null,null,null,null,null,null,null,null,null,null,null,null,null,null,0,0,0,0,0,0,0,0,0,0,0,0,null,null,null,null,null,null,null,null,null,null,null,null,null,null,null,null,null,null,null,null,null,null,null,null,null,null,null,null,null,null,null,null,null,null,null,null,null,null,null,null,null,51,"Yem Kanyaşı (Canary grass) Kuru Otu",91,1.9,9,6.3,5.0999999999999996,2.2999999999999998,0.38,0.25,32,67,53,2.2999999999999998,1.2,0.4,1.2,34,98,2.7,8,2.7,null,0.14000000000000001,18,5.2,null,6,0,1]
[null,null,null,null,null,null,null,null,null,null,null,null,null,null,null,null,null,null,null,null,null,null,null,0,0,0,0,0,0,0,0,0,0,0,0,null,null,null,null,null,null,null,null,null,null,null,null,null,null,null,null,null,null,null,null,null,null,null,null,null,null,null,null,null,null,null,null,null,null,null,null,null,null,null,null,null,52,"Yer Fıstığı Kabukları",91,0.8,7,4.9000000000000004,3.3,null,0.2,7.0000000000000007E-2,63,74,22,1,0.8,0,0.4,65,98,1.5,5,0.9,null,null,null,null,null,3,0,1]
[null,null,null,null,null,null,null,null,null,null,null,null,null,null,null,null,null,null,null,null,null,null,null,0,0,0,0,0,0,0,0,0,0,0,0,null,null,null,null,null,null,null,null,null,null,null,null,null,null,null,null,null,null,null,null,null,null,null,null,null,null,null,null,null,null,null,null,null,null,null,null,null,null,null,null,null,53,"Yonca Kuru Otu, Çiçek Başı ",90,2.1,19,13.3,14.1,3.5,1.41,0.26,28,45,59,2.6,1.3,0.6,1.3,35,92,2.5,8,2.5,0.38,0.28000000000000003,22,28,26,8.5,0,2]
[null,null,null,null,null,null,null,null,null,null,null,null,null,null,null,null,null,null,null,null,null,null,null,0,0,0,0,0,0,0,0,0,0,0,0,null,null,null,null,null,null,null,null,null,null,null,null,null,null,null,null,null,null,null,null,null,null,null,null,null,null,null,null,null,null,null,null,null,null,null,null,null,null,null,null,null,54,"Yonca Kuru Otu, Çiçek ortası ",89,2.1,17,11.9,12.3,3.9,1.4,0.24,30,47,58,2.6,1.3,0.6,1.3,36,92,2.2999999999999998,9,2,0.38,0.27,24,null,null,8.5,0,2]
[null,null,null,null,null,null,null,null,null,null,null,null,null,null,null,null,null,null,null,null,null,null,null,0,0,0,0,0,0,0,0,0,0,0,0,null,null,null,null,null,null,null,null,null,null,null,null,null,null,null,null,null,null,null,null,null,null,null,null,null,null,null,null,null,null,null,null,null,null,null,null,null,null,null,null,null,55,"Yonca Kuru Otu, Olgun",88,1.8,13,9.1,8.6999999999999993,3.9,1.18,0.19,38,59,50,2.2000000000000002,1.1000000000000001,0.3,1.1000000000000001,45,92,1.3,8,1.5,0.35,0.21,23,2.4,null,8.5,0,2]
[{"$f":"IF(B5=0,0,IF(C5<=0,0,A5))","v":1},{"$f":"IF(B5=0,0,IF(C5<=0,0,B5))","v":"Arpa Samanı"},{"$f":"IF(B5=0,0,IF(C5<=0,0,C5))","v":0.85612028090319736},null,null,null,null,null,null,null,null,null,null,null,null,null,null,null,null,null,null,null,null,0,0,0,0,0,0,0,0,0,0,0,0,null,null,null,null,null,null,null,null,null,null,null,null,null,null,null,null,null,null,null,null,null,null,null,null,null,null,null,null,null,null,null,null,null,null,null,null,null,null,null,null,null,56,"Yonca Kuru Otu, Tam Çiçeklenmiş",88,2,16,11.2,11.4,4,1.2,0.23,34,52,54,2.4,1.2,0.4,1.2,40,92,2,8,1.7,0.37,0.25,23,13,null,8.5,0,2]
[0,0,0,null,null,null,null,null,null,null,null,null,null,null,null,null,null,null,null,null,null,null,null,0,0,0,0,0,0,0,0,0,0,0,0,null,null,null,null,null,null,null,null,null,null,null,null,null,null,null,null,null,null,null,null,null,null,null,null,null,null,null,null,null,null,null,null,null,null,null,null,null,null,null,null,null,57,"Yonca Küpleri",91,2.1,18,12.6,13.2,5.4,1.3,0.23,29,46,57,2.5,1.3,0.6,1.3,36,40,2,11,1.9,0.37,0.33,20,null,null,10,0,2]
[4,"Arpa, Tane",0.15491852772541792,null,null,null,null,null,null,null,null,null,null,null,null,null,null,null,null,null,null,null,null,0,0,0,0,0,0,0,0,0,0,0,0,null,null,null,null,null,null,null,null,null,null,null,null,null,null,null,null,null,null,null,null,null,null,null,null,null,null,null,null,null,null,null,null,null,null,null,null,null,null,null,null,null,58,"Yonca Sapları",89,1.7,11,7.7,6.9,4.8,0.9,0.18,44,68,47,2.1,1,0.2,1,51,100,1.3,6,2.5,null,null,null,null,null,8,0,2]
[6,"PAMUK TOHUMU KÜSPESİ, SOLVENT, % 25",0.12369826873989954,null,null,null,null,null,null,null,null,null,null,null,null,null,null,null,null,null,null,null,null,null,null,null,null,null,null,null,null,null,null,null,null,null,null,null,null,null,null,null,null,null,null,null,null,null,null,null,null,null,null,null,null,null,null,null,null,null,null,null,null,null,null,null,null,null,null,null,null,null,null,null,null,null,59,"Yosun, Kurutulmuş",91,1.2,7,4.9000000000000004,3.3,null,2.72,0.31,7,null,32,1.4,0.8,0,0.6,10,null,0.5,39,null,null,null,null,null,null,100,0,1]
[0,0,0,null,null,null,null,null,null,null,null,null,null,null,null,null,null,null,null,null,null,null,null,null,null,null,null,null,null,null,null,null,null,null,null,null,null,null,null,null,null,null,null,null,null,null,null,null,null,null,null,null,null,null,null,null,null,null,null,null,null,null,null,null,null,null,null,null,null,null,null,null,null,null,null,null,60,"Yulaf Kavuzu",93,1.4,4,2.8,0.6,1,0.16,0.15,32,75,40,1.8,0.9,0,0.8,40,90,1.5,7,0.6,0.08,0.14000000000000001,31,null,null,3.5,0,1]
[7,"Mermer Tozu",1.3079932083144318E-3,null,null,null,null,null,null,null,null,null,null,null,null,null,null,null,null,null,null,null,null,null,null,null,null,null,null,null,null,null,null,null,null,null,null,null,null,null,null,null,null,null,null,null,null,null,null,null,null,null,null,null,null,null,null,null,null,null,null,null,null,null,null,null,null,null,null,null,null,null,null,null,null,null,61,"Yulaf Kuru Otu",90,2,10,7,6,2.5,0.4,0.27,31,63,54,2.4,1.2,0.4,1.2,39,98,2.2999999999999998,8,1.6,0.42,0.21,28,5.6,null,6,0,2]
[7,"Tuz",1E-3,null,null,null,null,null,null,null,null,null,null,null,null,null,null,null,null,null,null,null,null,null,null,null,null,null,null,null,null,null,null,null,null,null,null,null,null,null,null,null,null,null,null,null,null,null,null,null,null,null,null,null,null,null,null,null,null,null,null,null,null,null,null,null,null,null,null,null,null,null,null,null,null,null,62,"Yulaf Samanı",91,1.7,4,2.8,0.6,1.6,0.24,7.0000000000000007E-2,41,73,48,2.1,1.1000000000000001,0.2,1,48,98,2.2999999999999998,8,2.4,0.78,0.22,6,800,null,3,0,1]
[7,"Vitamin-Mineral Karması",1.0000000000000002E-3,null,null,null,null,null,null,null,null,null,null,null,null,null,null,null,null,null,null,null,null,null,null,null,null,null,null,null,null,null,null,null,null,null,null,null,null,null,null,null,null,null,null,null,null,null,null,null,null,null,null,null,null,null,null,null,null,null,null,null,null,null,null,null,null,null,null,null,null,null,null,null,null,null,63,"Yulaf, Değirmen Kalıntıları",89,1.2,8,5.6,4.2,null,0.12,0.23,25,null,33,1.5,0.8,0,0.7,37,null,2.6,6,0.6,null,0.24,null,null,null,5,0,1]
[0,0,0,null,null,null,null,null,null,null,null,null,null,null,null,null,null,null,null,null,null,null,null,null,null,null,null,null,null,null,null,null,null,null,null,null,null,null,null,null,null,null,null,null,null,null,null,null,null,null,null,null,null,null,null,null,null,null,null,null,null,null,null,null,null,null,null,null,null,null,null,null,null,null,null,null,64]
[0,0,0,null,null,null,null,null,null,null,null,null,null,null,null,null,null,null,null,null,null,null,null,null,null,null,null,null,null,null,null,null,null,null,null,null,null,null,null,null,null,null,null,null,null,null,null,null,null,null,null,null,null,null,null,null,null,null,null,null,null,null,null,null,null,null,null,null,null,null,null,null,null,null,null,null,65]
[0,0,0,null,null,null,null,null,null,null,null,null,null,null,null,null,null,null,null,null,null,null,null,null,null,null,null,null,null,null,null,null,null,null,null,null,null,null,null,null,null,null,null,null,null,null,null,null,null,null,null,null,null,null,null,null,null,null,null,null,null,null,null,null,null,null,null,null,null,null,null,null,null,null,null,null,66]
[0,0,0,null,null,null,null,null,null,null,null,null,null,null,null,null,null,null,null,null,null,null,null,null,null,null,null,null,null,null,null,null,null,null,null,null,null,null,null,null,null,null,null,null,null,null,null,null,null,null,null,null,null,null,null,null,null,null,null,null,null,null,null,null,null,null,null,null,null,null,null,null,null,null,null,null,67]
[0,0,0,null,null,null,null,null,null,null,null,null,null,null,null,null,null,null,null,null,null,null,null,null,null,null,null,null,null,null,null,null,null,null,null,null,null,null,null,null,null,null,null,null,null,null,null,null,null,null,null,null,null,null,null,null,null,null,null,null,null,null,null,null,null,null,null,null,null,null,null,null,null,null,null,null,68]
[0,0,0,null,null,null,null,null,null,null,null,null,null,null,null,null,null,null,null,null,null,null,null,null,null,null,null,null,null,null,null,null,null,null,null,null,null,null,null,null,null,null,null,null,null,null,null,null,null,null,null,null,null,null,null,null,null,null,null,null,null,null,null,null,null,null,null,null,null,null,null,null,null,null,null,null,69]
[0,0,0,null,null,null,null,null,null,null,null,null,null,null,null,null,null,null,null,null,null,null,null,null,null,null,null,null,null,null,null,null,null,null,null,null,null,null,null,null,null,null,null,null,null,null,null,null,null,null,null,null,null,null,null,null,null,null,null,null,null,null,null,null,null,null,null,null,null,null,null,null,null,null,null,null,70]
[0,0,0,null,null,null,null,null,null,null,null,null,null,null,null,null,null,null,null,null,null,null,null,null,null,null,null,null,null,null,null,null,null,null,null,null,null,null,null,null,null,null,null,null,null,null,null,null,null,null,null,null,null,null,null,null,null,null,null,null,null,null,null,null,null,null,null,null,null,null,null,null,null,null,null,null,71]
[0,0,0,null,null,null,null,null,null,null,null,null,null,null,null,null,null,null,null,null,null,null,null,null,null,null,null,null,null,null,null,null,null,null,null,null,null,null,null,null,null,null,null,null,null,null,null,null,null,null,null,null,null,null,null,null,null,null,null,null,null,null,null,null,null,null,null,null,null,null,null,null,null,null,null,null,72]
[0,0,0,null,null,null,null,null,null,null,null,null,null,null,null,null,null,null,null,null,null,null,null,null,null,null,null,null,null,null,null,null,null,null,null,null,null,null,null,null,null,null,null,null,null,null,null,null,null,null,null,null,null,null,null,null,null,null,null,null,null,null,null,null,null,null,null,null,null,null,null,null,null,null,null,null,73]
[0,0,0,null,null,null,null,null,null,null,null,null,null,null,null,null,null,null,null,null,null,null,null,null,null,null,null,null,null,null,null,null,null,null,null,null,null,null,null,null,null,null,null,null,null,null,null,null,null,null,null,null,null,null,null,null,null,null,null,null,null,null,null,null,null,null,null,null,null,null,null,null,null,null,null,null,74]
[0,0,0,null,null,null,null,null,null,null,null,null,null,null,null,null,null,null,null,null,null,null,null,null,null,null,null,null,null,null,null,null,null,null,null,null,null,null,null,null,null,null,null,null,null,null,null,null,null,null,null,null,null,null,null,null,null,null,null,null,null,null,null,null,null,null,null,null,null,null,null,null,null,null,null,null,75]
[0,0,0,null,null,null,null,null,null,null,null,null,null,null,null,null,null,null,null,null,null,null,null,null,null,null,null,null,null,null,null,null,null,null,null,null,null,null,null,null,null,null,null,null,null,null,null,null,null,null,null,null,null,null,null,null,null,null,null,null,null,null,null,null,null,null,null,null,null,null,null,null,null,null,null,null,null,"SULU KABA YEMLER","KM,%","ME, Mcal/kg","HP,%","MP,%","DIP,%","RUP,%","Ca,%","P,%","HS,%","NDF,%","TSBM,%","SE, Mcal/kg","NEyp, Mcal/kg","NEb, Mcal/kg","NEl, Mcal/kg","ADF,%","eNDF,%","HY,%","HK,%","K,%","Cl,%","S,%","Zn,ppm","VitA, RE/kg","VitE,ppm","Fiyat,TL","En az","En çok"]
[0,0,0,null,null,null,null,null,null,null,null,null,null,null,null,null,null,null,null,null,null,null,null,null,null,null,null,null,null,null,null,null,null,null,null,null,null,null,null,null,null,null,null,null,null,null,null,null,null,null,null,null,null,null,null,null,null,null,null,null,null,null,null,null,null,null,null,null,null,null,null,null,null,null,null,null,1,"Adi Japon Üçgülü (Lespedeza), Yaş, Çiçek Başı",25,2.2000000000000002,16,11.2,11.4,8,1.2,0.24,32,null,60,2.6,1.3,0.7,1.3,null,null,2,10,1.1000000000000001,null,0.21,null,null,null,11,0,2]
[0,0,0,null,null,null,null,null,null,null,null,null,null,null,null,null,null,null,null,null,null,null,null,null,null,null,null,null,null,null,null,null,null,null,null,null,null,null,null,null,null,null,null,null,null,null,null,null,null,null,null,null,null,null,null,null,null,null,null,null,null,null,null,null,null,null,null,null,null,null,null,null,null,null,null,null,2,"Akasya Yaprakları",30,0.69,5,0.8,1.2,null,null,null,null,null,19,0.84,0.77,0,null,null,null,null,null,null,null,null,null,null,null,11,0,1]
[0,0,0,null,null,null,null,null,null,null,null,null,null,null,null,null,null,null,null,null,null,null,null,null,null,null,null,null,null,null,null,null,null,null,null,null,null,null,null,null,null,null,null,null,null,null,null,null,null,null,null,null,null,null,null,null,null,null,null,null,null,null,null,null,null,null,null,null,null,null,null,null,null,null,null,null,3,"Akçaağaç Yaprakları",null,null,null,null,null,null,null,null,null,58.9,null,null,null,null,null,43.9,null,null,null,null,null,null,null,null,null,11,0,1]
[0,0,0,null,null,null,null,null,null,null,null,null,null,null,null,null,null,null,null,null,null,null,null,null,null,null,null,null,null,null,null,null,null,null,null,null,null,null,null,null,null,null,null,null,null,null,null,null,null,null,null,null,null,null,null,null,null,null,null,null,null,null,null,null,null,null,null,null,null,null,null,null,null,null,null,null,4,"Ardıç Yaprakları",52,2.31,6.5,1.8,2.6,null,null,0.08,null,null,64,2.82,1.41,0.78,null,null,null,null,null,null,null,null,null,null,null,11,0,1]
[0,0,0,null,null,null,null,null,null,null,null,null,null,null,null,null,null,null,null,null,null,null,null,null,null,null,null,null,null,null,null,null,null,null,null,null,null,null,null,null,null,null,null,null,null,null,null,null,null,null,null,null,null,null,null,null,null,null,null,null,null,null,null,null,null,null,null,null,null,null,null,null,null,null,null,null,5,"At kestanesi",43,null,15.9,null,null,null,null,null,null,38.200000000000003,null,null,null,null,null,25.3,null,null,9,null,null,null,null,null,null,8,0,0.1]
[null,null,null,null,null,null,null,null,null,null,null,null,null,null,null,null,null,null,null,null,null,null,null,null,null,null,null,null,null,null,null,null,null,null,null,null,null,null,null,null,null,null,null,null,null,null,null,null,null,null,null,null,null,null,null,null,null,null,null,null,null,null,null,null,null,null,null,null,null,null,null,null,null,null,null,null,6,"Ayçiçeği Bitkisi, Geç Büyüme Dönemi",12,2.31,8.3000000000000007,3,4.3,null,null,null,null,null,64,2.82,1.41,0.78,null,null,null,null,null,null,null,null,null,null,null,10,0,2]
[null,null,null,null,null,null,null,null,null,null,null,null,null,null,null,null,null,null,null,null,null,null,null,null,null,null,null,null,null,null,null,null,null,null,null,null,null,null,null,null,null,null,null,null,null,null,null,null,null,null,null,null,null,null,null,null,null,null,null,null,null,null,null,null,null,null,null,null,null,null,null,null,null,null,null,null,7,"Beyaz Üçgül (Clover Ladino), Yaş",19,2.5,25,17.5,19.5,5,1.27,0.38,14,35,69,3,1.6,0.9,1.5,33,41,4.8,11,2.4,null,0.2,20,70.599999999999994,null,11,0,1]
[null,null,null,null,null,null,null,null,null,null,null,null,null,null,null,null,null,null,null,null,null,null,null,null,null,null,null,null,null,null,null,null,null,null,null,null,null,null,null,null,null,null,null,null,null,null,null,null,null,null,null,null,null,null,null,null,null,null,null,null,null,null,null,null,null,null,null,null,null,null,null,null,null,null,null,null,8,"Bezelye Asması",14,2.42,27.4,15.5,22.1,null,null,null,null,null,67,2.95,1.5,0.88,null,null,null,null,null,null,null,null,null,null,null,10,0,1]
[null,null,null,null,null,null,null,null,null,null,null,null,null,null,null,null,null,null,null,null,null,null,null,null,null,null,null,null,null,null,null,null,null,null,null,null,null,null,null,null,null,null,null,null,null,null,null,null,null,null,null,null,null,null,null,null,null,null,null,null,null,null,null,null,null,null,null,null,null,null,null,null,null,null,null,null,9,"Böğürtlen, Eylül ",44,null,8.1999999999999993,null,null,null,null,null,null,null,73,null,null,null,null,null,null,null,null,null,null,null,null,null,null,11,0,1]
[null,null,null,null,null,null,null,null,null,null,null,null,null,null,null,null,null,null,null,null,null,null,null,null,null,null,null,null,null,null,null,null,null,null,null,null,null,null,null,null,null,null,null,null,null,null,null,null,null,null,null,null,null,null,null,null,null,null,null,null,null,null,null,null,null,null,null,null,null,null,null,null,null,null,null,null,10,"Böğürtlen, Temmuz",45,null,8.6,null,null,null,null,null,null,null,72,null,null,null,null,null,null,null,null,null,null,null,null,null,null,11,0,1]
[null,null,null,null,null,null,null,null,null,null,null,null,null,null,null,null,null,null,null,null,null,null,null,null,null,null,null,null,null,null,null,null,null,null,null,null,null,null,null,null,null,null,null,null,null,null,null,null,null,null,null,null,null,null,null,null,null,null,null,null,null,null,null,null,null,null,null,null,null,null,null,null,null,null,null,null,11,"Börülce",15,2.31,16.2,8.1999999999999993,11.7,null,null,0.28000000000000003,null,null,64,2.82,1.41,0.78,null,null,null,null,null,null,null,null,null,null,null,11,0,1]
[null,null,null,null,null,null,null,null,null,null,null,null,null,null,null,null,null,null,null,null,null,null,null,null,null,null,null,null,null,null,null,null,null,null,null,null,null,null,null,null,null,null,null,null,null,null,null,null,null,null,null,null,null,null,null,null,null,null,null,null,null,null,null,null,null,null,null,null,null,null,null,null,null,null,null,null,12,"Brom Otu (Bromegrass), Yaş, Körpe ",30,2.2999999999999998,15,10.5,10.5,33,0.45,0.34,28,54,64,2.8,1.4,0.8,1.4,33,40,4.0999999999999996,10,2.2999999999999998,null,0.21,20,38.4,null,11,0,2]
[null,null,null,null,null,null,null,null,null,null,null,null,null,null,null,null,null,null,null,null,null,null,null,null,null,null,null,null,null,null,null,null,null,null,null,null,null,null,null,null,null,null,null,null,null,null,null,null,null,null,null,null,null,null,null,null,null,null,null,null,null,null,null,null,null,null,null,null,null,null,null,null,null,null,null,null,13,"Buğday, Yaş, Mera ",21,2.6,20,14,15,3.2,0.35,0.36,18,50,71,3.1,1.6,1,1.6,30,41,4,13,3.1,0.67,0.22,null,null,null,14,0,2]
[null,null,null,null,null,null,null,null,null,null,null,null,null,null,null,null,null,null,null,null,null,null,null,null,null,null,null,null,null,null,null,null,null,null,null,null,null,null,null,null,null,null,null,null,null,null,null,null,null,null,null,null,null,null,null,null,null,null,null,null,null,null,null,null,null,null,null,null,null,null,null,null,null,null,null,null,14,"Çayır Kelp Kuyruğu (Timothy), Yaş, Çiçeklenme Öncesi",26,2.2999999999999998,11,7.7,6.9,2.2000000000000002,0.4,0.28000000000000003,31,59,64,2.8,1.4,0.8,1.4,36,41,3.8,7,1.9,0.56999999999999995,0.15,28,35.799999999999997,111,11,0,2]
[null,null,null,null,null,null,null,null,null,null,null,null,null,null,null,null,null,null,null,null,null,null,null,null,null,null,null,null,null,null,null,null,null,null,null,null,null,null,null,null,null,null,null,null,null,null,null,null,null,null,null,null,null,null,null,null,null,null,null,null,null,null,null,null,null,null,null,null,null,null,null,null,null,null,null,null,15,"Çayır Salkım Otu (Bluegrass), Yaş, Çiç.Baş.",36,2.5,15,10.5,10.5,3,0.37,0.3,27,60,69,3,1.6,0.9,1.5,32,41,3.9,7,1.9,0.42,0.19,25,43.8,null,11,0,2]
[null,null,null,null,null,null,null,null,null,null,null,null,null,null,null,null,null,null,null,null,null,null,null,null,null,null,null,null,null,null,null,null,null,null,null,null,null,null,null,null,null,null,null,null,null,null,null,null,null,null,null,null,null,null,null,null,null,null,null,null,null,null,null,null,null,null,null,null,null,null,null,null,null,null,null,null,16,"Çayır Üçgülü (Clover Red), Yaş",24,2.2999999999999998,18,12.6,13.2,3.8,1.7,0.3,24,44,64,2.8,1.4,0.8,1.4,33,41,4,9,2,0.6,0.17,23,40.4,null,11,0,2]
[null,null,null,null,null,null,null,null,null,null,null,null,null,null,null,null,null,null,null,null,null,null,null,null,null,null,null,null,null,null,null,null,null,null,null,null,null,null,null,null,null,null,null,null,null,null,null,null,null,null,null,null,null,null,null,null,null,null,null,null,null,null,null,null,null,null,null,null,null,null,null,null,null,null,null,null,17,"Çitlembik Sürgünleri",56,1.56,7.8,2.7,3.8,null,null,0.08,null,null,43,1.9,0.94,0,null,null,null,null,null,null,null,null,null,null,null,11,0,1]
[null,null,null,null,null,null,null,null,null,null,null,null,null,null,null,null,null,null,null,null,null,null,null,null,null,null,null,null,null,null,null,null,null,null,null,null,null,null,null,null,null,null,null,null,null,null,null,null,null,null,null,null,null,null,null,null,null,null,null,null,null,null,null,null,null,null,null,null,null,null,null,null,null,null,null,null,18,"Dişbudak Yaprakları, Taze",44,null,10.9,null,null,null,null,null,null,51.2,null,null,null,null,null,38.4,null,null,10,null,null,null,null,null,null,11,0,1]
[null,null,null,null,null,null,null,null,null,null,null,null,null,null,null,null,null,null,null,null,null,null,null,null,null,null,null,null,null,null,null,null,null,null,null,null,null,null,null,null,null,null,null,null,null,null,null,null,null,null,null,null,null,null,null,null,null,null,null,null,null,null,null,null,null,null,null,null,null,null,null,null,null,null,null,null,19,"Domuz Ayrığı (Orchardgrass), Yaş, Çiçek Başı",24,2.4,14,9.8000000000000007,9.6,3.2,0.33,0.39,30,54,65,2.9,1.5,0.8,1.5,32,41,4,9,2.7,0.08,0.2,21,60.4,436,11,0,2]
[null,null,null,null,null,null,null,null,null,null,null,null,null,null,null,null,null,null,null,null,null,null,null,null,null,null,null,null,null,null,null,null,null,null,null,null,null,null,null,null,null,null,null,null,null,null,null,null,null,null,null,null,null,null,null,null,null,null,null,null,null,null,null,null,null,null,null,null,null,null,null,null,null,null,null,null,20,"Dut Sürgünleri",40,2.57,18.100000000000001,9.4,13.4,null,null,0.24,null,null,71,3.13,1.61,1,null,null,null,null,15,null,null,null,null,null,null,11,0,1]
[null,null,null,null,null,null,null,null,null,null,null,null,null,null,null,null,null,null,null,null,null,null,null,null,null,null,null,null,null,null,null,null,null,null,null,null,null,null,null,null,null,null,null,null,null,null,null,null,null,null,null,null,null,null,null,null,null,null,null,null,null,null,null,null,null,null,null,null,null,null,null,null,null,null,null,null,21,"Erik Yaprakları",30,1.56,7.8,null,null,null,null,null,null,null,43,1.9,0.94,0,null,null,null,null,null,null,null,null,null,null,null,11,0,1]
[null,null,null,null,null,null,null,null,null,null,null,null,null,null,null,null,null,null,null,null,null,null,null,null,null,null,null,null,null,null,null,null,null,null,null,null,null,null,null,null,null,null,null,null,null,null,null,null,null,null,null,null,null,null,null,null,null,null,null,null,null,null,null,null,null,null,null,null,null,null,null,null,null,null,null,null,22,"Fiğ Bitkisi",20,2.13,18.600000000000001,9.6999999999999993,13.9,null,null,0.34,28,null,59,2.6,1.28,0.62,null,null,null,null,null,null,null,null,null,null,null,6,0,2]
[null,null,null,null,null,null,null,null,null,null,null,null,null,null,null,null,null,null,null,null,null,null,null,null,null,null,null,null,null,null,null,null,null,null,null,null,null,null,null,null,null,null,null,null,null,null,null,null,null,null,null,null,null,null,null,null,null,null,null,null,null,null,null,null,null,null,null,null,null,null,null,null,null,null,null,null,23,"Hanımeli Yaprakları",33,2.5,10,4.0999999999999996,5.9,null,null,0.11,null,20,69,3.04,1.55,0.94,null,null,null,null,null,null,null,null,null,null,null,11,0,1]
[null,null,null,null,null,null,null,null,null,null,null,null,null,null,null,null,null,null,null,null,null,null,null,null,null,null,null,null,null,null,null,null,null,null,null,null,null,null,null,null,null,null,null,null,null,null,null,null,null,null,null,null,null,null,null,null,null,null,null,null,null,null,null,null,null,null,null,null,null,null,null,null,null,null,null,null,24,"Havuç Yaprakları ",16,2.6,13,9.1,8.6999999999999993,null,1.94,0.19,18,45,73,3.2,1.7,1.1000000000000001,1.7,23,41,3.8,15,1.9,null,null,null,null,null,1,0,1]
[null,null,null,null,null,null,null,null,null,null,null,null,null,null,null,null,null,null,null,null,null,null,null,null,null,null,null,null,null,null,null,null,null,null,null,null,null,null,null,null,null,null,null,null,null,null,null,null,null,null,null,null,null,null,null,null,null,null,null,null,null,null,null,null,null,null,null,null,null,null,null,null,null,null,null,null,25,"Hurma Yaprakları",48,1.95,11.8,5.3,7.6,null,null,0.11,null,null,54,2.38,1.1599999999999999,0.43,null,null,null,null,null,null,null,null,null,null,null,1,0,1]
[null,null,null,null,null,null,null,null,null,null,null,null,null,null,null,null,null,null,null,null,null,null,null,null,null,null,null,null,null,null,null,null,null,null,null,null,null,null,null,null,null,null,null,null,null,null,null,null,null,null,null,null,null,null,null,null,null,null,null,null,null,null,null,null,null,null,null,null,null,null,null,null,null,null,null,null,26,"Hünnap Sürgünleri",32,1.1200000000000001,8.6,2.2000000000000002,3.1,null,null,null,null,null,31,1.37,0.79,0,null,null,null,null,null,null,null,null,null,null,null,1,0,1]
[null,null,null,null,null,null,null,null,null,null,null,null,null,null,null,null,null,null,null,null,null,null,null,null,null,null,null,null,null,null,null,null,null,null,null,null,null,null,null,null,null,null,null,null,null,null,null,null,null,null,null,null,null,null,null,null,null,null,null,null,null,null,null,null,null,null,null,null,null,null,null,null,null,null,null,null,27,"İncir Yaprakları",30,1.95,11.2,4.7,6.7,null,null,0.71,null,null,54,2.38,1.1599999999999999,0.43,null,null,null,null,null,null,null,null,null,null,null,11,0,1]
[null,null,null,null,null,null,null,null,null,null,null,null,null,null,null,null,null,null,null,null,null,null,null,null,null,null,null,null,null,null,null,null,null,null,null,null,null,null,null,null,null,null,null,null,null,null,null,null,null,null,null,null,null,null,null,null,null,null,null,null,null,null,null,null,null,null,null,null,null,null,null,null,null,null,null,null,28,"Kaktüs",26,2.2999999999999998,5,3.5,1.5,null,3.5,0.1,18,29,63,2.8,1.4,0.7,1.4,23,null,2.1,17,1.7,null,0.2,null,null,null,11,0,2]
[null,null,null,null,null,null,null,null,null,null,null,null,null,null,null,null,null,null,null,null,null,null,null,null,null,null,null,null,null,null,null,null,null,null,null,null,null,null,null,null,null,null,null,null,null,null,null,null,null,null,null,null,null,null,null,null,null,null,null,null,null,null,null,null,null,null,null,null,null,null,null,null,null,null,null,null,29,"Kamışsı Yumak, Yaş",29,2.2999999999999998,15,10.5,10.5,3,0.48,0.37,25,64,64,2.8,1.4,0.8,1.4,32,40,5.5,9,2.5,null,0.18,22,null,null,11,0,1]
[null,null,null,null,null,null,null,null,null,null,null,null,null,null,null,null,null,null,null,null,null,null,null,null,null,null,null,null,null,null,null,null,null,null,null,null,null,null,null,null,null,null,null,null,null,null,null,null,null,null,null,null,null,null,null,null,null,null,null,null,null,null,null,null,null,null,null,null,null,null,null,null,null,null,null,null,30,"Kır Ayrığı (Wheatgrass), Yaş, Çiçek Başı",37,2.2000000000000002,11,7.7,6.9,2.8,0.46,0.32,26,50,60,2.6,1.3,0.7,1.3,28,41,1.6,7,2.4,null,null,null,42.6,null,11,0,2]
[null,null,null,null,null,null,null,null,null,null,null,null,null,null,null,null,null,null,null,null,null,null,null,null,null,null,null,null,null,null,null,null,null,null,null,null,null,null,null,null,null,null,null,null,null,null,null,null,null,null,null,null,null,null,null,null,null,null,null,null,null,null,null,null,null,null,null,null,null,null,null,null,null,null,null,null,31,"Kır Ayrığı (Wheatgrass), Yaş, Tam Çiçeklenme",50,2,10,7,6,3.3,0.39,0.28000000000000003,33,65,55,2.4,1.2,0.5,1.2,36,41,1.6,7,2.1,null,null,null,null,null,11,0,2]
[null,null,null,null,null,null,null,null,null,null,null,null,null,null,null,null,null,null,null,null,null,null,null,null,null,null,null,null,null,null,null,null,null,null,null,null,null,null,null,null,null,null,null,null,null,null,null,null,null,null,null,null,null,null,null,null,null,null,null,null,null,null,null,null,null,null,null,null,null,null,null,null,null,null,null,null,32,"Marul ",5,2.5299999999999998,22,11.9,17,null,null,null,null,null,70,3.09,1.58,0.97,null,null,null,null,23,null,null,null,null,null,null,11,0,1]
[null,null,null,null,null,null,null,null,null,null,null,null,null,null,null,null,null,null,null,null,null,null,null,null,null,null,null,null,null,null,null,null,null,null,null,null,null,null,null,null,null,null,null,null,null,null,null,null,null,null,null,null,null,null,null,null,null,null,null,null,null,null,null,null,null,null,null,null,null,null,null,null,null,null,null,null,33,"Meşe Sürgünleri",36,1.95,20.3,10.9,15.5,null,null,0.38,null,34,54,2.38,1.1599999999999999,0.43,null,null,null,null,null,null,null,null,null,null,null,11,0,1]
[null,null,null,null,null,null,null,null,null,null,null,null,null,null,null,null,null,null,null,null,null,null,null,null,null,null,null,null,null,null,null,null,null,null,null,null,null,null,null,null,null,null,null,null,null,null,null,null,null,null,null,null,null,null,null,null,null,null,null,null,null,null,null,null,null,null,null,null,null,null,null,null,null,null,null,null,34,"Meşe Sürgünleri",32,2.6,17.399999999999999,9,12.8,null,null,0.31,null,23,72,3.17,1.64,1.03,null,null,null,null,null,null,null,null,null,null,null,11,0,1]
[null,null,null,null,null,null,null,null,null,null,null,null,null,null,null,null,null,null,null,null,null,null,null,null,null,null,null,null,null,null,null,null,null,null,null,null,null,null,null,null,null,null,null,null,null,null,null,null,null,null,null,null,null,null,null,null,null,null,null,null,null,null,null,null,null,null,null,null,null,null,null,null,null,null,null,null,35,"Meşe Yaprakları",50,1.66,10.199999999999999,4.3,6.1,null,null,0.11,null,45,46,2.0299999999999998,0.99,0.1,null,null,null,null,null,null,null,null,null,null,null,11,0,1]
[null,null,null,null,null,null,null,null,null,null,null,null,null,null,null,null,null,null,null,null,null,null,null,null,null,null,null,null,null,null,null,null,null,null,null,null,null,null,null,null,null,null,null,null,null,null,null,null,null,null,null,null,null,null,null,null,null,null,null,null,null,null,null,null,null,null,null,null,null,null,null,null,null,null,null,null,36,"Mimoza Sürgünleri ",26,2.5,20.6,11.1,15.8,null,null,0.17,null,null,69,3.04,1.55,0.94,null,null,null,null,null,null,null,null,null,null,null,11,0,1]
[null,null,null,null,null,null,null,null,null,null,null,null,null,null,null,null,null,null,null,null,null,null,null,null,null,null,null,null,null,null,null,null,null,null,null,null,null,null,null,null,null,null,null,null,null,null,null,null,null,null,null,null,null,null,null,null,null,null,null,null,null,null,null,null,null,null,null,null,null,null,null,null,null,null,null,null,37,"Muz Yaprakları, Hasat Sonrası",24,2.6,17.899999999999999,9.5,13.6,null,1.1399999999999999,0.19,null,null,72,null,null,null,null,null,null,8.1999999999999993,10,null,null,null,null,null,null,11,0,1]
[null,null,null,null,null,null,null,null,null,null,null,null,null,null,null,null,null,null,null,null,null,null,null,null,null,null,null,null,null,null,null,null,null,null,null,null,null,null,null,null,null,null,null,null,null,null,null,null,null,null,null,null,null,null,null,null,null,null,null,null,null,null,null,null,null,null,null,null,null,null,null,null,null,null,null,null,38,"Muz Yaprakları, Körpe",18,2.48,20,10.9,15.6,null,0.24,0.21,null,null,69,null,null,null,null,null,null,4.0999999999999996,8,null,null,null,null,null,null,11,0,1]
[null,null,null,null,null,null,null,null,null,null,null,null,null,null,null,null,null,null,null,null,null,null,null,null,null,null,null,null,null,null,null,null,null,null,null,null,null,null,null,null,null,null,null,null,null,null,null,null,null,null,null,null,null,null,null,null,null,null,null,null,null,null,null,null,null,null,null,null,null,null,null,null,null,null,null,null,39,"Muz Yaprakları, Taze",19,1.81,15.7,4.7,6.7,null,null,0.7,null,null,50,2,1.07,0.28000000000000003,null,null,null,null,null,null,null,null,null,null,null,11,0,1]
[null,null,null,null,null,null,null,null,null,null,null,null,null,null,null,null,null,null,null,null,null,null,null,null,null,null,null,null,null,null,null,null,null,null,null,null,null,null,null,null,null,null,null,null,null,null,null,null,null,null,null,null,null,null,null,null,null,null,null,null,null,null,null,null,null,null,null,null,null,null,null,null,null,null,null,null,40,"OTLAK, AĞUSTOS",20,2.15,9.6999999999999993,6,5.2,3.5,0.26,0.15,30,65,50,2.1,1,0.3,1,40,41,1.6,7,2.1,null,null,null,null,null,0,null,4]
[null,null,null,null,null,null,null,null,null,null,null,null,null,null,null,null,null,null,null,null,null,null,null,null,null,null,null,null,null,null,null,null,null,null,null,null,null,null,null,null,null,null,null,null,null,null,null,null,null,null,null,null,null,null,null,null,null,null,null,null,null,null,null,null,null,null,null,null,null,null,null,null,null,null,null,null,41,"OTLAK, EYLÜL",20,2.0699999999999998,6.9,3,2,4,0.26,0.15,30,70,48,1.6,0.8,0.2,0.8,42,41,1.6,7,2.1,null,null,null,null,null,0,null,4]
[null,null,null,null,null,null,null,null,null,null,null,null,null,null,null,null,null,null,null,null,null,null,null,null,null,null,null,null,null,null,null,null,null,null,null,null,null,null,null,null,null,null,null,null,null,null,null,null,null,null,null,null,null,null,null,null,null,null,null,null,null,null,null,null,null,null,null,null,null,null,null,null,null,null,null,null,42,"OTLAK, HAZİRAN",20,2.35,11,7.7,6.9,2.2000000000000002,0.26,0.15,25,59,64,2.8,1.4,0.8,1.4,36,41,3.8,7,1.9,0.56999999999999995,0.15,28,35.799999999999997,111,0,null,4]
[null,null,null,null,null,null,null,null,null,null,null,null,null,null,null,null,null,null,null,null,null,null,null,null,null,null,null,null,null,null,null,null,null,null,null,null,null,null,null,null,null,null,null,null,null,null,null,null,null,null,null,null,null,null,null,null,null,null,null,null,null,null,null,null,null,null,null,null,null,null,null,null,null,null,null,null,43,"OTLAK, KIŞ",80,1.83,4.7,2,1,4,0.26,0.15,40,72,45,1.3,0.5,0.1,0.6,45,41,1.6,7,2.1,null,null,null,null,null,0,null,4]
[null,null,null,null,null,null,null,null,null,null,null,null,null,null,null,null,null,null,null,null,null,null,null,null,null,null,null,null,null,null,null,null,null,null,null,null,null,null,null,null,null,null,null,null,null,null,null,null,null,null,null,null,null,null,null,null,null,null,null,null,null,null,null,null,null,null,null,null,null,null,null,null,null,null,null,null,44,"OTLAK, TEMMUZ",20,2.25,10.5,7,6,3.3,0.26,0.15,25,65,55,2.4,1.2,0.5,1.2,36,41,1.6,7,2.1,null,null,null,null,null,0,null,4]
[null,null,null,null,null,null,null,null,null,null,null,null,null,null,null,null,null,null,null,null,null,null,null,null,null,null,null,null,null,null,null,null,null,null,null,null,null,null,null,null,null,null,null,null,null,null,null,null,null,null,null,null,null,null,null,null,null,null,null,null,null,null,null,null,null,null,null,null,null,null,null,null,null,null,null,null,45,"Sarı Çiçekli Gazal Boynuzu (Birdsfoot), Yaş",22,2.4,21,14.7,15.9,4.2,1.78,0.25,21,47,66,2.9,1.5,0.8,1.5,31,41,4.4000000000000004,9,2.6,null,0.25,31,null,null,11,0,2]
[null,null,null,null,null,null,null,null,null,null,null,null,null,null,null,null,null,null,null,null,null,null,null,null,null,null,null,null,null,null,null,null,null,null,null,null,null,null,null,null,null,null,null,null,null,null,null,null,null,null,null,null,null,null,null,null,null,null,null,null,null,null,null,null,null,null,null,null,null,null,null,null,null,null,null,null,46,"Söğüt Sürgünleri",41,2.2000000000000002,9.8000000000000007,null,null,null,null,null,27.2,48.1,null,null,null,null,null,39.9,null,null,7,null,null,null,null,null,null,11,0,1]
[null,null,null,null,null,null,null,null,null,null,null,null,null,null,null,null,null,null,null,null,null,null,null,null,null,null,null,null,null,null,null,null,null,null,null,null,null,null,null,null,null,null,null,null,null,null,null,null,null,null,null,null,null,null,null,null,null,null,null,null,null,null,null,null,null,null,null,null,null,null,null,null,null,null,null,null,47,"Sudan Otu, Taze, Körpe",18,2.5,17,11.9,12.3,null,0.46,0.36,23,55,70,3.1,1.6,1,1.6,29,41,3.9,9,2,null,0.11,24,39.6,null,11,0,2]
[null,null,null,null,null,null,null,null,null,null,null,null,null,null,null,null,null,null,null,null,null,null,null,null,null,null,null,null,null,null,null,null,null,null,null,null,null,null,null,null,null,null,null,null,null,null,null,null,null,null,null,null,null,null,null,null,null,null,null,null,null,null,null,null,null,null,null,null,null,null,null,null,null,null,null,null,48,"Sumak Sürgünleri",40,2.78,13.7,6.5,9.3000000000000007,null,null,0.2,null,null,77,3.4,1.79,1.17,null,null,null,null,null,null,null,null,null,null,null,11,0,1]
[null,null,null,null,null,null,null,null,null,null,null,null,null,null,null,null,null,null,null,null,null,null,null,null,null,null,null,null,null,null,null,null,null,null,null,null,null,null,null,null,null,null,null,null,null,null,null,null,null,null,null,null,null,null,null,null,null,null,null,null,null,null,null,null,null,null,null,null,null,null,null,null,null,null,null,null,49,"Şalgam Yaprakları",18,2.5,16,11.2,11.4,null,3.2,0.31,10,null,69,3,1.6,0.9,1.5,13,null,2.6,13,3,1.8,0.27,null,null,null,11,0,2]
[null,null,null,null,null,null,null,null,null,null,null,null,null,null,null,null,null,null,null,null,null,null,null,null,null,null,null,null,null,null,null,null,null,null,null,null,null,null,null,null,null,null,null,null,null,null,null,null,null,null,null,null,null,null,null,null,null,null,null,null,null,null,null,null,null,null,null,null,null,null,null,null,null,null,null,null,50,"Şeker Pancarı Yaprakları",20,2.1,14,9.8000000000000007,9.6,null,1.2,0.23,10,25,58,2.6,1.3,0.6,1.3,14,41,1.5,24,5.0999999999999996,0.2,0.45,20,null,null,2.5,0,2]
[null,null,null,null,null,null,null,null,null,null,null,null,null,null,null,null,null,null,null,null,null,null,null,null,null,null,null,null,null,null,null,null,null,null,null,null,null,null,null,null,null,null,null,null,null,null,null,null,null,null,null,null,null,null,null,null,null,null,null,null,null,null,null,null,null,null,null,null,null,null,null,null,null,null,null,null,51,"Şerbetçiotu Yaprakları",37,1.8,15,10.5,10.5,null,2.8,0.64,15,null,49,2.2000000000000002,1.1000000000000001,0.2,1.1000000000000001,null,null,3.6,35,null,null,null,null,null,null,11,0,2]
[null,null,null,null,null,null,null,null,null,null,null,null,null,null,null,null,null,null,null,null,null,null,null,null,null,null,null,null,null,null,null,null,null,null,null,null,null,null,null,null,null,null,null,null,null,null,null,null,null,null,null,null,null,null,null,null,null,null,null,null,null,null,null,null,null,null,null,null,null,null,null,null,null,null,null,null,52,"Şeytan Otu (Pangolagrass) Yaprakları ",20,2.25,17.7,9.5,13.5,null,null,null,null,null,62,null,null,null,null,null,null,2.9,8,null,null,null,null,null,null,11,0,2]
[null,null,null,null,null,null,null,null,null,null,null,null,null,null,null,null,null,null,null,null,null,null,null,null,null,null,null,null,null,null,null,null,null,null,null,null,null,null,null,null,null,null,null,null,null,null,null,null,null,null,null,null,null,null,null,null,null,null,null,null,null,null,null,null,null,null,null,null,null,null,null,null,null,null,null,null,53,"Şeytan Otu (Pangolagrass) Yaprakları ",26,2.13,12.9,6.3,9,null,0.4,0.23,null,null,59,null,null,null,null,null,null,1.7,8,null,null,null,null,null,null,11,0,2]
[null,null,null,null,null,null,null,null,null,null,null,null,null,null,null,null,null,null,null,null,null,null,null,null,null,null,null,null,null,null,null,null,null,null,null,null,null,null,null,null,null,null,null,null,null,null,null,null,null,null,null,null,null,null,null,null,null,null,null,null,null,null,null,null,null,null,null,null,null,null,null,null,null,null,null,null,54,"Yer Elması Yaprakları ",27,2.2000000000000002,6,4.2,2.4,null,1.62,0.11,18,41,61,2.7,1.4,0.7,1.3,30,40,1.1000000000000001,10,1.4,null,null,null,null,null,1,0,2]
[null,null,null,null,null,null,null,null,null,null,null,null,null,null,null,null,null,null,null,null,null,null,null,null,null,null,null,null,null,null,null,null,null,null,null,null,null,null,null,null,null,null,null,null,null,null,null,null,null,null,null,null,null,null,null,null,null,null,null,null,null,null,null,null,null,null,null,null,null,null,null,null,null,null,null,null,55,"Yerelması Yaprakları",22,2.2400000000000002,20.7,11.3,16.2,null,null,null,null,null,62,null,null,null,null,null,null,2.2999999999999998,16,null,null,null,null,null,null,1,0,2]
[null,null,null,null,null,null,null,null,null,null,null,null,null,null,null,null,null,null,null,null,null,null,null,null,null,null,null,null,null,null,null,null,null,null,null,null,null,null,null,null,null,null,null,null,null,null,null,null,null,null,null,null,null,null,null,null,null,null,null,null,null,null,null,null,null,null,null,null,null,null,null,null,null,null,null,null,56,"Yerfıstığı Asması, Hasat Sonrası",18,2.12,15.3,7.2,10.3,null,0.98,0.36,null,null,59,null,null,null,null,null,null,2.6,5,null,null,null,null,null,null,1,0,2]
[null,null,null,null,null,null,null,null,null,null,null,null,null,null,null,null,null,null,null,null,null,null,null,null,null,null,null,null,null,null,null,null,null,null,null,null,null,null,null,null,null,null,null,null,null,null,null,null,null,null,null,null,null,null,null,null,null,null,null,null,null,null,null,null,null,null,null,null,null,null,null,null,null,null,null,null,57,"Yerfıstığı Asması, Körpe",16,2.25,20.9,10.9,15.5,null,null,null,null,null,62,null,null,null,null,null,null,2,8,null,null,null,null,null,null,1,0,2]
[null,null,null,null,null,null,null,null,null,null,null,null,null,null,null,null,null,null,null,null,null,null,null,null,null,null,null,null,null,null,null,null,null,null,null,null,null,null,null,null,null,null,null,null,null,null,null,null,null,null,null,null,null,null,null,null,null,null,null,null,null,null,null,null,null,null,null,null,null,null,null,null,null,null,null,null,58,"Yonca, Yaş",24,2.2000000000000002,19,13.3,14.1,3.4,1.35,0.27,27,46,61,2.7,1.4,0.7,1.3,35,41,3,9,2.6,0.4,0.28999999999999998,18,37,null,5,0,1]
[null,null,null,null,null,null,null,null,null,null,null,null,null,null,null,null,null,null,null,null,null,null,null,null,null,null,null,null,null,null,null,null,null,null,null,null,null,null,null,null,null,null,null,null,null,null,null,null,null,null,null,null,null,null,null,null,null,null,null,null,null,null,null,null,null,null,null,null,null,null,null,null,null,null,null,null,59]
[null,null,null,null,null,null,null,null,null,null,null,null,null,null,null,null,null,null,null,null,null,null,null,null,null,null,null,null,null,null,null,null,null,null,null,null,null,null,null,null,null,null,null,null,null,null,null,null,null,null,null,null,null,null,null,null,null,null,null,null,null,null,null,null,null,null,null,null,null,null,null,null,null,null,null,null,60]
[null,null,null,null,null,null,null,null,null,null,null,null,null,null,null,null,null,null,null,null,null,null,null,null,null,null,null,null,null,null,null,null,null,null,null,null,null,null,null,null,null,null,null,null,null,null,null,null,null,null,null,null,null,null,null,null,null,null,null,null,null,null,null,null,null,null,null,null,null,null,null,null,null,null,null,null,61]
[null,null,null,null,null,null,null,null,null,null,null,null,null,null,null,null,null,null,null,null,null,null,null,null,null,null,null,null,null,null,null,null,null,null,null,null,null,null,null,null,null,null,null,null,null,null,null,null,null,null,null,null,null,null,null,null,null,null,null,null,null,null,null,null,null,null,null,null,null,null,null,null,null,null,null,null,62]
[null,null,null,null,null,null,null,null,null,null,null,null,null,null,null,null,null,null,null,null,null,null,null,null,null,null,null,null,null,null,null,null,null,null,null,null,null,null,null,null,null,null,null,null,null,null,null,null,null,null,null,null,null,null,null,null,null,null,null,null,null,null,null,null,null,null,null,null,null,null,null,null,null,null,null,null,63]
[null,null,null,null,null,null,null,null,null,null,null,null,null,null,null,null,null,null,null,null,null,null,null,null,null,null,null,null,null,null,null,null,null,null,null,null,null,null,null,null,null,null,null,null,null,null,null,null,null,null,null,null,null,null,null,null,null,null,null,null,null,null,null,null,null,null,null,null,null,null,null,null,null,null,null,null,64]
[null,null,null,null,null,null,null,null,null,null,null,null,null,null,null,null,null,null,null,null,null,null,null,null,null,null,null,null,null,null,null,null,null,null,null,null,null,null,null,null,null,null,null,null,null,null,null,null,null,null,null,null,null,null,null,null,null,null,null,null,null,null,null,null,null,null,null,null,null,null,null,null,null,null,null,null,65]
[null,null,null,null,null,null,null,null,null,null,null,null,null,null,null,null,null,null,null,null,null,null,null,null,null,null,null,null,null,null,null,null,null,null,null,null,null,null,null,null,null,null,null,null,null,null,null,null,null,null,null,null,null,null,null,null,null,null,null,null,null,null,null,null,null,null,null,null,null,null,null,null,null,null,null,null,66]
[null,null,null,null,null,null,null,null,null,null,null,null,null,null,null,null,null,null,null,null,null,null,null,null,null,null,null,null,null,null,null,null,null,null,null,null,null,null,null,null,null,null,null,null,null,null,null,null,null,null,null,null,null,null,null,null,null,null,null,null,null,null,null,null,null,null,null,null,null,null,null,null,null,null,null,null,67]
[null,null,null,null,null,null,null,null,null,null,null,null,null,null,null,null,null,null,null,null,null,null,null,null,null,null,null,null,null,null,null,null,null,null,null,null,null,null,null,null,null,null,null,null,null,null,null,null,null,null,null,null,null,null,null,null,null,null,null,null,null,null,null,null,null,null,null,null,null,null,null,null,null,null,null,null,68]
[null,null,null,null,null,null,null,null,null,null,null,null,null,null,null,null,null,null,null,null,null,null,null,null,null,null,null,null,null,null,null,null,null,null,null,null,null,null,null,null,null,null,null,null,null,null,null,null,null,null,null,null,null,null,null,null,null,null,null,null,null,null,null,null,null,null,null,null,null,null,null,null,null,null,null,null,69]
[null,null,null,null,null,null,null,null,null,null,null,null,null,null,null,null,null,null,null,null,null,null,null,null,null,null,null,null,null,null,null,null,null,null,null,null,null,null,null,null,null,null,null,null,null,null,null,null,null,null,null,null,null,null,null,null,null,null,null,null,null,null,null,null,null,null,null,null,null,null,null,null,null,null,null,null,70]
[null,null,null,null,null,null,null,null,null,null,null,null,null,null,null,null,null,null,null,null,null,null,null,null,null,null,null,null,null,null,null,null,null,null,null,null,null,null,null,null,null,null,null,null,null,null,null,null,null,null,null,null,null,null,null,null,null,null,null,null,null,null,null,null,null,null,null,null,null,null,null,null,null,null,null,null,71]
[null,null,null,null,null,null,null,null,null,null,null,null,null,null,null,null,null,null,null,null,null,null,null,null,null,null,null,null,null,null,null,null,null,null,null,null,null,null,null,null,null,null,null,null,null,null,null,null,null,null,null,null,null,null,null,null,null,null,null,null,null,null,null,null,null,null,null,null,null,null,null,null,null,null,null,null,72]
[null,null,null,null,null,null,null,null,null,null,null,null,null,null,null,null,null,null,null,null,null,null,null,null,null,null,null,null,null,null,null,null,null,null,null,null,null,null,null,null,null,null,null,null,null,null,null,null,null,null,null,null,null,null,null,null,null,null,null,null,null,null,null,null,null,null,null,null,null,null,null,null,null,null,null,null,73]
[null,null,null,null,null,null,null,null,null,null,null,null,null,null,null,null,null,null,null,null,null,null,null,null,null,null,null,null,null,null,null,null,null,null,null,null,null,null,null,null,null,null,null,null,null,null,null,null,null,null,null,null,null,null,null,null,null,null,null,null,null,null,null,null,null,null,null,null,null,null,null,null,null,null,null,null,74]
[null,null,null,null,null,null,null,null,null,null,null,null,null,null,null,null,null,null,null,null,null,null,null,null,null,null,null,null,null,null,null,null,null,null,null,null,null,null,null,null,null,null,null,null,null,null,null,null,null,null,null,null,null,null,null,null,null,null,null,null,null,null,null,null,null,null,null,null,null,null,null,null,null,null,null,null,75]
[null,null,null,null,null,null,null,null,null,null,null,null,null,null,null,null,null,null,null,null,null,null,null,null,null,null,null,null,null,null,null,null,null,null,null,null,null,null,null,null,null,null,null,null,null,null,null,null,null,null,null,null,null,null,null,null,null,null,null,null,null,null,null,null,null,null,null,null,null,null,null,null,null,null,null,null,null,"SİLAJLAR","KM,%","ME, Mcal/kg","HP,%","MP,%","DIP,%","RUP,%","Ca,%","P,%","HS,%","NDF,%","TSBM,%","SE, Mcal/kg","NEyp, Mcal/kg","NEb, Mcal/kg","NEl, Mcal/kg","ADF,%","eNDF,%","HY,%","HK,%","K,%","Cl,%","S,%","Zn,ppm","VitA, RE/kg","VitE,ppm","Fiyat,TL","En az","En çok"]
[null,null,null,null,null,null,null,null,null,null,null,null,null,null,null,null,null,null,null,null,null,null,null,null,null,null,null,null,null,null,null,null,null,null,null,null,null,null,null,null,null,null,null,null,null,null,null,null,null,null,null,null,null,null,null,null,null,null,null,null,null,null,null,null,null,null,null,null,null,null,null,null,null,null,null,null,1,"Arpa Silajı ",35,2.1,12,8.4,7.8,2.6,0.46,0.3,34,58,59,2.6,1.3,0.6,1.3,37,61,3,9,2.4,null,0.22,28,null,null,3.5,0,2]
[null,null,null,null,null,null,null,null,null,null,null,null,null,null,null,null,null,null,null,null,null,null,null,null,null,null,null,null,null,null,null,null,null,null,null,null,null,null,null,null,null,null,null,null,null,null,null,null,null,null,null,null,null,null,null,null,null,null,null,null,null,null,null,null,null,null,null,null,null,null,null,null,null,null,null,null,2,"Arpa Silajı, Olgun",35,2.1,12,8.4,7.8,3,0.3,0.2,30,50,58,2.6,1.3,0.6,1.3,34,61,3.5,9,1.5,null,0.15,25,null,null,3.5,0,2]
[null,null,null,null,null,null,null,null,null,null,null,null,null,null,null,null,null,null,null,null,null,null,null,null,null,null,null,null,null,null,null,null,null,null,null,null,null,null,null,null,null,null,null,null,null,null,null,null,null,null,null,null,null,null,null,null,null,null,null,null,null,null,null,null,null,null,null,null,null,null,null,null,null,null,null,null,3,"Ayçiçeği Silajı, Geç Çiçeklenme",26,1.56,8.1999999999999993,5.6,3.7,null,null,null,38.200000000000003,null,43,1.9,0.94,0,0.94,null,null,2.1,15,null,null,null,null,null,null,4,0,2]
[null,null,null,null,null,null,null,null,null,null,null,null,null,null,null,null,null,null,null,null,null,null,null,null,null,null,null,null,null,null,null,null,null,null,null,null,null,null,null,null,null,null,null,null,null,null,null,null,null,null,null,null,null,null,null,null,null,null,null,null,null,null,null,null,null,null,null,null,null,null,null,null,null,null,null,null,4,"Ayçiçeği Silajı, Süt Olumu",21,1.83,9.6999999999999993,6.3,5,null,null,null,29.4,null,51,2.23,1.08,0.3,1.1200000000000001,null,null,5.9,10,null,null,null,null,null,null,4,0,2]
[null,null,null,null,null,null,null,null,null,null,null,null,null,null,null,null,null,null,null,null,null,null,null,null,null,null,null,null,null,null,null,null,null,null,null,null,null,null,null,null,null,null,null,null,null,null,null,null,null,null,null,null,null,null,null,null,null,null,null,null,null,null,null,null,null,null,null,null,null,null,null,null,null,null,null,null,5,"Bezelye Silajı",24,1.95,25.7,13.7,19.600000000000001,null,null,0.48,null,null,54,2.38,1.1599999999999999,0.43,null,null,null,null,null,null,null,null,null,null,null,5.5,0,2]
[null,null,null,null,null,null,null,null,null,null,null,null,null,null,null,null,null,null,null,null,null,null,null,null,null,null,null,null,null,null,null,null,null,null,null,null,null,null,null,null,null,null,null,null,null,null,null,null,null,null,null,null,null,null,null,null,null,null,null,null,null,null,null,null,null,null,null,null,null,null,null,null,null,null,null,null,6,"Bezelye Silajı ",25,2.1,16,11.2,11.4,null,1.25,0.28000000000000003,29,55,58,2.6,1.3,0.6,1.3,44,61,3.3,8,1.6,null,0.28999999999999998,32,37.799999999999997,null,5.5,0,2]
[null,null,null,null,null,null,null,null,null,null,null,null,null,null,null,null,null,null,null,null,null,null,null,null,null,null,null,null,null,null,null,null,null,null,null,null,null,null,null,null,null,null,null,null,null,null,null,null,null,null,null,null,null,null,null,null,null,null,null,null,null,null,null,null,null,null,null,null,null,null,null,null,null,null,null,null,7,"Brom Otu (Bromegrass) Balya Silajı",35,2.1,11,7.7,6.9,2.9,0.38,0.3,36,69,57,2.5,1.3,0.6,1.3,44,61,2.5,8,2,null,0.2,19,null,null,10,0,2]
[null,null,null,null,null,null,null,null,null,null,null,null,null,null,null,null,null,null,null,null,null,null,null,null,null,null,null,null,null,null,null,null,null,null,null,null,null,null,null,null,null,null,null,null,null,null,null,null,null,null,null,null,null,null,null,null,null,null,null,null,null,null,null,null,null,null,null,null,null,null,null,null,null,null,null,null,8,"Buğday Silajı ",33,2.1,12,8.4,7.8,2.5,0.4,0.28000000000000003,28,62,59,2.6,1.3,0.6,1.3,37,61,3.2,8,2.1,0.5,0.21,27,29.4,null,3.5,0,2]
[null,null,null,null,null,null,null,null,null,null,null,null,null,null,null,null,null,null,null,null,null,null,null,null,null,null,null,null,null,null,null,null,null,null,null,null,null,null,null,null,null,null,null,null,null,null,null,null,null,null,null,null,null,null,null,null,null,null,null,null,null,null,null,null,null,null,null,null,null,null,null,null,null,null,null,null,9,"Çayır Kelp Kuyruğu (Timothy) Silajı ",34,2.1,10,7,6,2.5,0.5,0.27,34,70,59,2.6,1.3,0.6,1.3,45,61,3.4,7,1.7,null,0.15,null,18,null,10,0,2]
[null,null,null,null,null,null,null,null,null,null,null,null,null,null,null,null,null,null,null,null,null,null,null,null,null,null,null,null,null,null,null,null,null,null,null,null,null,null,null,null,null,null,null,null,null,null,null,null,null,null,null,null,null,null,null,null,null,null,null,null,null,null,null,null,null,null,null,null,null,null,null,null,null,null,null,null,10,"Çayır Silajı",30,2.2000000000000002,11,7.7,6.9,2.6,0.7,0.24,32,60,61,2.7,1.4,0.7,1.3,39,61,3.4,8,2.1,null,0.22,29,null,null,5,0,2]
[null,null,null,null,null,null,null,null,null,null,null,null,null,null,null,null,null,null,null,null,null,null,null,null,null,null,null,null,null,null,null,null,null,null,null,null,null,null,null,null,null,null,null,null,null,null,null,null,null,null,null,null,null,null,null,null,null,null,null,null,null,null,null,null,null,null,null,null,null,null,null,null,null,null,null,null,11,"Çayır Silajı (Napiergrass) ",26,1.56,4.8,0.4,0.5,null,null,0.31,null,null,43,1.9,0.94,0,null,null,null,null,null,null,null,null,null,null,null,5,0,2]
[null,null,null,null,null,null,null,null,null,null,null,null,null,null,null,null,null,null,null,null,null,null,null,null,null,null,null,null,null,null,null,null,null,null,null,null,null,null,null,null,null,null,null,null,null,null,null,null,null,null,null,null,null,null,null,null,null,null,null,null,null,null,null,null,null,null,null,null,null,null,null,null,null,null,null,null,12,"Çayır Silajı (Rye Grass) ",32,2.1,14,9.8000000000000007,9.6,3.5,0.43,0.38,22,59,59,2.6,1.3,0.6,1.3,37,61,3.3,8,2.9,0.73,0.23,29,11.6,null,5,0,2]
[null,null,null,null,null,null,null,null,null,null,null,null,null,null,null,null,null,null,null,null,null,null,null,null,null,null,null,null,null,null,null,null,null,null,null,null,null,null,null,null,null,null,null,null,null,null,null,null,null,null,null,null,null,null,null,null,null,null,null,null,null,null,null,null,null,null,null,null,null,null,null,null,null,null,null,null,13,"Kanola Silajı",23,2.1,14,9.8000000000000007,9.6,3.5,0.43,0.38,22,46.8,55,2.6,1.3,0.6,1.3,39.700000000000003,61,3.3,8,2.9,0.73,0.23,29,11.6,null,5,0,2]
[null,null,null,null,null,null,null,null,null,null,null,null,null,null,null,null,null,null,null,null,null,null,null,null,null,null,null,null,null,null,null,null,null,null,null,null,null,null,null,null,null,null,null,null,null,null,null,null,null,null,null,null,null,null,null,null,null,null,null,null,null,null,null,null,null,null,null,null,null,null,null,null,null,null,null,null,14,"Köpekdişi (Bermudagrass) Silajı ",26,1.8,10,7,6,1.5,0.46,0.2,30,null,50,2.2000000000000002,1.1000000000000001,0.3,1.1000000000000001,37,48,1.9,8,1.5,null,0.25,33,null,null,2.5,0,2]
[null,null,null,null,null,null,null,null,null,null,null,null,null,null,null,null,null,null,null,null,null,null,null,null,null,null,null,null,null,null,null,null,null,null,null,null,null,null,null,null,null,null,null,null,null,null,null,null,null,null,null,null,null,null,null,null,null,null,null,null,null,null,null,null,null,null,null,null,null,null,null,null,null,null,null,null,15,"Mısır Silajı, Olgun",34,2.6,8,5.6,4.2,2.2000000000000002,0.28000000000000003,0.23,21,46,72,3.2,1.7,1,1.6,27,70,3.1,5,1.1000000000000001,0.2,0.12,22,5.9219999999999997,null,2.5,0,2]
[null,null,null,null,null,null,null,null,null,null,null,null,null,null,null,null,null,null,null,null,null,null,null,null,null,null,null,null,null,null,null,null,null,null,null,null,null,null,null,null,null,null,null,null,null,null,null,null,null,null,null,null,null,null,null,null,null,null,null,null,null,null,null,null,null,null,null,null,null,null,null,null,null,null,null,null,16,"Mısır Silajı, Süt Olumu",26,2.4,8,5.6,4.2,1.4,0.4,0.27,26,54,65,2.9,1.5,0.8,1.5,32,60,2.8,6,1.6,null,0.11,20,null,null,2.5,0,2]
[null,null,null,null,null,null,null,null,null,null,null,null,null,null,null,null,null,null,null,null,null,null,null,null,null,null,null,null,null,null,null,null,null,null,null,null,null,null,null,null,null,null,null,null,null,null,null,null,null,null,null,null,null,null,null,null,null,null,null,null,null,null,null,null,null,null,null,null,null,null,null,null,null,null,null,null,17,"Mısır Silajı, Tatlı Mısır ",24,2.4,11,7.7,6.9,null,0.24,0.26,20,57,65,2.9,1.5,0.8,1.5,32,60,5,5,1.2,0.17,0.16,39,1.7110000000000001,null,4,0,2]
[null,null,null,null,null,null,null,null,null,null,null,null,null,null,null,null,null,null,null,null,null,null,null,null,null,null,null,null,null,null,null,null,null,null,null,null,null,null,null,null,null,null,null,null,null,null,null,null,null,null,null,null,null,null,null,null,null,null,null,null,null,null,null,null,null,null,null,null,null,null,null,null,null,null,null,null,18,"Patates Bitkisi Silajı ",15,2.1,15,10.5,10.5,null,2.1,0.28999999999999998,26,null,59,2.6,1.3,0.6,1.3,null,null,3.7,19,4,null,0.37,null,null,null,5,0,2]
[null,null,null,null,null,null,null,null,null,null,null,null,null,null,null,null,null,null,null,null,null,null,null,null,null,null,null,null,null,null,null,null,null,null,null,null,null,null,null,null,null,null,null,null,null,null,null,null,null,null,null,null,null,null,null,null,null,null,null,null,null,null,null,null,null,null,null,null,null,null,null,null,null,null,null,null,19,"Sorgum Silajı ",32,2.1,9,6.3,5.0999999999999996,2.7,0.48,0.21,27,59,59,2.6,1.3,0.6,1.3,38,70,2.7,6,1.7,0.45,0.11,30,3,662,4,0,2]
[null,null,null,null,null,null,null,null,null,null,null,null,null,null,null,null,null,null,null,null,null,null,null,null,null,null,null,null,null,null,null,null,null,null,null,null,null,null,null,null,null,null,null,null,null,null,null,null,null,null,null,null,null,null,null,null,null,null,null,null,null,null,null,null,null,null,null,null,null,null,null,null,null,null,null,null,20,"Soya Silajı",35,1.99,18,8.8000000000000007,12.5,null,null,0.36,null,null,55,2.4300000000000002,1.19,0.47,null,null,null,null,null,null,null,null,null,null,null,5,0,2]
[null,null,null,null,null,null,null,null,null,null,null,null,null,null,null,null,null,null,null,null,null,null,null,null,null,null,null,null,null,null,null,null,null,null,null,null,null,null,null,null,null,null,null,null,null,null,null,null,null,null,null,null,null,null,null,null,null,null,null,null,null,null,null,null,null,null,null,null,null,null,null,null,null,null,null,null,21,"Sudan Otu Silajı ",31,2.1,10,7,6,2.8,0.57999999999999996,0.27,30,64,58,2.6,1.3,0.6,1.3,42,61,3.1,10,2.4,0.52,0.14000000000000001,29,21,null,2.5,0,2]
[null,null,null,null,null,null,null,null,null,null,null,null,null,null,null,null,null,null,null,null,null,null,null,null,null,null,null,null,null,null,null,null,null,null,null,null,null,null,null,null,null,null,null,null,null,null,null,null,null,null,null,null,null,null,null,null,null,null,null,null,null,null,null,null,null,null,null,null,null,null,null,null,null,null,null,null,22,"Şeker Pancarı Yaprağı  Silajı ",25,1.9,12,8.4,7.8,null,1.38,0.22,12,null,52,2.2999999999999998,1.1000000000000001,0.4,1.1000000000000001,null,null,2,32,5.7,null,0.56999999999999995,20,null,null,11,0,2]
[null,null,null,null,null,null,null,null,null,null,null,null,null,null,null,null,null,null,null,null,null,null,null,null,null,null,null,null,null,null,null,null,null,null,null,null,null,null,null,null,null,null,null,null,null,null,null,null,null,null,null,null,null,null,null,null,null,null,null,null,null,null,null,null,null,null,null,null,null,null,null,null,null,null,null,null,23,"Şerbetçiotu Asması Silajı",30,1.9,15,10.5,10.5,null,3.3,0.37,21,null,53,2.2999999999999998,1.2,0.4,1.2,24,null,3.1,20,1.8,null,0.22,44,null,null,11,0,2]
[null,null,null,null,null,null,null,null,null,null,null,null,null,null,null,null,null,null,null,null,null,null,null,null,null,null,null,null,null,null,null,null,null,null,null,null,null,null,null,null,null,null,null,null,null,null,null,null,null,null,null,null,null,null,null,null,null,null,null,null,null,null,null,null,null,null,null,null,null,null,null,null,null,null,null,null,24,"Şeytan Otu Silajı (Pangolagrass) ",32,2.0299999999999998,8.9,3,4.3,null,null,0.08,null,null,56,2.4700000000000002,1.21,0.51,null,null,null,null,null,null,null,null,null,null,null,3,0,2]
[null,null,null,null,null,null,null,null,null,null,null,null,null,null,null,null,null,null,null,null,null,null,null,null,null,null,null,null,null,null,null,null,null,null,null,null,null,null,null,null,null,null,null,null,null,null,null,null,null,null,null,null,null,null,null,null,null,null,null,null,null,null,null,null,null,null,null,null,null,null,null,null,null,null,null,null,25,"Tritikale Silajı ",34,2.1,14,9.8000000000000007,9.6,null,0.57999999999999996,0.34,30,56,58,2.6,1.3,0.6,1.3,39,61,3.6,null,2.7,null,0.28000000000000003,36,null,null,4,0,2]
[null,null,null,null,null,null,null,null,null,null,null,null,null,null,null,null,null,null,null,null,null,null,null,null,null,null,null,null,null,null,null,null,null,null,null,null,null,null,null,null,null,null,null,null,null,null,null,null,null,null,null,null,null,null,null,null,null,null,null,null,null,null,null,null,null,null,null,null,null,null,null,null,null,null,null,null,26,"Yonca Silajı ",30,2,18,12.6,13.2,3.4,1.4,0.28999999999999998,28,49,55,2.4,1.2,0.5,1.2,37,82,3,9,2.6,0.41,0.28999999999999998,26,19.8,null,4,0,2]
[null,null,null,null,null,null,null,null,null,null,null,null,null,null,null,null,null,null,null,null,null,null,null,null,null,null,null,null,null,null,null,null,null,null,null,null,null,null,null,null,null,null,null,null,null,null,null,null,null,null,null,null,null,null,null,null,null,null,null,null,null,null,null,null,null,null,null,null,null,null,null,null,null,null,null,null,27,"Yonca Silajı, Soldurulmuş",39,2.1,18,12.6,13.2,4,1.4,0.28999999999999998,28,49,58,2.6,1.3,0.6,1.3,37,82,3,9,2.6,0.41,0.28999999999999998,26,12,null,4,0,2]
[null,null,null,null,null,null,null,null,null,null,null,null,null,null,null,null,null,null,null,null,null,null,null,null,null,null,null,null,null,null,null,null,null,null,null,null,null,null,null,null,null,null,null,null,null,null,null,null,null,null,null,null,null,null,null,null,null,null,null,null,null,null,null,null,null,null,null,null,null,null,null,null,null,null,null,null,28,"Yonca Silajı, Tam Çiçeklenmiş",26,2.1,17.5,8.5,12.1,null,null,null,null,null,58,2.56,1.26,0.57999999999999996,null,38,null,null,null,null,null,null,null,null,null,4,0,2]
[null,null,null,null,null,null,null,null,null,null,null,null,null,null,null,null,null,null,null,null,null,null,null,null,null,null,null,null,null,null,null,null,null,null,null,null,null,null,null,null,null,null,null,null,null,null,null,null,null,null,null,null,null,null,null,null,null,null,null,null,null,null,null,null,null,null,null,null,null,null,null,null,null,null,null,null,29,"Yulaf Silajı ",35,2.2000000000000002,12,8.4,7.8,2.5,0.34,0.3,31,59,60,2.6,1.3,0.7,1.3,39,61,3.2,10,2.4,0.5,0.25,27,9,null,4,0,2]
[null,null,null,null,null,null,null,null,null,null,null,null,null,null,null,null,null,null,null,null,null,null,null,null,null,null,null,null,null,null,null,null,null,null,null,null,null,null,null,null,null,null,null,null,null,null,null,null,null,null,null,null,null,null,null,null,null,null,null,null,null,null,null,null,null,null,null,null,null,null,null,null,null,null,null,null,30]
[null,null,null,null,null,null,null,null,null,null,null,null,null,null,null,null,null,null,null,null,null,null,null,null,null,null,null,null,null,null,null,null,null,null,null,null,null,null,null,null,null,null,null,null,null,null,null,null,null,null,null,null,null,null,null,null,null,null,null,null,null,null,null,null,null,null,null,null,null,null,null,null,null,null,null,null,31]
[null,null,null,null,null,null,null,null,null,null,null,null,null,null,null,null,null,null,null,null,null,null,null,null,null,null,null,null,null,null,null,null,null,null,null,null,null,null,null,null,null,null,null,null,null,null,null,null,null,null,null,null,null,null,null,null,null,null,null,null,null,null,null,null,null,null,null,null,null,null,null,null,null,null,null,null,32]
[null,null,null,null,null,null,null,null,null,null,null,null,null,null,null,null,null,null,null,null,null,null,null,null,null,null,null,null,null,null,null,null,null,null,null,null,null,null,null,null,null,null,null,null,null,null,null,null,null,null,null,null,null,null,null,null,null,null,null,null,null,null,null,null,null,null,null,null,null,null,null,null,null,null,null,null,33]
[null,null,null,null,null,null,null,null,null,null,null,null,null,null,null,null,null,null,null,null,null,null,null,null,null,null,null,null,null,null,null,null,null,null,null,null,null,null,null,null,null,null,null,null,null,null,null,null,null,null,null,null,null,null,null,null,null,null,null,null,null,null,null,null,null,null,null,null,null,null,null,null,null,null,null,null,34]
[null,null,null,null,null,null,null,null,null,null,null,null,null,null,null,null,null,null,null,null,null,null,null,null,null,null,null,null,null,null,null,null,null,null,null,null,null,null,null,null,null,null,null,null,null,null,null,null,null,null,null,null,null,null,null,null,null,null,null,null,null,null,null,null,null,null,null,null,null,null,null,null,null,null,null,null,35]
[null,null,null,null,null,null,null,null,null,null,null,null,null,null,null,null,null,null,null,null,null,null,null,null,null,null,null,null,null,null,null,null,null,null,null,null,null,null,null,null,null,null,null,null,null,null,null,null,null,null,null,null,null,null,null,null,null,null,null,null,null,null,null,null,null,null,null,null,null,null,null,null,null,null,null,null,36]
[null,null,null,null,null,null,null,null,null,null,null,null,null,null,null,null,null,null,null,null,null,null,null,null,null,null,null,null,null,null,null,null,null,null,null,null,null,null,null,null,null,null,null,null,null,null,null,null,null,null,null,null,null,null,null,null,null,null,null,null,null,null,null,null,null,null,null,null,null,null,null,null,null,null,null,null,37]
[null,null,null,null,null,null,null,null,null,null,null,null,null,null,null,null,null,null,null,null,null,null,null,null,null,null,null,null,null,null,null,null,null,null,null,null,null,null,null,null,null,null,null,null,null,null,null,null,null,null,null,null,null,null,null,null,null,null,null,null,null,null,null,null,null,null,null,null,null,null,null,null,null,null,null,null,38]
[null,null,null,null,null,null,null,null,null,null,null,null,null,null,null,null,null,null,null,null,null,null,null,null,null,null,null,null,null,null,null,null,null,null,null,null,null,null,null,null,null,null,null,null,null,null,null,null,null,null,null,null,null,null,null,null,null,null,null,null,null,null,null,null,null,null,null,null,null,null,null,null,null,null,null,null,39]
[null,null,null,null,null,null,null,null,null,null,null,null,null,null,null,null,null,null,null,null,null,null,null,null,null,null,null,null,null,null,null,null,null,null,null,null,null,null,null,null,null,null,null,null,null,null,null,null,null,null,null,null,null,null,null,null,null,null,null,null,null,null,null,null,null,null,null,null,null,null,null,null,null,null,null,null,40]
[null,null,null,null,null,null,null,null,null,null,null,null,null,null,null,null,null,null,null,null,null,null,null,null,null,null,null,null,null,null,null,null,null,null,null,null,null,null,null,null,null,null,null,null,null,null,null,null,null,null,null,null,null,null,null,null,null,null,null,null,null,null,null,null,null,null,null,null,null,null,null,null,null,null,null,null,41]
[null,null,null,null,null,null,null,null,null,null,null,null,null,null,null,null,null,null,null,null,null,null,null,null,null,null,null,null,null,null,null,null,null,null,null,null,null,null,null,null,null,null,null,null,null,null,null,null,null,null,null,null,null,null,null,null,null,null,null,null,null,null,null,null,null,null,null,null,null,null,null,null,null,null,null,null,42]
[null,null,null,null,null,null,null,null,null,null,null,null,null,null,null,null,null,null,null,null,null,null,null,null,null,null,null,null,null,null,null,null,null,null,null,null,null,null,null,null,null,null,null,null,null,null,null,null,null,null,null,null,null,null,null,null,null,null,null,null,null,null,null,null,null,null,null,null,null,null,null,null,null,null,null,null,43]
[null,null,null,null,null,null,null,null,null,null,null,null,null,null,null,null,null,null,null,null,null,null,null,null,null,null,null,null,null,null,null,null,null,null,null,null,null,null,null,null,null,null,null,null,null,null,null,null,null,null,null,null,null,null,null,null,null,null,null,null,null,null,null,null,null,null,null,null,null,null,null,null,null,null,null,null,44]
[null,null,null,null,null,null,null,null,null,null,null,null,null,null,null,null,null,null,null,null,null,null,null,null,null,null,null,null,null,null,null,null,null,null,null,null,null,null,null,null,null,null,null,null,null,null,null,null,null,null,null,null,null,null,null,null,null,null,null,null,null,null,null,null,null,null,null,null,null,null,null,null,null,null,null,null,45]
[null,null,null,null,null,null,null,null,null,null,null,null,null,null,null,null,null,null,null,null,null,null,null,null,null,null,null,null,null,null,null,null,null,null,null,null,null,null,null,null,null,null,null,null,null,null,null,null,null,null,null,null,null,null,null,null,null,null,null,null,null,null,null,null,null,null,null,null,null,null,null,null,null,null,null,null,46]
[null,null,null,null,null,null,null,null,null,null,null,null,null,null,null,null,null,null,null,null,null,null,null,null,null,null,null,null,null,null,null,null,null,null,null,null,null,null,null,null,null,null,null,null,null,null,null,null,null,null,null,null,null,null,null,null,null,null,null,null,null,null,null,null,null,null,null,null,null,null,null,null,null,null,null,null,47]
[null,null,null,null,null,null,null,null,null,null,null,null,null,null,null,null,null,null,null,null,null,null,null,null,null,null,null,null,null,null,null,null,null,null,null,null,null,null,null,null,null,null,null,null,null,null,null,null,null,null,null,null,null,null,null,null,null,null,null,null,null,null,null,null,null,null,null,null,null,null,null,null,null,null,null,null,48]
[null,null,null,null,null,null,null,null,null,null,null,null,null,null,null,null,null,null,null,null,null,null,null,null,null,null,null,null,null,null,null,null,null,null,null,null,null,null,null,null,null,null,null,null,null,null,null,null,null,null,null,null,null,null,null,null,null,null,null,null,null,null,null,null,null,null,null,null,null,null,null,null,null,null,null,null,49]
[null,null,null,null,null,null,null,null,null,null,null,null,null,null,null,null,null,null,null,null,null,null,null,null,null,null,null,null,null,null,null,null,null,null,null,null,null,null,null,null,null,null,null,null,null,null,null,null,null,null,null,null,null,null,null,null,null,null,null,null,null,null,null,null,null,null,null,null,null,null,null,null,null,null,null,null,50]
[null,null,null,null,null,null,null,null,null,null,null,null,null,null,null,null,null,null,null,null,null,null,null,null,null,null,null,null,null,null,null,null,null,null,null,null,null,null,null,null,null,null,null,null,null,null,null,null,null,null,null,null,null,null,null,null,null,null,null,null,null,null,null,null,null,null,null,null,null,null,null,null,null,null,null,null,51]
[null,null,null,null,null,null,null,null,null,null,null,null,null,null,null,null,null,null,null,null,null,null,null,null,null,null,null,null,null,null,null,null,null,null,null,null,null,null,null,null,null,null,null,null,null,null,null,null,null,null,null,null,null,null,null,null,null,null,null,null,null,null,null,null,null,null,null,null,null,null,null,null,null,null,null,null,52]
[null,null,null,null,null,null,null,null,null,null,null,null,null,null,null,null,null,null,null,null,null,null,null,null,null,null,null,null,null,null,null,null,null,null,null,null,null,null,null,null,null,null,null,null,null,null,null,null,null,null,null,null,null,null,null,null,null,null,null,null,null,null,null,null,null,null,null,null,null,null,null,null,null,null,null,null,53]
[null,null,null,null,null,null,null,null,null,null,null,null,null,null,null,null,null,null,null,null,null,null,null,null,null,null,null,null,null,null,null,null,null,null,null,null,null,null,null,null,null,null,null,null,null,null,null,null,null,null,null,null,null,null,null,null,null,null,null,null,null,null,null,null,null,null,null,null,null,null,null,null,null,null,null,null,54]
[null,null,null,null,null,null,null,null,null,null,null,null,null,null,null,null,null,null,null,null,null,null,null,null,null,null,null,null,null,null,null,null,null,null,null,null,null,null,null,null,null,null,null,null,null,null,null,null,null,null,null,null,null,null,null,null,null,null,null,null,null,null,null,null,null,null,null,null,null,null,null,null,null,null,null,null,55]
[null,null,null,null,null,null,null,null,null,null,null,null,null,null,null,null,null,null,null,null,null,null,null,null,null,null,null,null,null,null,null,null,null,null,null,null,null,null,null,null,null,null,null,null,null,null,null,null,null,null,null,null,null,null,null,null,null,null,null,null,null,null,null,null,null,null,null,null,null,null,null,null,null,null,null,null,56]
[null,null,null,null,null,null,null,null,null,null,null,null,null,null,null,null,null,null,null,null,null,null,null,null,null,null,null,null,null,null,null,null,null,null,null,null,null,null,null,null,null,null,null,null,null,null,null,null,null,null,null,null,null,null,null,null,null,null,null,null,null,null,null,null,null,null,null,null,null,null,null,null,null,null,null,null,57]
[null,null,null,null,null,null,null,null,null,null,null,null,null,null,null,null,null,null,null,null,null,null,null,null,null,null,null,null,null,null,null,null,null,null,null,null,null,null,null,null,null,null,null,null,null,null,null,null,null,null,null,null,null,null,null,null,null,null,null,null,null,null,null,null,null,null,null,null,null,null,null,null,null,null,null,null,58]
[null,null,null,null,null,null,null,null,null,null,null,null,null,null,null,null,null,null,null,null,null,null,null,null,null,null,null,null,null,null,null,null,null,null,null,null,null,null,null,null,null,null,null,null,null,null,null,null,null,null,null,null,null,null,null,null,null,null,null,null,null,null,null,null,null,null,null,null,null,null,null,null,null,null,null,null,59]
[null,null,null,null,null,null,null,null,null,null,null,null,null,null,null,null,null,null,null,null,null,null,null,null,null,null,null,null,null,null,null,null,null,null,null,null,null,null,null,null,null,null,null,null,null,null,null,null,null,null,null,null,null,null,null,null,null,null,null,null,null,null,null,null,null,null,null,null,null,null,null,null,null,null,null,null,60]
[null,null,null,null,null,null,null,null,null,null,null,null,null,null,null,null,null,null,null,null,null,null,null,null,null,null,null,null,null,null,null,null,null,null,null,null,null,null,null,null,null,null,null,null,null,null,null,null,null,null,null,null,null,null,null,null,null,null,null,null,null,null,null,null,null,null,null,null,null,null,null,null,null,null,null,null,61]
[null,null,null,null,null,null,null,null,null,null,null,null,null,null,null,null,null,null,null,null,null,null,null,null,null,null,null,null,null,null,null,null,null,null,null,null,null,null,null,null,null,null,null,null,null,null,null,null,null,null,null,null,null,null,null,null,null,null,null,null,null,null,null,null,null,null,null,null,null,null,null,null,null,null,null,null,62]
[null,null,null,null,null,null,null,null,null,null,null,null,null,null,null,null,null,null,null,null,null,null,null,null,null,null,null,null,null,null,null,null,null,null,null,null,null,null,null,null,null,null,null,null,null,null,null,null,null,null,null,null,null,null,null,null,null,null,null,null,null,null,null,null,null,null,null,null,null,null,null,null,null,null,null,null,63]
[null,null,null,null,null,null,null,null,null,null,null,null,null,null,null,null,null,null,null,null,null,null,null,null,null,null,null,null,null,null,null,null,null,null,null,null,null,null,null,null,null,null,null,null,null,null,null,null,null,null,null,null,null,null,null,null,null,null,null,null,null,null,null,null,null,null,null,null,null,null,null,null,null,null,null,null,64]
[null,null,null,null,null,null,null,null,null,null,null,null,null,null,null,null,null,null,null,null,null,null,null,null,null,null,null,null,null,null,null,null,null,null,null,null,null,null,null,null,null,null,null,null,null,null,null,null,null,null,null,null,null,null,null,null,null,null,null,null,null,null,null,null,null,null,null,null,null,null,null,null,null,null,null,null,65]
[null,null,null,null,null,null,null,null,null,null,null,null,null,null,null,null,null,null,null,null,null,null,null,null,null,null,null,null,null,null,null,null,null,null,null,null,null,null,null,null,null,null,null,null,null,null,null,null,null,null,null,null,null,null,null,null,null,null,null,null,null,null,null,null,null,null,null,null,null,null,null,null,null,null,null,null,66]
[null,null,null,null,null,null,null,null,null,null,null,null,null,null,null,null,null,null,null,null,null,null,null,null,null,null,null,null,null,null,null,null,null,null,null,null,null,null,null,null,null,null,null,null,null,null,null,null,null,null,null,null,null,null,null,null,null,null,null,null,null,null,null,null,null,null,null,null,null,null,null,null,null,null,null,null,67]
[null,null,null,null,null,null,null,null,null,null,null,null,null,null,null,null,null,null,null,null,null,null,null,null,null,null,null,null,null,null,null,null,null,null,null,null,null,null,null,null,null,null,null,null,null,null,null,null,null,null,null,null,null,null,null,null,null,null,null,null,null,null,null,null,null,null,null,null,null,null,null,null,null,null,null,null,68]
[null,null,null,null,null,null,null,null,null,null,null,null,null,null,null,null,null,null,null,null,null,null,null,null,null,null,null,null,null,null,null,null,null,null,null,null,null,null,null,null,null,null,null,null,null,null,null,null,null,null,null,null,null,null,null,null,null,null,null,null,null,null,null,null,null,null,null,null,null,null,null,null,null,null,null,null,69]
[null,null,null,null,null,null,null,null,null,null,null,null,null,null,null,null,null,null,null,null,null,null,null,null,null,null,null,null,null,null,null,null,null,null,null,null,null,null,null,null,null,null,null,null,null,null,null,null,null,null,null,null,null,null,null,null,null,null,null,null,null,null,null,null,null,null,null,null,null,null,null,null,null,null,null,null,70]
[null,null,null,null,null,null,null,null,null,null,null,null,null,null,null,null,null,null,null,null,null,null,null,null,null,null,null,null,null,null,null,null,null,null,null,null,null,null,null,null,null,null,null,null,null,null,null,null,null,null,null,null,null,null,null,null,null,null,null,null,null,null,null,null,null,null,null,null,null,null,null,null,null,null,null,null,71]
[null,null,null,null,null,null,null,null,null,null,null,null,null,null,null,null,null,null,null,null,null,null,null,null,null,null,null,null,null,null,null,null,null,null,null,null,null,null,null,null,null,null,null,null,null,null,null,null,null,null,null,null,null,null,null,null,null,null,null,null,null,null,null,null,null,null,null,null,null,null,null,null,null,null,null,null,72]
[null,null,null,null,null,null,null,null,null,null,null,null,null,null,null,null,null,null,null,null,null,null,null,null,null,null,null,null,null,null,null,null,null,null,null,null,null,null,null,null,null,null,null,null,null,null,null,null,null,null,null,null,null,null,null,null,null,null,null,null,null,null,null,null,null,null,null,null,null,null,null,null,null,null,null,null,73]
[null,null,null,null,null,null,null,null,null,null,null,null,null,null,null,null,null,null,null,null,null,null,null,null,null,null,null,null,null,null,null,null,null,null,null,null,null,null,null,null,null,null,null,null,null,null,null,null,null,null,null,null,null,null,null,null,null,null,null,null,null,null,null,null,null,null,null,null,null,null,null,null,null,null,null,null,74]
[null,null,null,null,null,null,null,null,null,null,null,null,null,null,null,null,null,null,null,null,null,null,null,null,null,null,null,null,null,null,null,null,null,null,null,null,null,null,null,null,null,null,null,null,null,null,null,null,null,null,null,null,null,null,null,null,null,null,null,null,null,null,null,null,null,null,null,null,null,null,null,null,null,null,null,null,75]
[null,null,null,null,null,null,null,null,null,null,null,null,null,null,null,null,null,null,null,null,null,null,null,null,null,null,null,null,null,null,null,null,null,null,null,null,null,null,null,null,null,null,null,null,null,null,null,null,null,null,null,null,null,null,null,null,null,null,null,null,null,null,null,null,null,null,null,null,null,null,null,null,null,null,null,null,null,"ENERJİ KAYNAKLARI","KM,%","ME, Mcal/kg","HP,%","MP,%","DIP,%","RUP,%","Ca,%","P,%","HS,%","NDF,%","TSBM,%","SE, Mcal/kg","NEyp, Mcal/kg","NEb, Mcal/kg","NEl, Mcal/kg","ADF,%","eNDF,%","HY,%","HK,%","K,%","Cl,%","S,%","Zn,ppm","VitA, RE/kg","VitE,ppm","Fiyat,TL","En az","En çok"]
[null,null,null,null,null,null,null,null,null,null,null,null,null,null,null,null,null,null,null,null,null,null,null,null,null,null,null,null,null,null,null,null,null,null,null,null,null,null,null,null,null,null,null,null,null,null,null,null,null,null,null,null,null,null,null,null,null,null,null,null,null,null,null,null,null,null,null,null,null,null,null,null,null,null,null,null,1,"Arpa, Tane",89,3,12,8.4,7.8,3.4,0.06,0.38,5,20,84,3.7,2,1.3,1.9,7,34,2.1,3,0.6,0.18,0.16,23,263.2,25,8.5,0,0.5]
[null,null,null,null,null,null,null,null,null,null,null,null,null,null,null,null,null,null,null,null,null,null,null,null,null,null,null,null,null,null,null,null,null,null,null,null,null,null,null,null,null,null,null,null,null,null,null,null,null,null,null,null,null,null,null,null,null,null,null,null,null,null,null,null,null,null,null,null,null,null,null,null,null,null,null,null,2,"Arpa, Tane, 2 sıralı",87,3,12,8.4,7.8,3.4,0.05,0.31,6,24,84,3.7,2,1.3,1.9,8,34,2.2999999999999998,2,0.6,0.18,0.17,null,null,null,8.5,0,0.5]
[null,null,null,null,null,null,null,null,null,null,null,null,null,null,null,null,null,null,null,null,null,null,null,null,null,null,null,null,null,null,null,null,null,null,null,null,null,null,null,null,null,null,null,null,null,null,null,null,null,null,null,null,null,null,null,null,null,null,null,null,null,null,null,null,null,null,null,null,null,null,null,null,null,null,null,null,3,"Arpa, Tane, 6 sıralı",87,3,11,7.7,6.9,3.4,0.05,0.36,6,24,84,3.7,2,1.3,1.9,8,34,2.2000000000000002,3,0.6,0.18,0.15,null,null,null,8.5,0,0.5]
[null,null,null,null,null,null,null,null,null,null,null,null,null,null,null,null,null,null,null,null,null,null,null,null,null,null,null,null,null,null,null,null,null,null,null,null,null,null,null,null,null,null,null,null,null,null,null,null,null,null,null,null,null,null,null,null,null,null,null,null,null,null,null,null,null,null,null,null,null,null,null,null,null,null,null,null,4,"Arpa, Tane, Buhar. Ezilmiş",86,3,12,8.4,7.8,4.5999999999999996,0.06,0.41,5,20,84,3.7,2,1.3,1.9,7,27,2.1,3,0.6,0.18,0.17,30,null,null,11,0,0.5]
[null,null,null,null,null,null,null,null,null,null,null,null,null,null,null,null,null,null,null,null,null,null,null,null,null,null,null,null,null,null,null,null,null,null,null,null,null,null,null,null,null,null,null,null,null,null,null,null,null,null,null,null,null,null,null,null,null,null,null,null,null,null,null,null,null,null,null,null,null,null,null,null,null,null,null,null,5,"Arpa, Tane, Elek Altı",89,2.8,12,8.4,7.8,null,0.3,0.33,9,null,77,3.4,1.8,1.2,1.7,11,null,2.6,4,0.7,null,0.15,null,null,null,7,0,0.5]
[null,null,null,null,null,null,null,null,null,null,null,null,null,null,null,null,null,null,null,null,null,null,null,null,null,null,null,null,null,null,null,null,null,null,null,null,null,null,null,null,null,null,null,null,null,null,null,null,null,null,null,null,null,null,null,null,null,null,null,null,null,null,null,null,null,null,null,null,null,null,null,null,null,null,null,null,6,"Arpa, Tane, Hafif, (54-57 kg/hl) ",88,2.8,13,9.1,8.6999999999999993,3.9,null,null,9,30,78,3.4,1.8,1.2,1.8,12,34,2.2999999999999998,4,null,null,null,null,null,null,8,0,0.5]
[null,null,null,null,null,null,null,null,null,null,null,null,null,null,null,null,null,null,null,null,null,null,null,null,null,null,null,null,null,null,null,null,null,null,null,null,null,null,null,null,null,null,null,null,null,null,null,null,null,null,null,null,null,null,null,null,null,null,null,null,null,null,null,null,null,null,null,null,null,null,null,null,null,null,null,null,7,"Arpa, Tane, Pul ",85,3.3,12,8.4,7.8,4.7,0.06,0.35,5,20,90,4,2.2000000000000002,1.5,2.2000000000000002,7,30,2.1,3,0.6,0.18,0.16,23,null,null,9.75,0,0.5]
[null,null,null,null,null,null,null,null,null,null,null,null,null,null,null,null,null,null,null,null,null,null,null,null,null,null,null,null,null,null,null,null,null,null,null,null,null,null,null,null,null,null,null,null,null,null,null,null,null,null,null,null,null,null,null,null,null,null,null,null,null,null,null,null,null,null,null,null,null,null,null,null,null,null,null,null,8,"Bezelye, Kurutulmuş",93,3.01,24.9,14.1,20.100000000000001,null,null,null,null,null,83,null,null,null,null,null,null,1.5,4,null,null,null,null,null,null,20,null,0.3]
[null,null,null,null,null,null,null,null,null,null,null,null,null,null,null,null,null,null,null,null,null,null,null,null,null,null,null,null,null,null,null,null,null,null,null,null,null,null,null,null,null,null,null,null,null,null,null,null,null,null,null,null,null,null,null,null,null,null,null,null,null,null,null,null,null,null,null,null,null,null,null,null,null,null,null,null,9,"Bezelye, Yaş",12,2.68,30.8,17.899999999999999,25.5,null,null,null,null,null,74,null,null,null,null,null,null,1.7,14,null,null,null,null,null,null,17,null,1]
[null,null,null,null,null,null,null,null,null,null,null,null,null,null,null,null,null,null,null,null,null,null,null,null,null,null,null,null,null,null,null,null,null,null,null,null,null,null,null,null,null,null,null,null,null,null,null,null,null,null,null,null,null,null,null,null,null,null,null,null,null,null,null,null,null,null,null,null,null,null,null,null,null,null,null,null,10,"Buğday, Tane ",89,3.2,14,9.8000000000000007,9.6,3.2,0.05,0.43,3,12,88,3.9,2.2000000000000002,1.4,2,4,0,2.2999999999999998,2,0.4,0.09,0.15,40,0,17,10.5,0,0.3]
[null,null,null,null,null,null,null,null,null,null,null,null,null,null,null,null,null,null,null,null,null,null,null,null,null,null,null,null,null,null,null,null,null,null,null,null,null,null,null,null,null,null,null,null,null,null,null,null,null,null,null,null,null,null,null,null,null,null,null,null,null,null,null,null,null,null,null,null,null,null,null,null,null,null,null,null,11,"Buğday, Tane, Çimlendirilmiş",86,3.2,12,8.4,7.8,2.2000000000000002,0.04,0.36,3,13,88,3.9,2.2000000000000002,1.4,2,4,0,2,2,0.4,null,0.17,45,null,null,15,0,0.1]
[null,null,null,null,null,null,null,null,null,null,null,null,null,null,null,null,null,null,null,null,null,null,null,null,null,null,null,null,null,null,null,null,null,null,null,null,null,null,null,null,null,null,null,null,null,null,null,null,null,null,null,null,null,null,null,null,null,null,null,null,null,null,null,null,null,null,null,null,null,null,null,null,null,null,null,null,12,"Buğday, Tane, Pul",85,3.3,14,9.8000000000000007,9.6,4.0999999999999996,0.05,0.39,3,12,91,4,2.2000000000000002,1.5,2.1,4,0,2.2999999999999998,2,0.4,null,0.15,40,null,null,10,0,0.5]
[null,null,null,null,null,null,null,null,null,null,null,null,null,null,null,null,null,null,null,null,null,null,null,null,null,null,null,null,null,null,null,null,null,null,null,null,null,null,null,null,null,null,null,null,null,null,null,null,null,null,null,null,null,null,null,null,null,null,null,null,null,null,null,null,null,null,null,null,null,null,null,null,null,null,null,null,13,"Buğday, Tane, Sert",89,3.2,14,9.8000000000000007,9.6,3.9,0.05,0.43,3,14,88,3.9,2.2000000000000002,1.4,2,6,0,2,2,0.5,null,0.16,45,null,15,10.5,0,0.3]
[null,null,null,null,null,null,null,null,null,null,null,null,null,null,null,null,null,null,null,null,null,null,null,null,null,null,null,null,null,null,null,null,null,null,null,null,null,null,null,null,null,null,null,null,null,null,null,null,null,null,null,null,null,null,null,null,null,null,null,null,null,null,null,null,null,null,null,null,null,null,null,null,null,null,null,null,14,"Buğday, Tane, Yumuşak",89,3.2,12,8.4,7.8,2.8,0.06,0.4,3,12,88,3.9,2.2000000000000002,1.4,2,4,0,2,2,0.4,null,0.15,30,null,19,10.5,0,0.3]
[null,null,null,null,null,null,null,null,null,null,null,null,null,null,null,null,null,null,null,null,null,null,null,null,null,null,null,null,null,null,null,null,null,null,null,null,null,null,null,null,null,null,null,null,null,null,null,null,null,null,null,null,null,null,null,null,null,null,null,null,null,null,null,null,null,null,null,null,null,null,null,null,null,null,null,null,15,"Çavdar, Tane",89,3,12,8.4,7.8,2.4,7.0000000000000007E-2,0.39,2,19,82,3.6,2,1.3,1.9,9,34,1.7,2,0.5,0.03,0.17,33,0,17,35,0,0.1]
[null,null,null,null,null,null,null,null,null,null,null,null,null,null,null,null,null,null,null,null,null,null,null,null,null,null,null,null,null,null,null,null,null,null,null,null,null,null,null,null,null,null,null,null,null,null,null,null,null,null,null,null,null,null,null,null,null,null,null,null,null,null,null,null,null,null,null,null,null,null,null,null,null,null,null,null,16,"Darı, Kabuksuz",87,3,13,9.1,8.6999999999999993,null,0.03,0.36,2,18,82,3.6,2,1.3,1.9,6,34,4.5,3,0.5,null,null,null,null,null,40,0,0.3]
[null,null,null,null,null,null,null,null,null,null,null,null,null,null,null,null,null,null,null,null,null,null,null,null,null,null,null,null,null,null,null,null,null,null,null,null,null,null,null,null,null,null,null,null,null,null,null,null,null,null,null,null,null,null,null,null,null,null,null,null,null,null,null,null,null,null,null,null,null,null,null,null,null,null,null,null,17,"Havuç",12,3,10,7,6,null,0.6,0.3,9,20,83,3.7,2,1.3,1.9,11,0,1.4,10,2.4,0.5,0.17,null,135.6,60,1.2,0,3]
[null,null,null,null,null,null,null,null,null,null,null,null,null,null,null,null,null,null,null,null,null,null,null,null,null,null,null,null,null,null,null,null,null,null,null,null,null,null,null,null,null,null,null,null,null,null,null,null,null,null,null,null,null,null,null,null,null,null,null,null,null,null,null,null,null,null,null,null,null,null,null,null,null,null,null,null,18,"Kara Buğday, Tane",88,2.8,12,8.4,7.8,null,0.11,0.36,12,null,77,3.4,1.8,1.2,1.7,17,null,2.8,2,0.5,0.05,0.16,10,null,null,10.5,0,0.3]
[null,null,null,null,null,null,null,null,null,null,null,null,null,null,null,null,null,null,null,null,null,null,null,null,null,null,null,null,null,null,null,null,null,null,null,null,null,null,null,null,null,null,null,null,null,null,null,null,null,null,null,null,null,null,null,null,null,null,null,null,null,null,null,null,null,null,null,null,null,null,null,null,null,null,null,null,19,"Keçiboynuzu, Çekirdekli",88,2.86,6.3,2.1,3,null,0.23,0.34,null,null,79,3.48,1.85,1.22,null,null,null,null,null,null,null,null,null,null,null,2,null,0.1]
[null,null,null,null,null,null,null,null,null,null,null,null,null,null,null,null,null,null,null,null,null,null,null,null,null,null,null,null,null,null,null,null,null,null,null,null,null,null,null,null,null,null,null,null,null,null,null,null,null,null,null,null,null,null,null,null,null,null,null,null,null,null,null,null,null,null,null,null,null,null,null,null,null,null,null,null,20,"Kızıl Buğday, Tane",88,2.7,13,9.1,8.6999999999999993,3.5,0.04,0.4,10,21,75,3.3,1.7,1.1000000000000001,1.7,17,34,2.1,4,0.4,null,0.15,47,null,null,10.6,0,0.3]
[null,null,null,null,null,null,null,null,null,null,null,null,null,null,null,null,null,null,null,null,null,null,null,null,null,null,null,null,null,null,null,null,null,null,null,null,null,null,null,null,null,null,null,null,null,null,null,null,null,null,null,null,null,null,null,null,null,null,null,null,null,null,null,null,null,null,null,null,null,null,null,null,null,null,null,null,21,"KOYUN SÜT YEMİ",88,2.73,14.77,10,null,null,1.02,0.45,7.95,25,null,null,null,null,null,null,null,null,null,null,null,null,null,null,null,12,null,1]
[null,null,null,null,null,null,null,null,null,null,null,null,null,null,null,null,null,null,null,null,null,null,null,null,null,null,null,null,null,null,null,null,null,null,null,null,null,null,null,null,null,null,null,null,null,null,null,null,null,null,null,null,null,null,null,null,null,null,null,null,null,null,null,null,null,null,null,null,null,null,null,null,null,null,null,null,22,"KUZU BESİ YEMİ",89,3.14,17.2,13,0,0,0.68,0.44,5.26,17,81,0,0,0,0,7,0,2.98,4.72,0,0,0,0,0,0,13.8,0,1]
[null,null,null,null,null,null,null,null,null,null,null,null,null,null,null,null,null,null,null,null,null,null,null,null,null,null,null,null,null,null,null,null,null,null,null,null,null,null,null,null,null,null,null,null,null,null,null,null,null,null,null,null,null,null,null,null,null,null,null,null,null,null,null,null,null,null,null,null,null,null,null,null,null,null,null,null,23,"KUZU BÜYÜTME YEMİ",88,2.84,18.18,13,null,null,1.7,0.56999999999999995,6.82,20,null,null,null,null,null,null,null,null,null,null,null,null,null,null,null,12.8,null,1]
[null,null,null,null,null,null,null,null,null,null,null,null,null,null,null,null,null,null,null,null,null,null,null,null,null,null,null,null,null,null,null,null,null,null,null,null,null,null,null,null,null,null,null,null,null,null,null,null,null,null,null,null,null,null,null,null,null,null,null,null,null,null,null,null,null,null,null,null,null,null,null,null,null,null,null,null,24,"KUZU-BUZAĞI BAŞ. YEMİ",88,3.19,20.45,15,null,null,1.7,0.56999999999999995,6.82,20,null,null,null,null,null,null,null,null,null,null,null,null,null,null,null,13,null,1]
[null,null,null,null,null,null,null,null,null,null,null,null,null,null,null,null,null,null,null,null,null,null,null,null,null,null,null,null,null,null,null,null,null,null,null,null,null,null,null,null,null,null,null,null,null,null,null,null,null,null,null,null,null,null,null,null,null,null,null,null,null,null,null,null,null,null,null,null,null,null,null,null,null,null,null,null,25,"Lahana",9,3.04,20.6,11.3,16.100000000000001,null,0.64,0.35,null,17.2,84,3.7,2,1.35,null,10.4,null,null,9,null,null,null,null,null,null,1,null,0.5]
[null,null,null,null,null,null,null,null,null,null,null,null,null,null,null,null,null,null,null,null,null,null,null,null,null,null,null,null,null,null,null,null,null,null,null,null,null,null,null,null,null,null,null,null,null,null,null,null,null,null,null,null,null,null,null,null,null,null,null,null,null,null,null,null,null,null,null,null,null,null,null,null,null,null,null,null,26,"Meşe Palamudu",64,1.7,4.8,1.2,1.7,null,null,null,null,null,47,2.0699999999999998,1.01,0.15,null,null,null,null,null,null,null,null,null,null,null,1,null,0.1]
[null,null,null,null,null,null,null,null,null,null,null,null,null,null,null,null,null,null,null,null,null,null,null,null,null,null,null,null,null,null,null,null,null,null,null,null,null,null,null,null,null,null,null,null,null,null,null,null,null,null,null,null,null,null,null,null,null,null,null,null,null,null,null,null,null,null,null,null,null,null,null,null,null,null,null,null,27,"Mısır, Elekaltı",86,3.3,10,7,6,5.2,0.04,0.27,3,9,91,4,2.2000000000000002,1.5,2.1,4,20,4.3,2,0.4,0.05,0.12,16,null,null,7,0,0.5]
[null,null,null,null,null,null,null,null,null,null,null,null,null,null,null,null,null,null,null,null,null,null,null,null,null,null,null,null,null,null,null,null,null,null,null,null,null,null,null,null,null,null,null,null,null,null,null,null,null,null,null,null,null,null,null,null,null,null,null,null,null,null,null,null,null,null,null,null,null,null,null,null,null,null,null,null,28,"Mısır, Tane",88,3.2,9,6.3,5.0999999999999996,5.2,0.02,0.3,2,9,88,3.9,2.2000000000000002,1.4,2,3,60,4.3,2,0.4,0.05,0.12,18,394.8,25,8.5,0,0.5]
[null,null,null,null,null,null,null,null,null,null,null,null,null,null,null,null,null,null,null,null,null,null,null,null,null,null,null,null,null,null,null,null,null,null,null,null,null,null,null,null,null,null,null,null,null,null,null,null,null,null,null,null,null,null,null,null,null,null,null,null,null,null,null,null,null,null,null,null,null,null,null,null,null,null,null,null,29,"Mısır, Tane, Ezilmiş",88,3.2,9,6.3,5.0999999999999996,4.9000000000000004,0.02,0.3,2,9,88,3.9,2.2000000000000002,1.4,2,3,34,4.3,2,0.4,0.05,0.12,18,null,null,8.58,0,0.5]
[null,null,null,null,null,null,null,null,null,null,null,null,null,null,null,null,null,null,null,null,null,null,null,null,null,null,null,null,null,null,null,null,null,null,null,null,null,null,null,null,null,null,null,null,null,null,null,null,null,null,null,null,null,null,null,null,null,null,null,null,null,null,null,null,null,null,null,null,null,null,null,null,null,null,null,null,30,"Mısır, Tane, Pul",85,3.4,9,6.3,5.0999999999999996,5.3,0.02,0.27,2,9,93,4.0999999999999996,2.2999999999999998,1.6,2.1,3,40,4.0999999999999996,2,0.4,0.05,0.12,18,null,null,8.5,0,0.5]
[null,null,null,null,null,null,null,null,null,null,null,null,null,null,null,null,null,null,null,null,null,null,null,null,null,null,null,null,null,null,null,null,null,null,null,null,null,null,null,null,null,null,null,null,null,null,null,null,null,null,null,null,null,null,null,null,null,null,null,null,null,null,null,null,null,null,null,null,null,null,null,null,null,null,null,null,31,"Mısır, Tane, Yüksek Lizin",92,3.1,12,8.4,7.8,7,0.03,0.24,4,11,87,3.8,2.1,1.4,2,4,60,4.4000000000000004,2,0.4,0.05,0.11,18,658,null,8.5,0,0.5]
[null,null,null,null,null,null,null,null,null,null,null,null,null,null,null,null,null,null,null,null,null,null,null,null,null,null,null,null,null,null,null,null,null,null,null,null,null,null,null,null,null,null,null,null,null,null,null,null,null,null,null,null,null,null,null,null,null,null,null,null,null,null,null,null,null,null,null,null,null,null,null,null,null,null,null,null,32,"Mısır, Tane, Yüksek Nemli",74,3.4,10,7,6,4.2,0.02,0.3,2,9,93,4.0999999999999996,2.2999999999999998,1.6,2.1,3,0,4,2,0.4,0.06,0.13,20,null,null,8,0,0.5]
[null,null,null,null,null,null,null,null,null,null,null,null,null,null,null,null,null,null,null,null,null,null,null,null,null,null,null,null,null,null,null,null,null,null,null,null,null,null,null,null,null,null,null,null,null,null,null,null,null,null,null,null,null,null,null,null,null,null,null,null,null,null,null,null,null,null,null,null,null,null,null,null,null,null,null,null,33,"Mısır, Tane, Yüksek Yağlı ",88,3.3,8,5.6,4.2,4.3,0.01,0.3,2,8,91,4,2.2000000000000002,1.5,2.1,3,60,6.9,2,0.3,0.05,0.13,18,null,null,8.5,0,0.5]
[null,null,null,null,null,null,null,null,null,null,null,null,null,null,null,null,null,null,null,null,null,null,null,null,null,null,null,null,null,null,null,null,null,null,null,null,null,null,null,null,null,null,null,null,null,null,null,null,null,null,null,null,null,null,null,null,null,null,null,null,null,null,null,null,null,null,null,null,null,null,null,null,null,null,null,null,34,"Nohut",91,2.75,21.7,10.6,15.2,null,0.17,0.37,null,null,76,3.35,1.76,1.1399999999999999,null,null,null,null,null,null,null,null,null,null,null,30,null,0.2]
[null,null,null,null,null,null,null,null,null,null,null,null,null,null,null,null,null,null,null,null,null,null,null,null,null,null,null,null,null,null,null,null,null,null,null,null,null,null,null,null,null,null,null,null,null,null,null,null,null,null,null,null,null,null,null,null,null,null,null,null,null,null,null,null,null,null,null,null,null,null,null,null,null,null,null,null,35,"Pamuk Tohumu",91,3.4,23,16.100000000000001,17.7,8.6999999999999993,0.14000000000000001,0.64,29,47,95,4.2,2.4,1.6,2.2000000000000002,39,100,17.8,4,1.1000000000000001,0.06,0.24,34,null,null,80,0,0.1]
[null,null,null,null,null,null,null,null,null,null,null,null,null,null,null,null,null,null,null,null,null,null,null,null,null,null,null,null,null,null,null,null,null,null,null,null,null,null,null,null,null,null,null,null,null,null,null,null,null,null,null,null,null,null,null,null,null,null,null,null,null,null,null,null,null,null,null,null,null,null,null,null,null,null,null,null,36,"Patates, Taze",23,2.93,9.5,4.0999999999999996,5.9,null,0.04,0.24,null,null,81,3.57,1.91,1.27,null,null,null,null,null,null,null,null,null,null,null,2.5,null,0.5]
[null,null,null,null,null,null,null,null,null,null,null,null,null,null,null,null,null,null,null,null,null,null,null,null,null,null,null,null,null,null,null,null,null,null,null,null,null,null,null,null,null,null,null,null,null,null,null,null,null,null,null,null,null,null,null,null,null,null,null,null,null,null,null,null,null,null,null,null,null,null,null,null,null,null,null,null,37,"Pirinç, Tane",89,2.9,8,5.6,4.2,2.4,7.0000000000000007E-2,0.32,10,16,79,3.5,1.9,1.2,1.8,12,34,1.9,5,0.4,0.09,0.05,17,null,null,12,0,0.2]
[null,null,null,null,null,null,null,null,null,null,null,null,null,null,null,null,null,null,null,null,null,null,null,null,null,null,null,null,null,null,null,null,null,null,null,null,null,null,null,null,null,null,null,null,null,null,null,null,null,null,null,null,null,null,null,null,null,null,null,null,null,null,null,null,null,null,null,null,null,null,null,null,null,null,null,null,38,"Sorgum, Tane (Milo), Öğütülmüş",89,3,11,7.7,6.9,6.1,0.04,0.32,3,15,82,3.6,2,1.3,1.9,6,5,3.1,2,0.4,0.1,0.14000000000000001,18,131.6,12,100,0,0.2]
[null,null,null,null,null,null,null,null,null,null,null,null,null,null,null,null,null,null,null,null,null,null,null,null,null,null,null,null,null,null,null,null,null,null,null,null,null,null,null,null,null,null,null,null,null,null,null,null,null,null,null,null,null,null,null,null,null,null,null,null,null,null,null,null,null,null,null,null,null,null,null,null,null,null,null,null,39,"Sorgum, Tane (Milo), Pul ",82,3.3,11,7.7,6.9,6.8,0.04,0.28000000000000003,3,15,90,4,2.2000000000000002,1.5,2.1,6,38,3.1,2,0.4,0.1,0.14000000000000001,18,null,null,100,0,0.2]
[null,null,null,null,null,null,null,null,null,null,null,null,null,null,null,null,null,null,null,null,null,null,null,null,null,null,null,null,null,null,null,null,null,null,null,null,null,null,null,null,null,null,null,null,null,null,null,null,null,null,null,null,null,null,null,null,null,null,null,null,null,null,null,null,null,null,null,null,null,null,null,null,null,null,null,null,40,"Soya Fasulyesi ",88,3.4,40,28,33,11.2,0.27,0.64,9,15,93,4.0999999999999996,2.2999999999999998,1.6,2.1,11,100,18.8,5,2,0.03,0.34,56,200,37,40,0,0.1]
[null,null,null,null,null,null,null,null,null,null,null,null,null,null,null,null,null,null,null,null,null,null,null,null,null,null,null,null,null,null,null,null,null,null,null,null,null,null,null,null,null,null,null,null,null,null,null,null,null,null,null,null,null,null,null,null,null,null,null,null,null,null,null,null,null,null,null,null,null,null,null,null,null,null,null,null,41,"Soya Fasulyesi, Ekstrude ",88,3.4,40,28,33,14,0.27,0.64,9,15,93,4.0999999999999996,2.2999999999999998,1.6,2.1,11,100,18.8,5,2,0.03,0.34,56,0,7,45,0,0.2]
[null,null,null,null,null,null,null,null,null,null,null,null,null,null,null,null,null,null,null,null,null,null,null,null,null,null,null,null,null,null,null,null,null,null,null,null,null,null,null,null,null,null,null,null,null,null,null,null,null,null,null,null,null,null,null,null,null,null,null,null,null,null,null,null,null,null,null,null,null,null,null,null,null,null,null,null,42,"Soya Fasulyesi, Kavrulmuş ",88,3.4,40,28,33,19.2,0.27,0.64,9,15,93,4.0999999999999996,2.2999999999999998,1.6,2.1,11,100,18.8,5,2,0.03,0.34,56,null,null,45,0,0.2]
[null,null,null,null,null,null,null,null,null,null,null,null,null,null,null,null,null,null,null,null,null,null,null,null,null,null,null,null,null,null,null,null,null,null,null,null,null,null,null,null,null,null,null,null,null,null,null,null,null,null,null,null,null,null,null,null,null,null,null,null,null,null,null,null,null,null,null,null,null,null,null,null,null,null,null,null,43,"Şalgam",9,3.1,12,8.4,7.8,0,0.7,0.34,11,44,86,3.8,2.1,1.4,2,34,40,1.5,8,3.2,0.65,0.43,40,null,null,1,0,0.5]
[null,null,null,null,null,null,null,null,null,null,null,null,null,null,null,null,null,null,null,null,null,null,null,null,null,null,null,null,null,null,null,null,null,null,null,null,null,null,null,null,null,null,null,null,null,null,null,null,null,null,null,null,null,null,null,null,null,null,null,null,null,null,null,null,null,null,null,null,null,null,null,null,null,null,null,null,44,"Tapioka unu ",89,3,2,1.4,1.2,null,0.03,0.05,5,34,83,3.7,2,1.3,1.9,8,null,0.8,3,null,null,null,null,null,null,25,0,0.1]
[null,null,null,null,null,null,null,null,null,null,null,null,null,null,null,null,null,null,null,null,null,null,null,null,null,null,null,null,null,null,null,null,null,null,null,null,null,null,null,null,null,null,null,null,null,null,null,null,null,null,null,null,null,null,null,null,null,null,null,null,null,null,null,null,null,null,null,null,null,null,null,null,null,null,null,null,45,"TOKLU BESİ YEMİ",88,3.06,13.89,9,null,null,1.25,0.45,9.09,30,null,null,null,null,null,null,null,null,null,null,null,null,null,null,null,12.6,null,1]
[null,null,null,null,null,null,null,null,null,null,null,null,null,null,null,null,null,null,null,null,null,null,null,null,null,null,null,null,null,null,null,null,null,null,null,null,null,null,null,null,null,null,null,null,null,null,null,null,null,null,null,null,null,null,null,null,null,null,null,null,null,null,null,null,null,null,null,null,null,null,null,null,null,null,null,null,46,"Tritikale, Tane ",89,3.1,14,9.8000000000000007,9.6,3.5,7.0000000000000007E-2,0.39,4,22,85,3.7,2.1,1.4,1.9,5,34,2.4,2,0.5,null,0.17,37,null,null,20,0,0.2]
[null,null,null,null,null,null,null,null,null,null,null,null,null,null,null,null,null,null,null,null,null,null,null,null,null,null,null,null,null,null,null,null,null,null,null,null,null,null,null,null,null,null,null,null,null,null,null,null,null,null,null,null,null,null,null,null,null,null,null,null,null,null,null,null,null,null,null,null,null,null,null,null,null,null,null,null,47,"Yağ, Hayvansal, Kanatlı, Bitkisel ",99,7.1,0,0,3,null,0,0,0,0,195,8.6,6.3,5.0999999999999996,6.3,0,0,99,0,0,null,null,null,null,null,120,0,0.05]
[null,null,null,null,null,null,null,null,null,null,null,null,null,null,null,null,null,null,null,null,null,null,null,null,null,null,null,null,null,null,null,null,null,null,null,null,null,null,null,null,null,null,null,null,null,null,null,null,null,null,null,null,null,null,null,null,null,null,null,null,null,null,null,null,null,null,null,null,null,null,null,null,null,null,null,null,48,"Yonca Tohumu, Elek Altı",91,3,34,23.8,27.6,null,0.3,0.67,13,null,84,3.7,2,1.3,1.9,15,null,10.5,6,null,null,null,null,null,null,30,0,0.1]
[null,null,null,null,null,null,null,null,null,null,null,null,null,null,null,null,null,null,null,null,null,null,null,null,null,null,null,null,null,null,null,null,null,null,null,null,null,null,null,null,null,null,null,null,null,null,null,null,null,null,null,null,null,null,null,null,null,null,null,null,null,null,null,null,null,null,null,null,null,null,null,null,null,null,null,null,49,"Yulaf, Tane",89,2.7,13,9.1,8.6999999999999993,2.2999999999999998,0.05,0.41,11,28,76,3.4,1.8,1.1000000000000001,1.7,15,34,5,4,0.5,0.11,0.2,40,null,15,7,0,0.3]
[null,null,null,null,null,null,null,null,null,null,null,null,null,null,null,null,null,null,null,null,null,null,null,null,null,null,null,null,null,null,null,null,null,null,null,null,null,null,null,null,null,null,null,null,null,null,null,null,null,null,null,null,null,null,null,null,null,null,null,null,null,null,null,null,null,null,null,null,null,null,null,null,null,null,null,null,50,"Yulaf, Tane, Kabuksuz",91,3.3,18,12.6,13.2,2.7,0.08,0.47,3,null,91,4,2.2000000000000002,1.5,2.1,null,null,6.6,2,0.4,0.1,0.2,null,null,16,9,0,0.3]
[null,null,null,null,null,null,null,null,null,null,null,null,null,null,null,null,null,null,null,null,null,null,null,null,null,null,null,null,null,null,null,null,null,null,null,null,null,null,null,null,null,null,null,null,null,null,null,null,null,null,null,null,null,null,null,null,null,null,null,null,null,null,null,null,null,null,null,null,null,null,null,null,null,null,null,null,51,"Yulaf, Tane, Öğütülmüş",90,3.3,17,11.9,12.3,3.4,0.06,0.48,3,28,90,4,2.2000000000000002,1.5,2.1,4,null,6,3,0.5,null,0.23,null,null,null,8.75,0,0.3]
[null,null,null,null,null,null,null,null,null,null,null,null,null,null,null,null,null,null,null,null,null,null,null,null,null,null,null,null,null,null,null,null,null,null,null,null,null,null,null,null,null,null,null,null,null,null,null,null,null,null,null,null,null,null,null,null,null,null,null,null,null,null,null,null,null,null,null,null,null,null,null,null,null,null,null,null,52,"Yulaf, Tane, Pul",84,3.2,13,9.1,8.6999999999999993,3.4,0.05,0.37,11,30,88,3.9,2.2000000000000002,1.4,2,15,32,4.9000000000000004,4,0.5,0.11,0.2,40,null,null,9.5,0,0.3]
[null,null,null,null,null,null,null,null,null,null,null,null,null,null,null,null,null,null,null,null,null,null,null,null,null,null,null,null,null,null,null,null,null,null,null,null,null,null,null,null,null,null,null,null,null,null,null,null,null,null,null,null,null,null,null,null,null,null,null,null,null,null,null,null,null,null,null,null,null,null,null,null,null,null,null,null,53]
[null,null,null,null,null,null,null,null,null,null,null,null,null,null,null,null,null,null,null,null,null,null,null,null,null,null,null,null,null,null,null,null,null,null,null,null,null,null,null,null,null,null,null,null,null,null,null,null,null,null,null,null,null,null,null,null,null,null,null,null,null,null,null,null,null,null,null,null,null,null,null,null,null,null,null,null,54]
[null,null,null,null,null,null,null,null,null,null,null,null,null,null,null,null,null,null,null,null,null,null,null,null,null,null,null,null,null,null,null,null,null,null,null,null,null,null,null,null,null,null,null,null,null,null,null,null,null,null,null,null,null,null,null,null,null,null,null,null,null,null,null,null,null,null,null,null,null,null,null,null,null,null,null,null,55]
[null,null,null,null,null,null,null,null,null,null,null,null,null,null,null,null,null,null,null,null,null,null,null,null,null,null,null,null,null,null,null,null,null,null,null,null,null,null,null,null,null,null,null,null,null,null,null,null,null,null,null,null,null,null,null,null,null,null,null,null,null,null,null,null,null,null,null,null,null,null,null,null,null,null,null,null,56]
[null,null,null,null,null,null,null,null,null,null,null,null,null,null,null,null,null,null,null,null,null,null,null,null,null,null,null,null,null,null,null,null,null,null,null,null,null,null,null,null,null,null,null,null,null,null,null,null,null,null,null,null,null,null,null,null,null,null,null,null,null,null,null,null,null,null,null,null,null,null,null,null,null,null,null,null,57]
[null,null,null,null,null,null,null,null,null,null,null,null,null,null,null,null,null,null,null,null,null,null,null,null,null,null,null,null,null,null,null,null,null,null,null,null,null,null,null,null,null,null,null,null,null,null,null,null,null,null,null,null,null,null,null,null,null,null,null,null,null,null,null,null,null,null,null,null,null,null,null,null,null,null,null,null,58]
[null,null,null,null,null,null,null,null,null,null,null,null,null,null,null,null,null,null,null,null,null,null,null,null,null,null,null,null,null,null,null,null,null,null,null,null,null,null,null,null,null,null,null,null,null,null,null,null,null,null,null,null,null,null,null,null,null,null,null,null,null,null,null,null,null,null,null,null,null,null,null,null,null,null,null,null,59]
[null,null,null,null,null,null,null,null,null,null,null,null,null,null,null,null,null,null,null,null,null,null,null,null,null,null,null,null,null,null,null,null,null,null,null,null,null,null,null,null,null,null,null,null,null,null,null,null,null,null,null,null,null,null,null,null,null,null,null,null,null,null,null,null,null,null,null,null,null,null,null,null,null,null,null,null,60]
[null,null,null,null,null,null,null,null,null,null,null,null,null,null,null,null,null,null,null,null,null,null,null,null,null,null,null,null,null,null,null,null,null,null,null,null,null,null,null,null,null,null,null,null,null,null,null,null,null,null,null,null,null,null,null,null,null,null,null,null,null,null,null,null,null,null,null,null,null,null,null,null,null,null,null,null,61]
[null,null,null,null,null,null,null,null,null,null,null,null,null,null,null,null,null,null,null,null,null,null,null,null,null,null,null,null,null,null,null,null,null,null,null,null,null,null,null,null,null,null,null,null,null,null,null,null,null,null,null,null,null,null,null,null,null,null,null,null,null,null,null,null,null,null,null,null,null,null,null,null,null,null,null,null,62]
[null,null,null,null,null,null,null,null,null,null,null,null,null,null,null,null,null,null,null,null,null,null,null,null,null,null,null,null,null,null,null,null,null,null,null,null,null,null,null,null,null,null,null,null,null,null,null,null,null,null,null,null,null,null,null,null,null,null,null,null,null,null,null,null,null,null,null,null,null,null,null,null,null,null,null,null,63]
[null,null,null,null,null,null,null,null,null,null,null,null,null,null,null,null,null,null,null,null,null,null,null,null,null,null,null,null,null,null,null,null,null,null,null,null,null,null,null,null,null,null,null,null,null,null,null,null,null,null,null,null,null,null,null,null,null,null,null,null,null,null,null,null,null,null,null,null,null,null,null,null,null,null,null,null,64]
[null,null,null,null,null,null,null,null,null,null,null,null,null,null,null,null,null,null,null,null,null,null,null,null,null,null,null,null,null,null,null,null,null,null,null,null,null,null,null,null,null,null,null,null,null,null,null,null,null,null,null,null,null,null,null,null,null,null,null,null,null,null,null,null,null,null,null,null,null,null,null,null,null,null,null,null,65]
[null,null,null,null,null,null,null,null,null,null,null,null,null,null,null,null,null,null,null,null,null,null,null,null,null,null,null,null,null,null,null,null,null,null,null,null,null,null,null,null,null,null,null,null,null,null,null,null,null,null,null,null,null,null,null,null,null,null,null,null,null,null,null,null,null,null,null,null,null,null,null,null,null,null,null,null,66]
[null,null,null,null,null,null,null,null,null,null,null,null,null,null,null,null,null,null,null,null,null,null,null,null,null,null,null,null,null,null,null,null,null,null,null,null,null,null,null,null,null,null,null,null,null,null,null,null,null,null,null,null,null,null,null,null,null,null,null,null,null,null,null,null,null,null,null,null,null,null,null,null,null,null,null,null,67]
[null,null,null,null,null,null,null,null,null,null,null,null,null,null,null,null,null,null,null,null,null,null,null,null,null,null,null,null,null,null,null,null,null,null,null,null,null,null,null,null,null,null,null,null,null,null,null,null,null,null,null,null,null,null,null,null,null,null,null,null,null,null,null,null,null,null,null,null,null,null,null,null,null,null,null,null,68]
[null,null,null,null,null,null,null,null,null,null,null,null,null,null,null,null,null,null,null,null,null,null,null,null,null,null,null,null,null,null,null,null,null,null,null,null,null,null,null,null,null,null,null,null,null,null,null,null,null,null,null,null,null,null,null,null,null,null,null,null,null,null,null,null,null,null,null,null,null,null,null,null,null,null,null,null,69]
[null,null,null,null,null,null,null,null,null,null,null,null,null,null,null,null,null,null,null,null,null,null,null,null,null,null,null,null,null,null,null,null,null,null,null,null,null,null,null,null,null,null,null,null,null,null,null,null,null,null,null,null,null,null,null,null,null,null,null,null,null,null,null,null,null,null,null,null,null,null,null,null,null,null,null,null,70]
[null,null,null,null,null,null,null,null,null,null,null,null,null,null,null,null,null,null,null,null,null,null,null,null,null,null,null,null,null,null,null,null,null,null,null,null,null,null,null,null,null,null,null,null,null,null,null,null,null,null,null,null,null,null,null,null,null,null,null,null,null,null,null,null,null,null,null,null,null,null,null,null,null,null,null,null,71]
[null,null,null,null,null,null,null,null,null,null,null,null,null,null,null,null,null,null,null,null,null,null,null,null,null,null,null,null,null,null,null,null,null,null,null,null,null,null,null,null,null,null,null,null,null,null,null,null,null,null,null,null,null,null,null,null,null,null,null,null,null,null,null,null,null,null,null,null,null,null,null,null,null,null,null,null,72]
[null,null,null,null,null,null,null,null,null,null,null,null,null,null,null,null,null,null,null,null,null,null,null,null,null,null,null,null,null,null,null,null,null,null,null,null,null,null,null,null,null,null,null,null,null,null,null,null,null,null,null,null,null,null,null,null,null,null,null,null,null,null,null,null,null,null,null,null,null,null,null,null,null,null,null,null,73]
[null,null,null,null,null,null,null,null,null,null,null,null,null,null,null,null,null,null,null,null,null,null,null,null,null,null,null,null,null,null,null,null,null,null,null,null,null,null,null,null,null,null,null,null,null,null,null,null,null,null,null,null,null,null,null,null,null,null,null,null,null,null,null,null,null,null,null,null,null,null,null,null,null,null,null,null,74]
[null,null,null,null,null,null,null,null,null,null,null,null,null,null,null,null,null,null,null,null,null,null,null,null,null,null,null,null,null,null,null,null,null,null,null,null,null,null,null,null,null,null,null,null,null,null,null,null,null,null,null,null,null,null,null,null,null,null,null,null,null,null,null,null,null,null,null,null,null,null,null,null,null,null,null,null,75]
[null,null,null,null,null,null,null,null,null,null,null,null,null,null,null,null,null,null,null,null,null,null,null,null,null,null,null,null,null,null,null,null,null,null,null,null,null,null,null,null,null,null,null,null,null,null,null,null,null,null,null,null,null,null,null,null,null,null,null,null,null,null,null,null,null,null,null,null,null,null,null,null,null,null,null,null,null,"YAN ÜRÜNLER","KM,%","ME, Mcal/kg","HP,%","MP,%","DIP,%","RUP,%","Ca,%","P,%","HS,%","NDF,%","TSBM,%","SE, Mcal/kg","NEyp, Mcal/kg","NEb, Mcal/kg","NEl, Mcal/kg","ADF,%","eNDF,%","HY,%","HK,%","K,%","Cl,%","S,%","Zn,ppm","VitA, RE/kg","VitE,ppm","Fiyat,TL","En az","En çok"]
[null,null,null,null,null,null,null,null,null,null,null,null,null,null,null,null,null,null,null,null,null,null,null,null,null,null,null,null,null,null,null,null,null,null,null,null,null,null,null,null,null,null,null,null,null,null,null,null,null,null,null,null,null,null,null,null,null,null,null,null,null,null,null,null,null,null,null,null,null,null,null,null,null,null,null,null,1,"Balkabağı Kabukları",10,3.1,16,11.2,11.4,0,0.24,0.43,14,25,85,3.7,2.1,1.4,1.9,18,0,8.9,9,3.3,null,null,null,null,null,1,0,0.5]
[null,null,null,null,null,null,null,null,null,null,null,null,null,null,null,null,null,null,null,null,null,null,null,null,null,null,null,null,null,null,null,null,null,null,null,null,null,null,null,null,null,null,null,null,null,null,null,null,null,null,null,null,null,null,null,null,null,null,null,null,null,null,null,null,null,null,null,null,null,null,null,null,null,null,null,null,2,"Bezelye Iskartaları",89,3.1,25,17.5,19.5,5.5,0.15,0.45,7,15,86,3.8,2.1,1.4,2,9,0,1.5,4,1.1000000000000001,0.06,0.26,30,200,3,12,0,0.5]
[null,null,null,null,null,null,null,null,null,null,null,null,null,null,null,null,null,null,null,null,null,null,null,null,null,null,null,null,null,null,null,null,null,null,null,null,null,null,null,null,null,null,null,null,null,null,null,null,null,null,null,null,null,null,null,null,null,null,null,null,null,null,null,null,null,null,null,null,null,null,null,null,null,null,null,null,3,"Bira Posası, Kurutulmuş",92,3,25,17.5,19.5,13.5,0.28999999999999998,0.6,14,49,84,3.7,2,1.3,1.9,24,18,8.1999999999999993,4,0.1,0.15,0.32,78,null,29,15,0,0.2]
[null,null,null,null,null,null,null,null,null,null,null,null,null,null,null,null,null,null,null,null,null,null,null,null,null,null,null,null,null,null,null,null,null,null,null,null,null,null,null,null,null,null,null,null,null,null,null,null,null,null,null,null,null,null,null,null,null,null,null,null,null,null,null,null,null,null,null,null,null,null,null,null,null,null,null,null,4,"Bira Posası, Yaş",23,3.1,27,18.899999999999999,21.3,14,0.28999999999999998,0.61,13,45,85,3.7,2.1,1.4,1.9,21,18,7.6,4,0.1,0.15,0.32,78,null,null,20,0,1]
[null,null,null,null,null,null,null,null,null,null,null,null,null,null,null,null,null,null,null,null,null,null,null,null,null,null,null,null,null,null,null,null,null,null,null,null,null,null,null,null,null,null,null,null,null,null,null,null,null,null,null,null,null,null,null,null,null,null,null,null,null,null,null,null,null,null,null,null,null,null,null,null,null,null,null,null,5,"Buğday Değirmen Artığı",90,2.7,17,11.9,12.3,4.8,0.12,1,9,37,75,3.3,1.7,1.1000000000000001,1.7,12,0,4.4000000000000004,5,1.2,7.0000000000000007E-2,0.22,90,null,null,8,0,0.1]
[null,null,null,null,null,null,null,null,null,null,null,null,null,null,null,null,null,null,null,null,null,null,null,null,null,null,null,null,null,null,null,null,null,null,null,null,null,null,null,null,null,null,null,null,null,null,null,null,null,null,null,null,null,null,null,null,null,null,null,null,null,null,null,null,null,null,null,null,null,null,null,null,null,null,null,null,6,"Buğday Kepeği",89,2.5,17,11.9,12.3,4.8,0.13,1.29,11,46,70,3.1,1.6,1,1.6,13,4,4.5,7,1.4,0.05,0.24,96,600,21,7,0,0.1]
[null,null,null,null,null,null,null,null,null,null,null,null,null,null,null,null,null,null,null,null,null,null,null,null,null,null,null,null,null,null,null,null,null,null,null,null,null,null,null,null,null,null,null,null,null,null,null,null,null,null,null,null,null,null,null,null,null,null,null,null,null,null,null,null,null,null,null,null,null,null,null,null,null,null,null,null,7,"Buğday Kepeği, İnce",89,2.9,20,14,15,5,0.1,0.95,7,30,80,3.5,1.9,1.2,1.8,7,0,5.4,5,1.1000000000000001,0.08,0.2,118,null,61,8,0,0.1]
[null,null,null,null,null,null,null,null,null,null,null,null,null,null,null,null,null,null,null,null,null,null,null,null,null,null,null,null,null,null,null,null,null,null,null,null,null,null,null,null,null,null,null,null,null,null,null,null,null,null,null,null,null,null,null,null,null,null,null,null,null,null,null,null,null,null,null,null,null,null,null,null,null,null,null,null,8,"Buğday Kepeği, Razmol",89,3,19,13.3,14.1,4.2,0.15,1.02,8,36,82,3.6,2,1.3,1.9,12,2,4.5999999999999996,5,1.4,0.05,0.2,98,null,null,9,0,0.1]
[null,null,null,null,null,null,null,null,null,null,null,null,null,null,null,null,null,null,null,null,null,null,null,null,null,null,null,null,null,null,null,null,null,null,null,null,null,null,null,null,null,null,null,null,null,null,null,null,null,null,null,null,null,null,null,null,null,null,null,null,null,null,null,null,null,null,null,null,null,null,null,null,null,null,null,null,9,"Damıtma Çözünürleri, Kurutulmuş",93,3.2,29,20.3,23.1,0,0.33,1.38,4,22,88,3.9,2.2000000000000002,1.4,2,7,4,9.1999999999999993,7,1.8,0.28000000000000003,0.4,91,null,null,40,0,0.2]
[null,null,null,null,null,null,null,null,null,null,null,null,null,null,null,null,null,null,null,null,null,null,null,null,null,null,null,null,null,null,null,null,null,null,null,null,null,null,null,null,null,null,null,null,null,null,null,null,null,null,null,null,null,null,null,null,null,null,null,null,null,null,null,null,null,null,null,null,null,null,null,null,null,null,null,null,10,"Damıtma Katı Maddeleri, Arpa, Kurutulmuş",90,2.8,30,21,24,16.8,0.15,0.67,18,45,77,3.4,1.8,1.2,1.7,22,4,3.7,4,1,0.18,0.43,50,null,null,12,0,0.2]
[null,null,null,null,null,null,null,null,null,null,null,null,null,null,null,null,null,null,null,null,null,null,null,null,null,null,null,null,null,null,null,null,null,null,null,null,null,null,null,null,null,null,null,null,null,null,null,null,null,null,null,null,null,null,null,null,null,null,null,null,null,null,null,null,null,null,null,null,null,null,null,null,null,null,null,null,11,"Damıtma Katı Maddeleri, Mısır, Kurutulmuş",91,3.3,29,20.3,23.1,17.399999999999999,0.15,0.78,8,42,92,4.0999999999999996,2.2999999999999998,1.5,2.1,21,4,10.5,4,0.9,0.14000000000000001,0.45,65,394.8,null,11,0,0.2]
[null,null,null,null,null,null,null,null,null,null,null,null,null,null,null,null,null,null,null,null,null,null,null,null,null,null,null,null,null,null,null,null,null,null,null,null,null,null,null,null,null,null,null,null,null,null,null,null,null,null,null,null,null,null,null,null,null,null,null,null,null,null,null,null,null,null,null,null,null,null,null,null,null,null,null,null,12,"Damıtma Katı Maddeleri, Mısır, Taze",36,3.5,29,20.3,23.1,16,0.15,0.78,8,41,98,4.3,2.4,1.6,2.2000000000000002,21,4,10.5,4,0.9,0.14000000000000001,0.45,65,null,null,11,0,0.5]
[null,null,null,null,null,null,null,null,null,null,null,null,null,null,null,null,null,null,null,null,null,null,null,null,null,null,null,null,null,null,null,null,null,null,null,null,null,null,null,null,null,null,null,null,null,null,null,null,null,null,null,null,null,null,null,null,null,null,null,null,null,null,null,null,null,null,null,null,null,null,null,null,null,null,null,null,13,"Damıtma Katı Maddeleri, Sorgum, Kurutulmuş ",91,3.1,32,22.4,25.8,19.8,0.22,0.63,13,44,85,3.7,2.1,1.4,1.9,22,4,10,3,0.3,null,0.45,50,null,null,45,0,0.2]
[null,null,null,null,null,null,null,null,null,null,null,null,null,null,null,null,null,null,null,null,null,null,null,null,null,null,null,null,null,null,null,null,null,null,null,null,null,null,null,null,null,null,null,null,null,null,null,null,null,null,null,null,null,null,null,null,null,null,null,null,null,null,null,null,null,null,null,null,null,null,null,null,null,null,null,null,14,"Damıtma Katı Maddeleri, Sorgum, Taze ",35,3.2,32,22.4,25.8,17.600000000000001,0.22,0.63,13,44,89,3.9,2.2000000000000002,1.5,2.1,22,4,10,3,0.3,null,0.45,50,null,null,5,0,0.5]
[null,null,null,null,null,null,null,null,null,null,null,null,null,null,null,null,null,null,null,null,null,null,null,null,null,null,null,null,null,null,null,null,null,null,null,null,null,null,null,null,null,null,null,null,null,null,null,null,null,null,null,null,null,null,null,null,null,null,null,null,null,null,null,null,null,null,null,null,null,null,null,null,null,null,null,null,15,"Damıtma Katı Maddeleri, Taze ",25,3.3,28,19.600000000000001,22.2,14.6,0.28000000000000003,0.78,8,40,90,4,2.2000000000000002,1.5,2.1,18,4,9.6,6,1.2,0.28000000000000003,0.4,95,null,null,3,0,0.5]
[null,null,null,null,null,null,null,null,null,null,null,null,null,null,null,null,null,null,null,null,null,null,null,null,null,null,null,null,null,null,null,null,null,null,null,null,null,null,null,null,null,null,null,null,null,null,null,null,null,null,null,null,null,null,null,null,null,null,null,null,null,null,null,null,null,null,null,null,null,null,null,null,null,null,null,null,16,"Damıtma Katı Maddeleri+Çözünürleri, Mısır, Kurutulmuş (DDGS)",90,3.3,29,20.3,23.1,14.5,0.28000000000000003,0.79,9,43,92,4.0999999999999996,2.2999999999999998,1.5,2.1,17,4,10.6,6,1,0.18,0.39,80,394.8,43,12,0,0.2]
[null,null,null,null,null,null,null,null,null,null,null,null,null,null,null,null,null,null,null,null,null,null,null,null,null,null,null,null,null,null,null,null,null,null,null,null,null,null,null,null,null,null,null,null,null,null,null,null,null,null,null,null,null,null,null,null,null,null,null,null,null,null,null,null,null,null,null,null,null,null,null,null,null,null,null,null,17,"Damıtma Katı Maddeleri+Çözünürleri, Mısır, Taze ",7,3.3,22,15.4,16.8,12.1,0.14000000000000001,0.72,8,21,92,4.0999999999999996,2.2999999999999998,1.5,2.1,10,0,8.1,5,0.2,null,0.6,60,null,null,12,0,0.5]
[null,null,null,null,null,null,null,null,null,null,null,null,null,null,null,null,null,null,null,null,null,null,null,null,null,null,null,null,null,null,null,null,null,null,null,null,null,null,null,null,null,null,null,null,null,null,null,null,null,null,null,null,null,null,null,null,null,null,null,null,null,null,null,null,null,null,null,null,null,null,null,null,null,null,null,null,18,"Damıtma Katı Maddeleri+Çözünürleri, Sorgum, Kurutulmuş ",92,3.1,31,21.7,24.9,16.399999999999999,0.25,0.65,13,47,85,3.7,2.1,1.4,1.9,19,4,10,3,0.5,null,0.4,55,null,null,50,0,0.2]
[null,null,null,null,null,null,null,null,null,null,null,null,null,null,null,null,null,null,null,null,null,null,null,null,null,null,null,null,null,null,null,null,null,null,null,null,null,null,null,null,null,null,null,null,null,null,null,null,null,null,null,null,null,null,null,null,null,null,null,null,null,null,null,null,null,null,null,null,null,null,null,null,null,null,null,null,19,"Domates Posası, Kurutulmuş ",92,2.2999999999999998,23,16.100000000000001,17.7,null,0.43,0.59,26,55,64,2.8,1.4,0.8,1.4,50,34,10.6,6,3.6,null,null,null,null,null,35,0,0.2]
[null,null,null,null,null,null,null,null,null,null,null,null,null,null,null,null,null,null,null,null,null,null,null,null,null,null,null,null,null,null,null,null,null,null,null,null,null,null,null,null,null,null,null,null,null,null,null,null,null,null,null,null,null,null,null,null,null,null,null,null,null,null,null,null,null,null,null,null,null,null,null,null,null,null,null,null,20,"Domates Posası, Yaş",13,2.2400000000000002,21.7,15,16,null,0.3,0.5,25,54,62,2.73,1.36,0.72,1.3,48,33,10,6,3.4,null,null,null,null,null,3,null,0.5]
[null,null,null,null,null,null,null,null,null,null,null,null,null,null,null,null,null,null,null,null,null,null,null,null,null,null,null,null,null,null,null,null,null,null,null,null,null,null,null,null,null,null,null,null,null,null,null,null,null,null,null,null,null,null,null,null,null,null,null,null,null,null,null,null,null,null,null,null,null,null,null,null,null,null,null,null,21,"Ekmek Artıkları ",68,3.3,14,9.8000000000000007,9.6,3.4,0.09,0.18,1,3,91,4,2.2000000000000002,1.5,2.1,2,0,3.2,3,0.2,0.76,0.15,40,null,null,1,0,0.5]
[null,null,null,null,null,null,null,null,null,null,null,null,null,null,null,null,null,null,null,null,null,null,null,null,null,null,null,null,null,null,null,null,null,null,null,null,null,null,null,null,null,null,null,null,null,null,null,null,null,null,null,null,null,null,null,null,null,null,null,null,null,null,null,null,null,null,null,null,null,null,null,null,null,null,null,null,22,"Elma Posası, Kurutulmuş",89,2.4,5,3.5,1.5,0.8,0.13,0.12,19,45,65,2.9,1.5,0.8,1.5,35,34,5.2,4,0.5,null,0.02,null,null,null,3,0,0.2]
[null,null,null,null,null,null,null,null,null,null,null,null,null,null,null,null,null,null,null,null,null,null,null,null,null,null,null,null,null,null,null,null,null,null,null,null,null,null,null,null,null,null,null,null,null,null,null,null,null,null,null,null,null,null,null,null,null,null,null,null,null,null,null,null,null,null,null,null,null,null,null,null,null,null,null,null,23,"Elma Posası, Taze",20,2.5,6,4.2,2.4,0.6,0.14000000000000001,0.14000000000000001,17,40,68,3,1.5,0.9,1.5,34,34,5.6,4,0.6,null,0.06,11,null,null,2,0,0.5]
[null,null,null,null,null,null,null,null,null,null,null,null,null,null,null,null,null,null,null,null,null,null,null,null,null,null,null,null,null,null,null,null,null,null,null,null,null,null,null,null,null,null,null,null,null,null,null,null,null,null,null,null,null,null,null,null,null,null,null,null,null,null,null,null,null,null,null,null,null,null,null,null,null,null,null,null,24,"Fırıncılık Artıkları, Kurutulmuş ",90,3.3,12,8.4,7.8,3.6,0.18,0.28000000000000003,4,14,90,4,2.2000000000000002,1.5,2.1,6,0,11,4,0.3,2.25,0.15,33,3.1,45,1,0,0.5]
[null,null,null,null,null,null,null,null,null,null,null,null,null,null,null,null,null,null,null,null,null,null,null,null,null,null,null,null,null,null,null,null,null,null,null,null,null,null,null,null,null,null,null,null,null,null,null,null,null,null,null,null,null,null,null,null,null,null,null,null,null,null,null,null,null,null,null,null,null,null,null,null,null,null,null,null,25,"Havuç Posası ",14,2.2000000000000002,6,4.2,2.4,null,null,null,19,40,62,2.7,1.4,0.7,1.4,23,0,7.8,9,null,null,null,null,null,null,1.2,0,1]
[null,null,null,null,null,null,null,null,null,null,null,null,null,null,null,null,null,null,null,null,null,null,null,null,null,null,null,null,null,null,null,null,null,null,null,null,null,null,null,null,null,null,null,null,null,null,null,null,null,null,null,null,null,null,null,null,null,null,null,null,null,null,null,null,null,null,null,null,null,null,null,null,null,null,null,null,26,"Kuru Fasulye, Artıkları",90,3,24,16.8,18.600000000000001,6,0.15,0.59,5,20,84,3.7,2,1.3,1.9,8,0,1.4,5,1.4,0.06,0.26,45,null,null,120,0,0.2]
[null,null,null,null,null,null,null,null,null,null,null,null,null,null,null,null,null,null,null,null,null,null,null,null,null,null,null,null,null,null,null,null,null,null,null,null,null,null,null,null,null,null,null,null,null,null,null,null,null,null,null,null,null,null,null,null,null,null,null,null,null,null,null,null,null,null,null,null,null,null,null,null,null,null,null,null,27,"Melas, Narenciye",65,2.8,10,7,6,0,1.9,0.17,0,0,77,3.4,1.8,1.2,1.7,0,0,0.3,8,0.2,0.11,0.23,137,null,null,17,0,0.1]
[null,null,null,null,null,null,null,null,null,null,null,null,null,null,null,null,null,null,null,null,null,null,null,null,null,null,null,null,null,null,null,null,null,null,null,null,null,null,null,null,null,null,null,null,null,null,null,null,null,null,null,null,null,null,null,null,null,null,null,null,null,null,null,null,null,null,null,null,null,null,null,null,null,null,null,null,28,"Melas, Odun Hemiselüloz",61,2.7,1,0.7,2.1,0,1.3,0.09,1,4,76,3.4,1.8,1.1000000000000001,1.7,2,0,0.7,9,0.1,null,0.05,null,null,null,13,0,0.05]
[null,null,null,null,null,null,null,null,null,null,null,null,null,null,null,null,null,null,null,null,null,null,null,null,null,null,null,null,null,null,null,null,null,null,null,null,null,null,null,null,null,null,null,null,null,null,null,null,null,null,null,null,null,null,null,null,null,null,null,null,null,null,null,null,null,null,null,null,null,null,null,null,null,null,null,null,29,"Melas, Pancar ",77,2.7,9,6.3,5.0999999999999996,0,0.12,0.03,0,0,75,3.3,1.7,1.1000000000000001,1.7,0,0,0.2,12,6,1.64,0.6,18,null,5,4,0,0.1]
[null,null,null,null,null,null,null,null,null,null,null,null,null,null,null,null,null,null,null,null,null,null,null,null,null,null,null,null,null,null,null,null,null,null,null,null,null,null,null,null,null,null,null,null,null,null,null,null,null,null,null,null,null,null,null,null,null,null,null,null,null,null,null,null,null,null,null,null,null,null,null,null,null,null,null,null,30,"Melas, Şeker Kamışı",76,2.7,6,4.2,2.4,0,0.97,0.1,0,0,75,3.3,1.7,1.1000000000000001,1.7,0,0,0.8,12,3.7,2.5,0.53,25,null,7,4,0,0.1]
[null,null,null,null,null,null,null,null,null,null,null,null,null,null,null,null,null,null,null,null,null,null,null,null,null,null,null,null,null,null,null,null,null,null,null,null,null,null,null,null,null,null,null,null,null,null,null,null,null,null,null,null,null,null,null,null,null,null,null,null,null,null,null,null,null,null,null,null,null,null,null,null,null,null,null,null,31,"Melas, Şeker Kamışı, Kurutulmuş",94,2.7,9,6.3,5.0999999999999996,0,1.1000000000000001,0.15,2,7,74,3.3,1.7,1.1000000000000001,1.7,3,0,0.3,14,3.6,3,null,30,null,null,4,0,0.05]
[null,null,null,null,null,null,null,null,null,null,null,null,null,null,null,null,null,null,null,null,null,null,null,null,null,null,null,null,null,null,null,null,null,null,null,null,null,null,null,null,null,null,null,null,null,null,null,null,null,null,null,null,null,null,null,null,null,null,null,null,null,null,null,null,null,null,null,null,null,null,null,null,null,null,null,null,32,"Mısır Kepeği ",91,1.7,11,7.7,6.9,null,0.04,0.15,10,51,76,3.4,1.8,1.1000000000000001,1.7,17,0,6.3,3,0.1,0.13,0.08,18,null,null,10,0,0.1]
[null,null,null,null,null,null,null,null,null,null,null,null,null,null,null,null,null,null,null,null,null,null,null,null,null,null,null,null,null,null,null,null,null,null,null,null,null,null,null,null,null,null,null,null,null,null,null,null,null,null,null,null,null,null,null,null,null,null,null,null,null,null,null,null,null,null,null,null,null,null,null,null,null,null,null,null,33,"Mısır Kepeği+Germ (Hominy)",90,3.2,11,7.7,6.9,5.3,0.04,0.54,5,21,89,3.9,2.2000000000000002,1.5,2.1,7,9,6.1,3,0.6,0.06,0.1,32,1.3160000000000001,null,9,0,0.1]
[null,null,null,null,null,null,null,null,null,null,null,null,null,null,null,null,null,null,null,null,null,null,null,null,null,null,null,null,null,null,null,null,null,null,null,null,null,null,null,null,null,null,null,null,null,null,null,null,null,null,null,null,null,null,null,null,null,null,null,null,null,null,null,null,null,null,null,null,null,null,null,null,null,null,null,null,34,"Mısır Koçan Unu ",87,3,9,6.3,5.0999999999999996,4.7,0.06,0.28000000000000003,9,26,82,3.6,2,1.3,1.9,10,56,3.7,2,0.5,0.05,0.13,16,526.4,20,3.5,0,0.3]
[null,null,null,null,null,null,null,null,null,null,null,null,null,null,null,null,null,null,null,null,null,null,null,null,null,null,null,null,null,null,null,null,null,null,null,null,null,null,null,null,null,null,null,null,null,null,null,null,null,null,null,null,null,null,null,null,null,null,null,null,null,null,null,null,null,null,null,null,null,null,null,null,null,null,null,null,35,"Mısır Konserve Artıkları ",29,2.5,8,5.6,4.2,1.2,0.1,0.28999999999999998,28,59,68,3,1.5,0.9,1.5,36,0,3,5,1,null,0.13,25,null,null,15,0,1]
[null,null,null,null,null,null,null,null,null,null,null,null,null,null,null,null,null,null,null,null,null,null,null,null,null,null,null,null,null,null,null,null,null,null,null,null,null,null,null,null,null,null,null,null,null,null,null,null,null,null,null,null,null,null,null,null,null,null,null,null,null,null,null,null,null,null,null,null,null,null,null,null,null,null,null,null,36,"Mısır Sömeği ",90,1.7,3,2.1,0.3,1.5,0.12,0.04,36,88,48,2.1,1.1000000000000001,0.2,1,39,56,0.5,2,0.8,null,0.4,5,131.6,null,25,0,0.5]
[null,null,null,null,null,null,null,null,null,null,null,null,null,null,null,null,null,null,null,null,null,null,null,null,null,null,null,null,null,null,null,null,null,null,null,null,null,null,null,null,null,null,null,null,null,null,null,null,null,null,null,null,null,null,null,null,null,null,null,null,null,null,null,null,null,null,null,null,null,null,null,null,null,null,null,null,37,"Pancar Posası, Ambalajlı",19,2.76,11.1,7.7,6.9,3.9,0.87,0.1,20,45.8,74,3.18,1.57,0.97,1.55,23.1,33,0.7,4.7,0.91,0.16,0.22,10,0,0,5.5,0,1]
[null,null,null,null,null,null,null,null,null,null,null,null,null,null,null,null,null,null,null,null,null,null,null,null,null,null,null,null,null,null,null,null,null,null,null,null,null,null,null,null,null,null,null,null,null,null,null,null,null,null,null,null,null,null,null,null,null,null,null,null,null,null,null,null,null,null,null,null,null,null,null,null,null,null,null,null,38,"Pancar Posası, Kurutulmuş",91,2.7,11,7.7,6.9,4.8,0.65,0.08,21,41,75,3.3,1.7,1.1000000000000001,1.7,21,33,0.7,6,1.4,0.4,0.22,22,null,null,6,0,0.2]
[null,null,null,null,null,null,null,null,null,null,null,null,null,null,null,null,null,null,null,null,null,null,null,null,null,null,null,null,null,null,null,null,null,null,null,null,null,null,null,null,null,null,null,null,null,null,null,null,null,null,null,null,null,null,null,null,null,null,null,null,null,null,null,null,null,null,null,null,null,null,null,null,null,null,null,null,39,"Pancar Posası, Kurutulmuş, Melaslı",92,2.7,11,7.7,6.9,3.7,0.6,0.1,17,40,76,3.4,1.8,1.1000000000000001,1.7,22,33,0.6,6,1.8,null,0.42,11,null,null,2,0,0.2]
[null,null,null,null,null,null,null,null,null,null,null,null,null,null,null,null,null,null,null,null,null,null,null,null,null,null,null,null,null,null,null,null,null,null,null,null,null,null,null,null,null,null,null,null,null,null,null,null,null,null,null,null,null,null,null,null,null,null,null,null,null,null,null,null,null,null,null,null,null,null,null,null,null,null,null,null,40,"Pancar Posası, Yaş",17,2.7,11,7.7,6.9,3.9,0.68,0.08,20,48,76,3.4,1.8,1.1000000000000001,1.7,23,33,0.7,6,1.4,0.4,0.21,20,null,null,2,0,1]
[null,null,null,null,null,null,null,null,null,null,null,null,null,null,null,null,null,null,null,null,null,null,null,null,null,null,null,null,null,null,null,null,null,null,null,null,null,null,null,null,null,null,null,null,null,null,null,null,null,null,null,null,null,null,null,null,null,null,null,null,null,null,null,null,null,null,null,null,null,null,null,null,null,null,null,null,41,"Pancar Posası, Yaş, Melaslı",24,2.8,11,7.7,6.9,2.8,0.6,0.1,16,39,77,3.4,1.8,1.2,1.7,21,33,0.6,6,1.8,null,0.42,11,null,null,6,0,1]
[null,null,null,null,null,null,null,null,null,null,null,null,null,null,null,null,null,null,null,null,null,null,null,null,null,null,null,null,null,null,null,null,null,null,null,null,null,null,null,null,null,null,null,null,null,null,null,null,null,null,null,null,null,null,null,null,null,null,null,null,null,null,null,null,null,null,null,null,null,null,null,null,null,null,null,null,42,"Patates Artıkları, Kurutulmuş",89,3.1,8,5.6,4.2,0,0.16,0.25,7,15,85,3.7,2.1,1.4,1.9,9,0,0.5,5,1.2,0.39,0.11,12,null,null,4,0,0.2]
[null,null,null,null,null,null,null,null,null,null,null,null,null,null,null,null,null,null,null,null,null,null,null,null,null,null,null,null,null,null,null,null,null,null,null,null,null,null,null,null,null,null,null,null,null,null,null,null,null,null,null,null,null,null,null,null,null,null,null,null,null,null,null,null,null,null,null,null,null,null,null,null,null,null,null,null,43,"Patates Artıkları, Yaş",14,3,7,4.9000000000000004,3.3,0,0.16,0.25,9,18,82,3.6,2,1.3,1.9,11,0,1.5,3,1.2,0.36,0.11,12,null,null,2,0,0.5]
[null,null,null,null,null,null,null,null,null,null,null,null,null,null,null,null,null,null,null,null,null,null,null,null,null,null,null,null,null,null,null,null,null,null,null,null,null,null,null,null,null,null,null,null,null,null,null,null,null,null,null,null,null,null,null,null,null,null,null,null,null,null,null,null,null,null,null,null,null,null,null,null,null,null,null,null,44,"Patates Kabukları",21,2.9,10,7,6,0,0.03,0.24,2,4,80,3.5,1.9,1.2,1.8,3,0,0.4,5,2.2000000000000002,0.3,0.09,null,null,null,1,0,0.5]
[null,null,null,null,null,null,null,null,null,null,null,null,null,null,null,null,null,null,null,null,null,null,null,null,null,null,null,null,null,null,null,null,null,null,null,null,null,null,null,null,null,null,null,null,null,null,null,null,null,null,null,null,null,null,null,null,null,null,null,null,null,null,null,null,null,null,null,null,null,null,null,null,null,null,null,null,45,"Pirinç Değirmen Kalıntıları ",91,1.5,7,4.9000000000000004,3.3,null,0.4,0.31,32,60,42,1.9,0.9,0,0.9,48,0,5.7,null,2.2000000000000002,null,0.3,31,null,null,10,0,0.1]
[null,null,null,null,null,null,null,null,null,null,null,null,null,null,null,null,null,null,null,null,null,null,null,null,null,null,null,null,null,null,null,null,null,null,null,null,null,null,null,null,null,null,null,null,null,null,null,null,null,null,null,null,null,null,null,null,null,null,null,null,null,null,null,null,null,null,null,null,null,null,null,null,null,null,null,null,46,"Pirinç Kepeği",91,2.6,14,9.8000000000000007,9.6,4.2,7.0000000000000007E-2,1.7,13,24,72,3.2,1.7,1,1.6,18,0,17,11,1.8,0.09,0.19,40,null,null,9,0,0.1]
[null,null,null,null,null,null,null,null,null,null,null,null,null,null,null,null,null,null,null,null,null,null,null,null,null,null,null,null,null,null,null,null,null,null,null,null,null,null,null,null,null,null,null,null,null,null,null,null,null,null,null,null,null,null,null,null,null,null,null,null,null,null,null,null,null,null,null,null,null,null,null,null,null,null,null,null,47,"Pirinç Parlatma Kabukları",90,3.3,14,9.8000000000000007,9.6,null,0.05,1.36,4,null,90,4,2.2000000000000002,1.5,2.1,5,null,14,9,1.2,0.12,0.19,28,null,null,5,0,0.1]
[null,null,null,null,null,null,null,null,null,null,null,null,null,null,null,null,null,null,null,null,null,null,null,null,null,null,null,null,null,null,null,null,null,null,null,null,null,null,null,null,null,null,null,null,null,null,null,null,null,null,null,null,null,null,null,null,null,null,null,null,null,null,null,null,null,null,null,null,null,null,null,null,null,null,null,null,48,"Portakal Posası, Kurutulmuş",89,2.9,9,6.3,5.0999999999999996,null,0.71,0.11,9,20,80,3.5,1.9,1.2,1.8,16,33,1.8,4,0.6,null,0.05,null,null,null,34,0,0.2]
[null,null,null,null,null,null,null,null,null,null,null,null,null,null,null,null,null,null,null,null,null,null,null,null,null,null,null,null,null,null,null,null,null,null,null,null,null,null,null,null,null,null,null,null,null,null,null,null,null,null,null,null,null,null,null,null,null,null,null,null,null,null,null,null,null,null,null,null,null,null,null,null,null,null,null,null,49,"Soya Unu Değirmen Kalıntısı ",90,1.8,15,10.5,10.5,null,0.49,0.18,36,null,51,2.2000000000000002,1.1000000000000001,0.3,1.1000000000000001,46,null,2,6,1.7,null,7.0000000000000007E-2,null,null,null,5,0,0.1]
[null,null,null,null,null,null,null,null,null,null,null,null,null,null,null,null,null,null,null,null,null,null,null,null,null,null,null,null,null,null,null,null,null,null,null,null,null,null,null,null,null,null,null,null,null,null,null,null,null,null,null,null,null,null,null,null,null,null,null,null,null,null,null,null,null,null,null,null,null,null,null,null,null,null,null,null,50,"Turunçgil Posası, Kurutulmuş",90,2.9,7,4.9000000000000004,3.3,2.7,1.81,0.12,13,21,79,3.5,1.9,1.2,1.8,18,33,2.2000000000000002,7,0.8,0.04,0.08,14,0,null,34,0,0.2]
[null,null,null,null,null,null,null,null,null,null,null,null,null,null,null,null,null,null,null,null,null,null,null,null,null,null,null,null,null,null,null,null,null,null,null,null,null,null,null,null,null,null,null,null,null,null,null,null,null,null,null,null,null,null,null,null,null,null,null,null,null,null,null,null,null,null,null,null,null,null,null,null,null,null,null,null,51]
[null,null,null,null,null,null,null,null,null,null,null,null,null,null,null,null,null,null,null,null,null,null,null,null,null,null,null,null,null,null,null,null,null,null,null,null,null,null,null,null,null,null,null,null,null,null,null,null,null,null,null,null,null,null,null,null,null,null,null,null,null,null,null,null,null,null,null,null,null,null,null,null,null,null,null,null,52]
[null,null,null,null,null,null,null,null,null,null,null,null,null,null,null,null,null,null,null,null,null,null,null,null,null,null,null,null,null,null,null,null,null,null,null,null,null,null,null,null,null,null,null,null,null,null,null,null,null,null,null,null,null,null,null,null,null,null,null,null,null,null,null,null,null,null,null,null,null,null,null,null,null,null,null,null,53]
[null,null,null,null,null,null,null,null,null,null,null,null,null,null,null,null,null,null,null,null,null,null,null,null,null,null,null,null,null,null,null,null,null,null,null,null,null,null,null,null,null,null,null,null,null,null,null,null,null,null,null,null,null,null,null,null,null,null,null,null,null,null,null,null,null,null,null,null,null,null,null,null,null,null,null,null,54]
[null,null,null,null,null,null,null,null,null,null,null,null,null,null,null,null,null,null,null,null,null,null,null,null,null,null,null,null,null,null,null,null,null,null,null,null,null,null,null,null,null,null,null,null,null,null,null,null,null,null,null,null,null,null,null,null,null,null,null,null,null,null,null,null,null,null,null,null,null,null,null,null,null,null,null,null,55]
[null,null,null,null,null,null,null,null,null,null,null,null,null,null,null,null,null,null,null,null,null,null,null,null,null,null,null,null,null,null,null,null,null,null,null,null,null,null,null,null,null,null,null,null,null,null,null,null,null,null,null,null,null,null,null,null,null,null,null,null,null,null,null,null,null,null,null,null,null,null,null,null,null,null,null,null,56]
[null,null,null,null,null,null,null,null,null,null,null,null,null,null,null,null,null,null,null,null,null,null,null,null,null,null,null,null,null,null,null,null,null,null,null,null,null,null,null,null,null,null,null,null,null,null,null,null,null,null,null,null,null,null,null,null,null,null,null,null,null,null,null,null,null,null,null,null,null,null,null,null,null,null,null,null,57]
[null,null,null,null,null,null,null,null,null,null,null,null,null,null,null,null,null,null,null,null,null,null,null,null,null,null,null,null,null,null,null,null,null,null,null,null,null,null,null,null,null,null,null,null,null,null,null,null,null,null,null,null,null,null,null,null,null,null,null,null,null,null,null,null,null,null,null,null,null,null,null,null,null,null,null,null,58]
[null,null,null,null,null,null,null,null,null,null,null,null,null,null,null,null,null,null,null,null,null,null,null,null,null,null,null,null,null,null,null,null,null,null,null,null,null,null,null,null,null,null,null,null,null,null,null,null,null,null,null,null,null,null,null,null,null,null,null,null,null,null,null,null,null,null,null,null,null,null,null,null,null,null,null,null,59]
[null,null,null,null,null,null,null,null,null,null,null,null,null,null,null,null,null,null,null,null,null,null,null,null,null,null,null,null,null,null,null,null,null,null,null,null,null,null,null,null,null,null,null,null,null,null,null,null,null,null,null,null,null,null,null,null,null,null,null,null,null,null,null,null,null,null,null,null,null,null,null,null,null,null,null,null,60]
[null,null,null,null,null,null,null,null,null,null,null,null,null,null,null,null,null,null,null,null,null,null,null,null,null,null,null,null,null,null,null,null,null,null,null,null,null,null,null,null,null,null,null,null,null,null,null,null,null,null,null,null,null,null,null,null,null,null,null,null,null,null,null,null,null,null,null,null,null,null,null,null,null,null,null,null,61]
[null,null,null,null,null,null,null,null,null,null,null,null,null,null,null,null,null,null,null,null,null,null,null,null,null,null,null,null,null,null,null,null,null,null,null,null,null,null,null,null,null,null,null,null,null,null,null,null,null,null,null,null,null,null,null,null,null,null,null,null,null,null,null,null,null,null,null,null,null,null,null,null,null,null,null,null,62]
[null,null,null,null,null,null,null,null,null,null,null,null,null,null,null,null,null,null,null,null,null,null,null,null,null,null,null,null,null,null,null,null,null,null,null,null,null,null,null,null,null,null,null,null,null,null,null,null,null,null,null,null,null,null,null,null,null,null,null,null,null,null,null,null,null,null,null,null,null,null,null,null,null,null,null,null,63]
[null,null,null,null,null,null,null,null,null,null,null,null,null,null,null,null,null,null,null,null,null,null,null,null,null,null,null,null,null,null,null,null,null,null,null,null,null,null,null,null,null,null,null,null,null,null,null,null,null,null,null,null,null,null,null,null,null,null,null,null,null,null,null,null,null,null,null,null,null,null,null,null,null,null,null,null,64]
[null,null,null,null,null,null,null,null,null,null,null,null,null,null,null,null,null,null,null,null,null,null,null,null,null,null,null,null,null,null,null,null,null,null,null,null,null,null,null,null,null,null,null,null,null,null,null,null,null,null,null,null,null,null,null,null,null,null,null,null,null,null,null,null,null,null,null,null,null,null,null,null,null,null,null,null,65]
[null,null,null,null,null,null,null,null,null,null,null,null,null,null,null,null,null,null,null,null,null,null,null,null,null,null,null,null,null,null,null,null,null,null,null,null,null,null,null,null,null,null,null,null,null,null,null,null,null,null,null,null,null,null,null,null,null,null,null,null,null,null,null,null,null,null,null,null,null,null,null,null,null,null,null,null,66]
[null,null,null,null,null,null,null,null,null,null,null,null,null,null,null,null,null,null,null,null,null,null,null,null,null,null,null,null,null,null,null,null,null,null,null,null,null,null,null,null,null,null,null,null,null,null,null,null,null,null,null,null,null,null,null,null,null,null,null,null,null,null,null,null,null,null,null,null,null,null,null,null,null,null,null,null,67]
[null,null,null,null,null,null,null,null,null,null,null,null,null,null,null,null,null,null,null,null,null,null,null,null,null,null,null,null,null,null,null,null,null,null,null,null,null,null,null,null,null,null,null,null,null,null,null,null,null,null,null,null,null,null,null,null,null,null,null,null,null,null,null,null,null,null,null,null,null,null,null,null,null,null,null,null,68]
[null,null,null,null,null,null,null,null,null,null,null,null,null,null,null,null,null,null,null,null,null,null,null,null,null,null,null,null,null,null,null,null,null,null,null,null,null,null,null,null,null,null,null,null,null,null,null,null,null,null,null,null,null,null,null,null,null,null,null,null,null,null,null,null,null,null,null,null,null,null,null,null,null,null,null,null,69]
[null,null,null,null,null,null,null,null,null,null,null,null,null,null,null,null,null,null,null,null,null,null,null,null,null,null,null,null,null,null,null,null,null,null,null,null,null,null,null,null,null,null,null,null,null,null,null,null,null,null,null,null,null,null,null,null,null,null,null,null,null,null,null,null,null,null,null,null,null,null,null,null,null,null,null,null,70]
[null,null,null,null,null,null,null,null,null,null,null,null,null,null,null,null,null,null,null,null,null,null,null,null,null,null,null,null,null,null,null,null,null,null,null,null,null,null,null,null,null,null,null,null,null,null,null,null,null,null,null,null,null,null,null,null,null,null,null,null,null,null,null,null,null,null,null,null,null,null,null,null,null,null,null,null,71]
[null,null,null,null,null,null,null,null,null,null,null,null,null,null,null,null,null,null,null,null,null,null,null,null,null,null,null,null,null,null,null,null,null,null,null,null,null,null,null,null,null,null,null,null,null,null,null,null,null,null,null,null,null,null,null,null,null,null,null,null,null,null,null,null,null,null,null,null,null,null,null,null,null,null,null,null,72]
[null,null,null,null,null,null,null,null,null,null,null,null,null,null,null,null,null,null,null,null,null,null,null,null,null,null,null,null,null,null,null,null,null,null,null,null,null,null,null,null,null,null,null,null,null,null,null,null,null,null,null,null,null,null,null,null,null,null,null,null,null,null,null,null,null,null,null,null,null,null,null,null,null,null,null,null,73]
[null,null,null,null,null,null,null,null,null,null,null,null,null,null,null,null,null,null,null,null,null,null,null,null,null,null,null,null,null,null,null,null,null,null,null,null,null,null,null,null,null,null,null,null,null,null,null,null,null,null,null,null,null,null,null,null,null,null,null,null,null,null,null,null,null,null,null,null,null,null,null,null,null,null,null,null,74]
[null,null,null,null,null,null,null,null,null,null,null,null,null,null,null,null,null,null,null,null,null,null,null,null,null,null,null,null,null,null,null,null,null,null,null,null,null,null,null,null,null,null,null,null,null,null,null,null,null,null,null,null,null,null,null,null,null,null,null,null,null,null,null,null,null,null,null,null,null,null,null,null,null,null,null,null,75]
[null,null,null,null,null,null,null,null,null,null,null,null,null,null,null,null,null,null,null,null,null,null,null,null,null,null,null,null,null,null,null,null,null,null,null,null,null,null,null,null,null,null,null,null,null,null,null,null,null,null,null,null,null,null,null,null,null,null,null,null,null,null,null,null,null,null,null,null,null,null,null,null,null,null,null,null,null,"PROTEİN KAYNAKLARI","KM,%","ME, Mcal/kg","HP,%","MP,%","DIP,%","RUP,%","Ca,%","P,%","HS,%","NDF,%","TSBM,%","SE, Mcal/kg","NEyp, Mcal/kg","NEb, Mcal/kg","NEl, Mcal/kg","ADF,%","eNDF,%","HY,%","HK,%","K,%","Cl,%","S,%","Zn,ppm","VitA, RE/kg","VitE,ppm","Fiyat,TL","En az","En çok"]
[null,null,null,null,null,null,null,null,null,null,null,null,null,null,null,null,null,null,null,null,null,null,null,null,null,null,null,null,null,null,null,null,null,null,null,null,null,null,null,null,null,null,null,null,null,null,null,null,null,null,null,null,null,null,null,null,null,null,null,null,null,null,null,null,null,null,null,null,null,null,null,null,null,null,null,null,1,"Aspir Küspesi, Kabuksuz, Solvent ",91,2.7,48,33.6,40.200000000000003,null,0.38,1.6,9,null,76,3.4,1.8,1.1000000000000001,1.7,null,null,0.6,7,1.2,0.18,0.22,36,null,null,8.5,0,0.2]
[null,null,null,null,null,null,null,null,null,null,null,null,null,null,null,null,null,null,null,null,null,null,null,null,null,null,null,null,null,null,null,null,null,null,null,null,null,null,null,null,null,null,null,null,null,null,null,null,null,null,null,null,null,null,null,null,null,null,null,null,null,null,null,null,null,null,null,null,null,null,null,null,null,null,null,null,2,"Aspir Küspesi, Solvent ",91,2,24,16.8,18.600000000000001,null,0.35,0.78,33,57,55,2.4,1.2,0.5,1.2,41,36,1.2,6,1,0.21,0.23,65,null,null,8.5,0,0.2]
[null,null,null,null,null,null,null,null,null,null,null,null,null,null,null,null,null,null,null,null,null,null,null,null,null,null,null,null,null,null,null,null,null,null,null,null,null,null,null,null,null,null,null,null,null,null,null,null,null,null,null,null,null,null,null,null,null,null,null,null,null,null,null,null,null,null,null,null,null,null,null,null,null,null,null,null,3,"Avokado Çekirdeği Küspesi",91,1.9,20,14,15,null,null,null,19,null,52,2.2999999999999998,1.1000000000000001,0.4,1.1000000000000001,24,null,1.2,16,null,null,null,null,null,null,35,0,0.2]
[null,null,null,null,null,null,null,null,null,null,null,null,null,null,null,null,null,null,null,null,null,null,null,null,null,null,null,null,null,null,null,null,null,null,null,null,null,null,null,null,null,null,null,null,null,null,null,null,null,null,null,null,null,null,null,null,null,null,null,null,null,null,null,null,null,null,null,null,null,null,null,null,null,null,null,null,4,"Ayçiçeği Küspesi Solvent,%35",92,2.4,38,26.6,31.2,10.3,0.44,0.97,20,36,65,2.9,1.5,0.8,1.5,24,23,2.5,8,1.2,0.15,0.33,55,null,12,12,0,0.2]
[null,null,null,null,null,null,null,null,null,null,null,null,null,null,null,null,null,null,null,null,null,null,null,null,null,null,null,null,null,null,null,null,null,null,null,null,null,null,null,null,null,null,null,null,null,null,null,null,null,null,null,null,null,null,null,null,null,null,null,null,null,null,null,null,null,null,null,null,null,null,null,null,null,null,null,null,5,"Ayçiçeği Küspesi, Kabuklu, %28",91,2.1,31,21.7,24.9,10.9,0.4,1.03,27,44,57,2.5,1.3,0.6,1.3,32,37,2.4,7,1,null,0.3,85,null,null,11,0,0.2]
[null,null,null,null,null,null,null,null,null,null,null,null,null,null,null,null,null,null,null,null,null,null,null,null,null,null,null,null,null,null,null,null,null,null,null,null,null,null,null,null,null,null,null,null,null,null,null,null,null,null,null,null,null,null,null,null,null,null,null,null,null,null,null,null,null,null,null,null,null,null,null,null,null,null,null,null,6,"Ayçiçeği Tohumu Kabukları",90,1.4,4,2.8,0.6,2.6,0,0.11,52,73,40,1.8,0.9,0,0.8,63,90,2.2000000000000002,3,0.2,null,0.19,200,null,null,3,0,0.2]
[null,null,null,null,null,null,null,null,null,null,null,null,null,null,null,null,null,null,null,null,null,null,null,null,null,null,null,null,null,null,null,null,null,null,null,null,null,null,null,null,null,null,null,null,null,null,null,null,null,null,null,null,null,null,null,null,null,null,null,null,null,null,null,null,null,null,null,null,null,null,null,null,null,null,null,null,7,"Balık Unu",90,2.7,66,46.2,56.4,39.6,5.5,3.15,1,12,74,3.3,1.7,1.1000000000000001,1.7,2,10,8,20,0.7,0.76,0.8,130,null,13,65,0,0.1]
[null,null,null,null,null,null,null,null,null,null,null,null,null,null,null,null,null,null,null,null,null,null,null,null,null,null,null,null,null,null,null,null,null,null,null,null,null,null,null,null,null,null,null,null,null,null,null,null,null,null,null,null,null,null,null,null,null,null,null,null,null,null,null,null,null,null,null,null,null,null,null,null,null,null,null,null,8,"Bira Mayası, Kuru",94,2.9,48,33.6,40.200000000000003,null,0.1,1.56,3,null,79,3.5,1.9,1.2,1.8,null,null,1,7,1.8,null,0.41,41,null,null,55,0,0.1]
[null,null,null,null,null,null,null,null,null,null,null,null,null,null,null,null,null,null,null,null,null,null,null,null,null,null,null,null,null,null,null,null,null,null,null,null,null,null,null,null,null,null,null,null,null,null,null,null,null,null,null,null,null,null,null,null,null,null,null,null,null,null,null,null,null,null,null,null,null,null,null,null,null,null,null,null,9,"Biüret ",99,0,248,173.6,220.2,0,0,0,0,0,0,0,0,0,0,0,0,0,0,0,0,0,0,null,null,15,0,0.01]
[null,null,null,null,null,null,null,null,null,null,null,null,null,null,null,null,null,null,null,null,null,null,null,null,null,null,null,null,null,null,null,null,null,null,null,null,null,null,null,null,null,null,null,null,null,null,null,null,null,null,null,null,null,null,null,null,null,null,null,null,null,null,null,null,null,null,null,null,null,null,null,null,null,null,null,null,10,"Kan Unu",93,3.29,89,59.2,84.5,null,0.52,0.26,null,null,91,4.04,2.2200000000000002,1.52,null,null,null,null,null,null,null,null,null,null,null,65,null,0.05]
[null,null,null,null,null,null,null,null,null,null,null,null,null,null,null,null,null,null,null,null,null,null,null,null,null,null,null,null,null,null,null,null,null,null,null,null,null,null,null,null,null,null,null,null,null,null,null,null,null,null,null,null,null,null,null,null,null,null,null,null,null,null,null,null,null,null,null,null,null,null,null,null,null,null,null,null,11,"Kanatlı Dışkısı, Kurutulmuş",89,1.4,28,19.600000000000001,22.2,6.2,10.199999999999999,2.8,13,35,38,1.7,0.9,0,0.8,15,0,2.1,33,2.2999999999999998,1.05,0.2,520,null,null,25,0,0.05]
[null,null,null,null,null,null,null,null,null,null,null,null,null,null,null,null,null,null,null,null,null,null,null,null,null,null,null,null,null,null,null,null,null,null,null,null,null,null,null,null,null,null,null,null,null,null,null,null,null,null,null,null,null,null,null,null,null,null,null,null,null,null,null,null,null,null,null,null,null,null,null,null,null,null,null,null,12,"Kanatlı Unu",93,2.9,62,43.4,52.8,30.4,4,2.25,2,null,79,3.5,1.9,1.2,1.8,null,null,14.5,17,0.5,0.57999999999999996,0.56000000000000005,129,null,null,60,0,0.05]
[null,null,null,null,null,null,null,null,null,null,null,null,null,null,null,null,null,null,null,null,null,null,null,null,null,null,null,null,null,null,null,null,null,null,null,null,null,null,null,null,null,null,null,null,null,null,null,null,null,null,null,null,null,null,null,null,null,null,null,null,null,null,null,null,null,null,null,null,null,null,null,null,null,null,null,null,13,"Kanola Küspesi, Solvent ",90,2.6,40,28,33,12,0.75,1.1599999999999999,12,29,71,3.1,1.6,1,1.6,20,23,4,8,1.3,7.0000000000000007E-2,0.78,68,null,null,12,0,0.2]
[null,null,null,null,null,null,null,null,null,null,null,null,null,null,null,null,null,null,null,null,null,null,null,null,null,null,null,null,null,null,null,null,null,null,null,null,null,null,null,null,null,null,null,null,null,null,null,null,null,null,null,null,null,null,null,null,null,null,null,null,null,null,null,null,null,null,null,null,null,null,null,null,null,null,null,null,14,"Karides Artıkları Unu",90,1.7,50,35,42,30,8.5,1.75,11,null,48,2.1,1.1000000000000001,0.2,1,null,null,5.5,25,null,1.1499999999999999,null,null,null,null,50,0,0.05]
[null,null,null,null,null,null,null,null,null,null,null,null,null,null,null,null,null,null,null,null,null,null,null,null,null,null,null,null,null,null,null,null,null,null,null,null,null,null,null,null,null,null,null,null,null,null,null,null,null,null,null,null,null,null,null,null,null,null,null,null,null,null,null,null,null,null,null,null,null,null,null,null,null,null,null,null,15,"Keten Tohumu Küspesi, Solvent ",91,2.7,39,27.3,32.1,14,0.43,0.93,10,25,76,3.4,1.8,1.1000000000000001,1.7,18,23,1.9,6,1.5,0.04,0.47,60,null,15,50,0,0.2]
[null,null,null,null,null,null,null,null,null,null,null,null,null,null,null,null,null,null,null,null,null,null,null,null,null,null,null,null,null,null,null,null,null,null,null,null,null,null,null,null,null,null,null,null,null,null,null,null,null,null,null,null,null,null,null,null,null,null,null,null,null,null,null,null,null,null,null,null,null,null,null,null,null,null,null,null,16,"Mısır Gluten Unu, % 41",91,3.1,46,32.200000000000003,38.4,26.7,0.13,0.55000000000000004,5,32,85,3.7,2.1,1.4,1.9,9,23,3.2,3,0.2,7.0000000000000007E-2,0.55000000000000004,35,2.3690000000000002,34,20,0,0.2]
[null,null,null,null,null,null,null,null,null,null,null,null,null,null,null,null,null,null,null,null,null,null,null,null,null,null,null,null,null,null,null,null,null,null,null,null,null,null,null,null,null,null,null,null,null,null,null,null,null,null,null,null,null,null,null,null,null,null,null,null,null,null,null,null,null,null,null,null,null,null,null,null,null,null,null,null,17,"Mısır Gluten Unu, % 60",91,3.2,67,46.9,57.3,40.200000000000003,0.06,0.54,4,11,89,3.9,2.2000000000000002,1.5,2.1,6,23,2.6,3,0.2,0.1,0.82,40,4.4740000000000002,26,25,0,0.2]
[null,null,null,null,null,null,null,null,null,null,null,null,null,null,null,null,null,null,null,null,null,null,null,null,null,null,null,null,null,null,null,null,null,null,null,null,null,null,null,null,null,null,null,null,null,null,null,null,null,null,null,null,null,null,null,null,null,null,null,null,null,null,null,null,null,null,null,null,null,null,null,null,null,null,null,null,18,"Mısır Gluten Yemi ",90,2.9,22,15.4,16.8,5.5,0.12,0.85,9,38,80,3.5,1.9,1.2,1.8,12,36,3.2,7,1.3,0.25,0.33,84,921.2,14,9,0,0.2]
[null,null,null,null,null,null,null,null,null,null,null,null,null,null,null,null,null,null,null,null,null,null,null,null,null,null,null,null,null,null,null,null,null,null,null,null,null,null,null,null,null,null,null,null,null,null,null,null,null,null,null,null,null,null,null,null,null,null,null,null,null,null,null,null,null,null,null,null,null,null,null,null,null,null,null,null,19,"Pamuk Tohumu Kapçığı ",90,1.6,5,3.5,1.5,2.2999999999999998,0.15,0.08,48,87,45,2,1,0.1,1,68,100,1.9,3,1.1000000000000001,0.02,0.05,10,null,null,9,0,0.2]
[null,null,null,null,null,null,null,null,null,null,null,null,null,null,null,null,null,null,null,null,null,null,null,null,null,null,null,null,null,null,null,null,null,null,null,null,null,null,null,null,null,null,null,null,null,null,null,null,null,null,null,null,null,null,null,null,null,null,null,null,null,null,null,null,null,null,null,null,null,null,null,null,null,null,null,null,20,"Pamuk Tohumu Küspesi, Pres, % 37",93,2.6,40.799999999999997,28.5,38.4,22,0.21,0.97,14.3,31,80,3.5,1.9,1.2,1.8,18,23,5,7,1.7,0.05,0.42,64,0,null,14.5,0,0.2]
[null,null,null,null,null,null,null,null,null,null,null,null,null,null,null,null,null,null,null,null,null,null,null,null,null,null,null,null,null,null,null,null,null,null,null,null,null,null,null,null,null,null,null,null,null,null,null,null,null,null,null,null,null,null,null,null,null,null,null,null,null,null,null,null,null,null,null,null,null,null,null,null,null,null,null,null,21,"Pamuk Tohumu Küspesi, Pres, % 41 ",92,2.9,46,32.200000000000003,38.4,23,0.21,1.19,13,31,80,3.5,1.9,1.2,1.8,18,23,5,7,1.7,0.05,0.42,64,0,null,15,0,0.2]
[null,null,null,null,null,null,null,null,null,null,null,null,null,null,null,null,null,null,null,null,null,null,null,null,null,null,null,null,null,null,null,null,null,null,null,null,null,null,null,null,null,null,null,null,null,null,null,null,null,null,null,null,null,null,null,null,null,null,null,null,null,null,null,null,null,null,null,null,null,null,null,null,null,null,null,null,22,"PAMUK TOHUMU KÜSPESİ, SOLVENT, % 25",91,2.2999999999999998,27.6,19.3,40.200000000000003,20.2,0.22,1.25,13,25,77,3.4,1.8,1.2,1.7,17,23,1.8,7,1.7,0.05,0.44,66,null,null,13,0,0.2]
[null,null,null,null,null,null,null,null,null,null,null,null,null,null,null,null,null,null,null,null,null,null,null,null,null,null,null,null,null,null,null,null,null,null,null,null,null,null,null,null,null,null,null,null,null,null,null,null,null,null,null,null,null,null,null,null,null,null,null,null,null,null,null,null,null,null,null,null,null,null,null,null,null,null,null,null,23,"PAMUK TOHUMU KÜSPESİ, SOLVENT, % 28",91,2.4,30.9,21.6,40.200000000000003,20.2,0.22,1.25,13,25,77,3.4,1.8,1.2,1.7,17,23,1.8,7,1.7,0.05,0.44,66,null,null,13,0,0.2]
[null,null,null,null,null,null,null,null,null,null,null,null,null,null,null,null,null,null,null,null,null,null,null,null,null,null,null,null,null,null,null,null,null,null,null,null,null,null,null,null,null,null,null,null,null,null,null,null,null,null,null,null,null,null,null,null,null,null,null,null,null,null,null,null,null,null,null,null,null,null,null,null,null,null,null,null,24,"PAMUK TOHUMU KÜSPESİ, SOLVENT, % 32",91,2.5,35.4,24.8,40.200000000000003,20.2,0.22,1.25,13,25,77,3.4,1.8,1.2,1.7,17,23,1.8,7,1.7,0.05,0.44,66,null,null,14.5,0,0.2]
[null,null,null,null,null,null,null,null,null,null,null,null,null,null,null,null,null,null,null,null,null,null,null,null,null,null,null,null,null,null,null,null,null,null,null,null,null,null,null,null,null,null,null,null,null,null,null,null,null,null,null,null,null,null,null,null,null,null,null,null,null,null,null,null,null,null,null,null,null,null,null,null,null,null,null,null,25,"PAMUK TOHUMU KÜSPESİ, SOLVENT, % 36",91,2.6,39.799999999999997,27.9,40.200000000000003,20.2,0.22,1.25,13,25,77,3.4,1.8,1.2,1.7,17,23,1.8,7,1.7,0.05,0.44,66,null,null,14.5,0,0.2]
[null,null,null,null,null,null,null,null,null,null,null,null,null,null,null,null,null,null,null,null,null,null,null,null,null,null,null,null,null,null,null,null,null,null,null,null,null,null,null,null,null,null,null,null,null,null,null,null,null,null,null,null,null,null,null,null,null,null,null,null,null,null,null,null,null,null,null,null,null,null,null,null,null,null,null,null,26,"Pamuk Tohumu Küspesi, Solvent, % 41 ",90,2.8,48,33.6,40.200000000000003,20.2,0.22,1.25,13,25,77,3.4,1.8,1.2,1.7,17,23,1.8,7,1.7,0.05,0.44,66,null,null,45,0,0.2]
[null,null,null,null,null,null,null,null,null,null,null,null,null,null,null,null,null,null,null,null,null,null,null,null,null,null,null,null,null,null,null,null,null,null,null,null,null,null,null,null,null,null,null,null,null,null,null,null,null,null,null,null,null,null,null,null,null,null,null,null,null,null,null,null,null,null,null,null,null,null,null,null,null,null,null,null,27,"Pamuk Tohumu, Ekstrude",92,3.1,26,18.2,20.399999999999999,13,0.17,0.68,32,53,87,3.8,2.2000000000000002,1.5,2,44,33,9.5,5,1.3,null,0.24,38,null,null,85,0,0.2]
[null,null,null,null,null,null,null,null,null,null,null,null,null,null,null,null,null,null,null,null,null,null,null,null,null,null,null,null,null,null,null,null,null,null,null,null,null,null,null,null,null,null,null,null,null,null,null,null,null,null,null,null,null,null,null,null,null,null,null,null,null,null,null,null,null,null,null,null,null,null,null,null,null,null,null,null,28,"Pamuk Tohumu, Linti Alınmış",90,3.4,24,16.8,18.600000000000001,9.4,0.13,0.55000000000000004,20,40,95,4.2,2.4,1.6,2.2000000000000002,29,100,22.2,4,1.2,null,0.24,36,null,null,85,0,0.2]
[null,null,null,null,null,null,null,null,null,null,null,null,null,null,null,null,null,null,null,null,null,null,null,null,null,null,null,null,null,null,null,null,null,null,null,null,null,null,null,null,null,null,null,null,null,null,null,null,null,null,null,null,null,null,null,null,null,null,null,null,null,null,null,null,null,null,null,null,null,null,null,null,null,null,null,null,29,"Peyniraltı Suyu Tozu",94,3,14,9.8000000000000007,9.6,2.1,1,0.9,0,0,82,3.6,2,1.3,1.9,0,0,1,9,1.4,1.2,0.92,10,null,null,70,0,0.05]
[null,null,null,null,null,null,null,null,null,null,null,null,null,null,null,null,null,null,null,null,null,null,null,null,null,null,null,null,null,null,null,null,null,null,null,null,null,null,null,null,null,null,null,null,null,null,null,null,null,null,null,null,null,null,null,null,null,null,null,null,null,null,null,null,null,null,null,null,null,null,null,null,null,null,null,null,30,"Soya Küspesi, Solvent, % 44 ",91,3,49,34.299999999999997,41.1,17.2,0.38,0.71,6,15,84,3.7,2,1.3,1.9,10,23,1.6,7,2.2999999999999998,7.0000000000000007E-2,0.45,62,0,3,17,0,0.2]
[null,null,null,null,null,null,null,null,null,null,null,null,null,null,null,null,null,null,null,null,null,null,null,null,null,null,null,null,null,null,null,null,null,null,null,null,null,null,null,null,null,null,null,null,null,null,null,null,null,null,null,null,null,null,null,null,null,null,null,null,null,null,null,null,null,null,null,null,null,null,null,null,null,null,null,null,31,"Soya Küspesi, Solvent, % 49 ",91,3.1,54,37.799999999999997,45.6,19.399999999999999,0.28000000000000003,0.71,3,9,87,3.8,2.1,1.4,2,6,23,1.2,6,2.2000000000000002,0.08,0.49,61,null,3,20,0,0.2]
[null,null,null,null,null,null,null,null,null,null,null,null,null,null,null,null,null,null,null,null,null,null,null,null,null,null,null,null,null,null,null,null,null,null,null,null,null,null,null,null,null,null,null,null,null,null,null,null,null,null,null,null,null,null,null,null,null,null,null,null,null,null,null,null,null,null,null,null,null,null,null,null,null,null,null,null,32,"Süt Tozu, Yağsız",94,3.1,36,25.2,29.4,0,1.36,1.0900000000000001,0,0,87,3.8,2.1,1.4,2,0,0,1,8.4,1.7,0.96,0.34,41,3.69,null,70,0,0.05]
[null,null,null,null,null,null,null,null,null,null,null,null,null,null,null,null,null,null,null,null,null,null,null,null,null,null,null,null,null,null,null,null,null,null,null,null,null,null,null,null,null,null,null,null,null,null,null,null,null,null,null,null,null,null,null,null,null,null,null,null,null,null,null,null,null,null,null,null,null,null,null,null,null,null,null,null,33,"Tüy Unu, Hidrolize ",92,2.5,86,60.2,74.400000000000006,62.8,0.6,0.62,2,44,69,3,1.6,0.9,1.5,16,23,6.5,4,0.2,0.3,1.85,95,null,null,55,0,0.02]
[null,null,null,null,null,null,null,null,null,null,null,null,null,null,null,null,null,null,null,null,null,null,null,null,null,null,null,null,null,null,null,null,null,null,null,null,null,null,null,null,null,null,null,null,null,null,null,null,null,null,null,null,null,null,null,null,null,null,null,null,null,null,null,null,null,null,null,null,null,null,null,null,null,null,null,null,34,"Üre, % 46N",99,0,288,201.6,256.2,0,0,0,0,0,0,0,0,0,0,0,0,0,0,0,0,0,0,null,null,17,0,0.01]
[null,null,null,null,null,null,null,null,null,null,null,null,null,null,null,null,null,null,null,null,null,null,null,null,null,null,null,null,null,null,null,null,null,null,null,null,null,null,null,null,null,null,null,null,null,null,null,null,null,null,null,null,null,null,null,null,null,null,null,null,null,null,null,null,null,null,null,null,null,null,null,null,null,null,null,null,35,"Yer Fıstığı Küspesi, Solvent ",91,2.8,50,35,42,13.5,0.24,0.57999999999999996,8,27,77,3.4,1.8,1.2,1.7,15,23,3.6,6,1,0.03,0.3,38,null,null,12,0,0.2]
[null,null,null,null,null,null,null,null,null,null,null,null,null,null,null,null,null,null,null,null,null,null,null,null,null,null,null,null,null,null,null,null,null,null,null,null,null,null,null,null,null,null,null,null,null,null,null,null,null,null,null,null,null,null,null,null,null,null,null,null,null,null,null,null,null,null,null,null,null,null,null,null,null,null,null,null,36,"Yonca Yaprağı Unu",89,2.5,28,19.600000000000001,22.2,4.2,2.88,0.34,15,34,69,3,1.6,0.9,1.5,25,35,2.7,15,2.2000000000000002,null,0.32,39,17.600000000000001,null,15,0,0.2]
[null,null,null,null,null,null,null,null,null,null,null,null,null,null,null,null,null,null,null,null,null,null,null,null,null,null,null,null,null,null,null,null,null,null,null,null,null,null,null,null,null,null,null,null,null,null,null,null,null,null,null,null,null,null,null,null,null,null,null,null,null,null,null,null,null,null,null,null,null,null,null,null,null,null,null,null,37]
[null,null,null,null,null,null,null,null,null,null,null,null,null,null,null,null,null,null,null,null,null,null,null,null,null,null,null,null,null,null,null,null,null,null,null,null,null,null,null,null,null,null,null,null,null,null,null,null,null,null,null,null,null,null,null,null,null,null,null,null,null,null,null,null,null,null,null,null,null,null,null,null,null,null,null,null,38]
[null,null,null,null,null,null,null,null,null,null,null,null,null,null,null,null,null,null,null,null,null,null,null,null,null,null,null,null,null,null,null,null,null,null,null,null,null,null,null,null,null,null,null,null,null,null,null,null,null,null,null,null,null,null,null,null,null,null,null,null,null,null,null,null,null,null,null,null,null,null,null,null,null,null,null,null,39]
[null,null,null,null,null,null,null,null,null,null,null,null,null,null,null,null,null,null,null,null,null,null,null,null,null,null,null,null,null,null,null,null,null,null,null,null,null,null,null,null,null,null,null,null,null,null,null,null,null,null,null,null,null,null,null,null,null,null,null,null,null,null,null,null,null,null,null,null,null,null,null,null,null,null,null,null,40]
[null,null,null,null,null,null,null,null,null,null,null,null,null,null,null,null,null,null,null,null,null,null,null,null,null,null,null,null,null,null,null,null,null,null,null,null,null,null,null,null,null,null,null,null,null,null,null,null,null,null,null,null,null,null,null,null,null,null,null,null,null,null,null,null,null,null,null,null,null,null,null,null,null,null,null,null,41]
[null,null,null,null,null,null,null,null,null,null,null,null,null,null,null,null,null,null,null,null,null,null,null,null,null,null,null,null,null,null,null,null,null,null,null,null,null,null,null,null,null,null,null,null,null,null,null,null,null,null,null,null,null,null,null,null,null,null,null,null,null,null,null,null,null,null,null,null,null,null,null,null,null,null,null,null,42]
[null,null,null,null,null,null,null,null,null,null,null,null,null,null,null,null,null,null,null,null,null,null,null,null,null,null,null,null,null,null,null,null,null,null,null,null,null,null,null,null,null,null,null,null,null,null,null,null,null,null,null,null,null,null,null,null,null,null,null,null,null,null,null,null,null,null,null,null,null,null,null,null,null,null,null,null,43]
[null,null,null,null,null,null,null,null,null,null,null,null,null,null,null,null,null,null,null,null,null,null,null,null,null,null,null,null,null,null,null,null,null,null,null,null,null,null,null,null,null,null,null,null,null,null,null,null,null,null,null,null,null,null,null,null,null,null,null,null,null,null,null,null,null,null,null,null,null,null,null,null,null,null,null,null,44]
[null,null,null,null,null,null,null,null,null,null,null,null,null,null,null,null,null,null,null,null,null,null,null,null,null,null,null,null,null,null,null,null,null,null,null,null,null,null,null,null,null,null,null,null,null,null,null,null,null,null,null,null,null,null,null,null,null,null,null,null,null,null,null,null,null,null,null,null,null,null,null,null,null,null,null,null,45]
[null,null,null,null,null,null,null,null,null,null,null,null,null,null,null,null,null,null,null,null,null,null,null,null,null,null,null,null,null,null,null,null,null,null,null,null,null,null,null,null,null,null,null,null,null,null,null,null,null,null,null,null,null,null,null,null,null,null,null,null,null,null,null,null,null,null,null,null,null,null,null,null,null,null,null,null,46]
[null,null,null,null,null,null,null,null,null,null,null,null,null,null,null,null,null,null,null,null,null,null,null,null,null,null,null,null,null,null,null,null,null,null,null,null,null,null,null,null,null,null,null,null,null,null,null,null,null,null,null,null,null,null,null,null,null,null,null,null,null,null,null,null,null,null,null,null,null,null,null,null,null,null,null,null,47]
[null,null,null,null,null,null,null,null,null,null,null,null,null,null,null,null,null,null,null,null,null,null,null,null,null,null,null,null,null,null,null,null,null,null,null,null,null,null,null,null,null,null,null,null,null,null,null,null,null,null,null,null,null,null,null,null,null,null,null,null,null,null,null,null,null,null,null,null,null,null,null,null,null,null,null,null,48]
[null,null,null,null,null,null,null,null,null,null,null,null,null,null,null,null,null,null,null,null,null,null,null,null,null,null,null,null,null,null,null,null,null,null,null,null,null,null,null,null,null,null,null,null,null,null,null,null,null,null,null,null,null,null,null,null,null,null,null,null,null,null,null,null,null,null,null,null,null,null,null,null,null,null,null,null,49]
[null,null,null,null,null,null,null,null,null,null,null,null,null,null,null,null,null,null,null,null,null,null,null,null,null,null,null,null,null,null,null,null,null,null,null,null,null,null,null,null,null,null,null,null,null,null,null,null,null,null,null,null,null,null,null,null,null,null,null,null,null,null,null,null,null,null,null,null,null,null,null,null,null,null,null,null,50]
[null,null,null,null,null,null,null,null,null,null,null,null,null,null,null,null,null,null,null,null,null,null,null,null,null,null,null,null,null,null,null,null,null,null,null,null,null,null,null,null,null,null,null,null,null,null,null,null,null,null,null,null,null,null,null,null,null,null,null,null,null,null,null,null,null,null,null,null,null,null,null,null,null,null,null,null,51]
[null,null,null,null,null,null,null,null,null,null,null,null,null,null,null,null,null,null,null,null,null,null,null,null,null,null,null,null,null,null,null,null,null,null,null,null,null,null,null,null,null,null,null,null,null,null,null,null,null,null,null,null,null,null,null,null,null,null,null,null,null,null,null,null,null,null,null,null,null,null,null,null,null,null,null,null,52]
[null,null,null,null,null,null,null,null,null,null,null,null,null,null,null,null,null,null,null,null,null,null,null,null,null,null,null,null,null,null,null,null,null,null,null,null,null,null,null,null,null,null,null,null,null,null,null,null,null,null,null,null,null,null,null,null,null,null,null,null,null,null,null,null,null,null,null,null,null,null,null,null,null,null,null,null,53]
[null,null,null,null,null,null,null,null,null,null,null,null,null,null,null,null,null,null,null,null,null,null,null,null,null,null,null,null,null,null,null,null,null,null,null,null,null,null,null,null,null,null,null,null,null,null,null,null,null,null,null,null,null,null,null,null,null,null,null,null,null,null,null,null,null,null,null,null,null,null,null,null,null,null,null,null,54]
[null,null,null,null,null,null,null,null,null,null,null,null,null,null,null,null,null,null,null,null,null,null,null,null,null,null,null,null,null,null,null,null,null,null,null,null,null,null,null,null,null,null,null,null,null,null,null,null,null,null,null,null,null,null,null,null,null,null,null,null,null,null,null,null,null,null,null,null,null,null,null,null,null,null,null,null,55]
[null,null,null,null,null,null,null,null,null,null,null,null,null,null,null,null,null,null,null,null,null,null,null,null,null,null,null,null,null,null,null,null,null,null,null,null,null,null,null,null,null,null,null,null,null,null,null,null,null,null,null,null,null,null,null,null,null,null,null,null,null,null,null,null,null,null,null,null,null,null,null,null,null,null,null,null,56]
[null,null,null,null,null,null,null,null,null,null,null,null,null,null,null,null,null,null,null,null,null,null,null,null,null,null,null,null,null,null,null,null,null,null,null,null,null,null,null,null,null,null,null,null,null,null,null,null,null,null,null,null,null,null,null,null,null,null,null,null,null,null,null,null,null,null,null,null,null,null,null,null,null,null,null,null,57]
[null,null,null,null,null,null,null,null,null,null,null,null,null,null,null,null,null,null,null,null,null,null,null,null,null,null,null,null,null,null,null,null,null,null,null,null,null,null,null,null,null,null,null,null,null,null,null,null,null,null,null,null,null,null,null,null,null,null,null,null,null,null,null,null,null,null,null,null,null,null,null,null,null,null,null,null,58]
[null,null,null,null,null,null,null,null,null,null,null,null,null,null,null,null,null,null,null,null,null,null,null,null,null,null,null,null,null,null,null,null,null,null,null,null,null,null,null,null,null,null,null,null,null,null,null,null,null,null,null,null,null,null,null,null,null,null,null,null,null,null,null,null,null,null,null,null,null,null,null,null,null,null,null,null,59]
[null,null,null,null,null,null,null,null,null,null,null,null,null,null,null,null,null,null,null,null,null,null,null,null,null,null,null,null,null,null,null,null,null,null,null,null,null,null,null,null,null,null,null,null,null,null,null,null,null,null,null,null,null,null,null,null,null,null,null,null,null,null,null,null,null,null,null,null,null,null,null,null,null,null,null,null,60]
[null,null,null,null,null,null,null,null,null,null,null,null,null,null,null,null,null,null,null,null,null,null,null,null,null,null,null,null,null,null,null,null,null,null,null,null,null,null,null,null,null,null,null,null,null,null,null,null,null,null,null,null,null,null,null,null,null,null,null,null,null,null,null,null,null,null,null,null,null,null,null,null,null,null,null,null,61]
[null,null,null,null,null,null,null,null,null,null,null,null,null,null,null,null,null,null,null,null,null,null,null,null,null,null,null,null,null,null,null,null,null,null,null,null,null,null,null,null,null,null,null,null,null,null,null,null,null,null,null,null,null,null,null,null,null,null,null,null,null,null,null,null,null,null,null,null,null,null,null,null,null,null,null,null,62]
[null,null,null,null,null,null,null,null,null,null,null,null,null,null,null,null,null,null,null,null,null,null,null,null,null,null,null,null,null,null,null,null,null,null,null,null,null,null,null,null,null,null,null,null,null,null,null,null,null,null,null,null,null,null,null,null,null,null,null,null,null,null,null,null,null,null,null,null,null,null,null,null,null,null,null,null,63]
[null,null,null,null,null,null,null,null,null,null,null,null,null,null,null,null,null,null,null,null,null,null,null,null,null,null,null,null,null,null,null,null,null,null,null,null,null,null,null,null,null,null,null,null,null,null,null,null,null,null,null,null,null,null,null,null,null,null,null,null,null,null,null,null,null,null,null,null,null,null,null,null,null,null,null,null,64]
[null,null,null,null,null,null,null,null,null,null,null,null,null,null,null,null,null,null,null,null,null,null,null,null,null,null,null,null,null,null,null,null,null,null,null,null,null,null,null,null,null,null,null,null,null,null,null,null,null,null,null,null,null,null,null,null,null,null,null,null,null,null,null,null,null,null,null,null,null,null,null,null,null,null,null,null,65]
[null,null,null,null,null,null,null,null,null,null,null,null,null,null,null,null,null,null,null,null,null,null,null,null,null,null,null,null,null,null,null,null,null,null,null,null,null,null,null,null,null,null,null,null,null,null,null,null,null,null,null,null,null,null,null,null,null,null,null,null,null,null,null,null,null,null,null,null,null,null,null,null,null,null,null,null,66]
[null,null,null,null,null,null,null,null,null,null,null,null,null,null,null,null,null,null,null,null,null,null,null,null,null,null,null,null,null,null,null,null,null,null,null,null,null,null,null,null,null,null,null,null,null,null,null,null,null,null,null,null,null,null,null,null,null,null,null,null,null,null,null,null,null,null,null,null,null,null,null,null,null,null,null,null,67]
[null,null,null,null,null,null,null,null,null,null,null,null,null,null,null,null,null,null,null,null,null,null,null,null,null,null,null,null,null,null,null,null,null,null,null,null,null,null,null,null,null,null,null,null,null,null,null,null,null,null,null,null,null,null,null,null,null,null,null,null,null,null,null,null,null,null,null,null,null,null,null,null,null,null,null,null,68]
[null,null,null,null,null,null,null,null,null,null,null,null,null,null,null,null,null,null,null,null,null,null,null,null,null,null,null,null,null,null,null,null,null,null,null,null,null,null,null,null,null,null,null,null,null,null,null,null,null,null,null,null,null,null,null,null,null,null,null,null,null,null,null,null,null,null,null,null,null,null,null,null,null,null,null,null,69]
[null,null,null,null,null,null,null,null,null,null,null,null,null,null,null,null,null,null,null,null,null,null,null,null,null,null,null,null,null,null,null,null,null,null,null,null,null,null,null,null,null,null,null,null,null,null,null,null,null,null,null,null,null,null,null,null,null,null,null,null,null,null,null,null,null,null,null,null,null,null,null,null,null,null,null,null,70]
[null,null,null,null,null,null,null,null,null,null,null,null,null,null,null,null,null,null,null,null,null,null,null,null,null,null,null,null,null,null,null,null,null,null,null,null,null,null,null,null,null,null,null,null,null,null,null,null,null,null,null,null,null,null,null,null,null,null,null,null,null,null,null,null,null,null,null,null,null,null,null,null,null,null,null,null,71]
[null,null,null,null,null,null,null,null,null,null,null,null,null,null,null,null,null,null,null,null,null,null,null,null,null,null,null,null,null,null,null,null,null,null,null,null,null,null,null,null,null,null,null,null,null,null,null,null,null,null,null,null,null,null,null,null,null,null,null,null,null,null,null,null,null,null,null,null,null,null,null,null,null,null,null,null,72]
[null,null,null,null,null,null,null,null,null,null,null,null,null,null,null,null,null,null,null,null,null,null,null,null,null,null,null,null,null,null,null,null,null,null,null,null,null,null,null,null,null,null,null,null,null,null,null,null,null,null,null,null,null,null,null,null,null,null,null,null,null,null,null,null,null,null,null,null,null,null,null,null,null,null,null,null,73]
[null,null,null,null,null,null,null,null,null,null,null,null,null,null,null,null,null,null,null,null,null,null,null,null,null,null,null,null,null,null,null,null,null,null,null,null,null,null,null,null,null,null,null,null,null,null,null,null,null,null,null,null,null,null,null,null,null,null,null,null,null,null,null,null,null,null,null,null,null,null,null,null,null,null,null,null,74]
[null,null,null,null,null,null,null,null,null,null,null,null,null,null,null,null,null,null,null,null,null,null,null,null,null,null,null,null,null,null,null,null,null,null,null,null,null,null,null,null,null,null,null,null,null,null,null,null,null,null,null,null,null,null,null,null,null,null,null,null,null,null,null,null,null,null,null,null,null,null,null,null,null,null,null,null,75]
[null,null,null,null,null,null,null,null,null,null,null,null,null,null,null,null,null,null,null,null,null,null,null,null,null,null,null,null,null,null,null,null,null,null,null,null,null,null,null,null,null,null,null,null,null,null,null,null,null,null,null,null,null,null,null,null,null,null,null,null,null,null,null,null,null,null,null,null,null,null,null,null,null,null,null,null,null,"VİTAMİN-MİNERAL ve KATKI MADDELERİ","KM,%","ME, Mcal/kg","HP,%","MP,%","DIP,%","RUP,%","Ca,%","P,%","HS,%","NDF,%","TSBM,%","SE, Mcal/kg","NEyp, Mcal/kg","NEb, Mcal/kg","NEl, Mcal/kg","ADF,%","eNDF,%","HY,%","HK,%","K,%","Cl,%","S,%","Zn,ppm","VitA, RE/kg","VitE,ppm","Fiyat,TL","En az","En çok"]
[null,null,null,null,null,null,null,null,null,null,null,null,null,null,null,null,null,null,null,null,null,null,null,null,null,null,null,null,null,null,null,null,null,null,null,null,null,null,null,null,null,null,null,null,null,null,null,null,null,null,null,null,null,null,null,null,null,null,null,null,null,null,null,null,null,null,null,null,null,null,null,null,null,null,null,null,1,"Amonyum Klorid ",99,0,163,114.1,143.69999999999999,0,0,0,0,0,0,0,0,0,0,0,0,0,0,0,66,0,0,null,null,9,0,1.4999999999999999E-2]
[null,null,null,null,null,null,null,null,null,null,null,null,null,null,null,null,null,null,null,null,null,null,null,null,null,null,null,null,null,null,null,null,null,null,null,null,null,null,null,null,null,null,null,null,null,null,null,null,null,null,null,null,null,null,null,null,null,null,null,null,null,null,null,null,null,null,null,null,null,null,null,null,null,null,null,null,2,"Amonyum Sülfat ",99,0,132,92.4,115.8,0,null,null,0,0,0,0,0,0,0,0,0,0,0,null,null,24.15,null,null,null,9,0,1.4999999999999999E-2]
[null,null,null,null,null,null,null,null,null,null,null,null,null,null,null,null,null,null,null,null,null,null,null,null,null,null,null,null,null,null,null,null,null,null,null,null,null,null,null,null,null,null,null,null,null,null,null,null,null,null,null,null,null,null,null,null,null,null,null,null,null,null,null,null,null,null,null,null,null,null,null,null,null,null,null,null,3,"Diamonyum Fosfat ",98,0,115,80.5,100.5,0,0.52,20.41,0,0,0,0,0,0,0,0,0,0,35,0,null,2.16,null,null,null,80,0,0.02]
[null,null,null,null,null,null,null,null,null,null,null,null,null,null,null,null,null,null,null,null,null,null,null,null,null,null,null,null,null,null,null,null,null,null,null,null,null,null,null,null,null,null,null,null,null,null,null,null,null,null,null,null,null,null,null,null,null,null,null,null,null,null,null,null,null,null,null,null,null,null,null,null,null,null,null,null,4,"Dikalsiyum Fosfat ",96,0,0,0,3,null,22,18.649999999999999,0,0,0,0,0,0,0,0,0,0,94,0.1,null,1,70,null,null,35,0,7.0000000000000007E-2]
[null,null,null,null,null,null,null,null,null,null,null,null,null,null,null,null,null,null,null,null,null,null,null,null,null,null,null,null,null,null,null,null,null,null,null,null,null,null,null,null,null,null,null,null,null,null,null,null,null,null,null,null,null,null,null,null,null,null,null,null,null,null,null,null,null,null,null,null,null,null,null,null,null,null,null,null,5,"Floru Alınmış Fosfat ",99,0,0,0,3,null,32.6,18.07,0,0,0,0,0,0,0,0,0,0,95,1,null,null,100,null,null,75,0,0.05]
[null,null,null,null,null,null,null,null,null,null,null,null,null,null,null,null,null,null,null,null,null,null,null,null,null,null,null,null,null,null,null,null,null,null,null,null,null,null,null,null,null,null,null,null,null,null,null,null,null,null,null,null,null,null,null,null,null,null,null,null,null,null,null,null,null,null,null,null,null,null,null,null,null,null,null,null,6,"Kalsiyum Karbonat ",99,0,0,0,3,null,38.5,0.04,0,0,0,0,0,0,0,0,0,0,99,0.1,null,0,0,null,null,2,0,0.01]
[null,null,null,null,null,null,null,null,null,null,null,null,null,null,null,null,null,null,null,null,null,null,null,null,null,null,null,null,null,null,null,null,null,null,null,null,null,null,null,null,null,null,null,null,null,null,null,null,null,null,null,null,null,null,null,null,null,null,null,null,null,null,null,null,null,null,null,null,null,null,null,null,null,null,null,null,7,"Kemik Unu, İstimlenmiş, Domuz/Kanatlı ",95,0.6,13,9.1,8.6999999999999993,null,27,12.74,1,0,16,0.7,0.6,0,0.2,0,0,11.6,77,0.2,null,2.5,290,null,null,75,0,0.05]
[null,null,null,null,null,null,null,null,null,null,null,null,null,null,null,null,null,null,null,null,null,null,null,null,null,null,null,null,null,null,null,null,null,null,null,null,null,null,null,null,null,null,null,null,null,null,null,null,null,null,null,null,null,null,null,null,null,null,null,null,null,null,null,null,null,null,null,null,null,null,null,null,null,null,null,null,8,"Kireç Taşı",98,0,0,0,3,0,34,0.02,0,0,0,0,0,0,0,0,0,0,98,null,null,0.03,null,null,null,2,0,0.02]
[null,null,null,null,null,null,null,null,null,null,null,null,null,null,null,null,null,null,null,null,null,null,null,null,null,null,null,null,null,null,null,null,null,null,null,null,null,null,null,null,null,null,null,null,null,null,null,null,null,null,null,null,null,null,null,null,null,null,null,null,null,null,null,null,null,null,null,null,null,null,null,null,null,null,null,null,9,"Kireç Taşı, Dolomitik",99,0,0,0,3,0,22.3,0.04,0,0,0,0,0,0,0,0,0,0,98,0.4,null,null,null,null,null,2,0,0.02]
[null,null,null,null,null,null,null,null,null,null,null,null,null,null,null,null,null,null,null,null,null,null,null,null,null,null,null,null,null,null,null,null,null,null,null,null,null,null,null,null,null,null,null,null,null,null,null,null,null,null,null,null,null,null,null,null,null,null,null,null,null,null,null,null,null,null,null,null,null,null,null,null,null,null,null,null,10,"Kuraçao Fosfat ",99,0,0,0,3,null,34,15,0,0,0,0,0,0,0,0,0,0,95,null,null,null,null,null,null,75,0,0.01]
[null,null,null,null,null,null,null,null,null,null,null,null,null,null,null,null,null,null,null,null,null,null,null,null,null,null,null,null,null,null,null,null,null,null,null,null,null,null,null,null,null,null,null,null,null,null,null,null,null,null,null,null,null,null,null,null,null,null,null,null,null,null,null,null,null,null,null,null,null,null,null,null,null,null,null,null,11,"Mermer Tozu",98,0,0,0,0,null,37,0,0,0,0,0,0,0,0,0,0,0,98,0,null,0,0,null,null,2,0,0.1]
[null,null,null,null,null,null,null,null,null,null,null,null,null,null,null,null,null,null,null,null,null,null,null,null,null,null,null,null,null,null,null,null,null,null,null,null,null,null,null,null,null,null,null,null,null,null,null,null,null,null,null,null,null,null,null,null,null,null,null,null,null,null,null,null,null,null,null,null,null,null,null,null,null,null,null,null,12,"Monoamonyum Fosfat ",98,0,70,49,60,0,0.3,24.7,0,0,0,0,0,0,0,0,0,0,24,0,null,1.42,81,null,null,9,0,0.01]
[null,null,null,null,null,null,null,null,null,null,null,null,null,null,null,null,null,null,null,null,null,null,null,null,null,null,null,null,null,null,null,null,null,null,null,null,null,null,null,null,null,null,null,null,null,null,null,null,null,null,null,null,null,null,null,null,null,null,null,null,null,null,null,null,null,null,null,null,null,null,null,null,null,null,null,null,13,"Mono-Dikalsiyum Fosfat ",97,0,0,0,3,null,16.7,21.1,0,0,0,0,0,0,0,0,0,0,94,0.1,null,1.2,70,null,null,30,0,0.01]
[null,null,null,null,null,null,null,null,null,null,null,null,null,null,null,null,null,null,null,null,null,null,null,null,null,null,null,null,null,null,null,null,null,null,null,null,null,null,null,null,null,null,null,null,null,null,null,null,null,null,null,null,null,null,null,null,null,null,null,null,null,null,null,null,null,null,null,null,null,null,null,null,null,null,null,null,14,"Sodyum Tripolifosfat ",96,0,0,0,3,0,0,25.98,0,0,0,0,0,0,0,0,0,0,96,0,null,0,null,null,null,13.5,0,0.01]
[null,null,null,null,null,null,null,null,null,null,null,null,null,null,null,null,null,null,null,null,null,null,null,null,null,null,null,null,null,null,null,null,null,null,null,null,null,null,null,null,null,null,null,null,null,null,null,null,null,null,null,null,null,null,null,null,null,null,null,null,null,null,null,null,null,null,null,null,null,null,null,null,null,null,null,null,15,"Tuz",100,null,null,null,null,null,null,null,null,null,null,null,null,null,null,null,null,null,null,null,null,null,null,null,null,1.5,1E-3,5.0000000000000001E-3]
[null,null,null,null,null,null,null,null,null,null,null,null,null,null,null,null,null,null,null,null,null,null,null,null,null,null,null,null,null,null,null,null,null,null,null,null,null,null,null,null,null,null,null,null,null,null,null,null,null,null,null,null,null,null,null,null,null,null,null,null,null,null,null,null,null,null,null,null,null,null,null,null,null,null,null,null,16,"Vitamin-Mineral Karması",100,0,0,0,0,0,0,0,0,0,0,0,0,0,0,0,0,0,0,0,0,0,0,0,0,25,1E-3,4.0000000000000001E-3]
[null,null,null,null,null,null,null,null,null,null,null,null,null,null,null,null,null,null,null,null,null,null,null,null,null,null,null,null,null,null,null,null,null,null,null,null,null,null,null,null,null,null,null,null,null,null,null,null,null,null,null,null,null,null,null,null,null,null,null,null,null,null,null,null,null,null,null,null,null,null,null,null,null,null,null,null,17]
[null,null,null,null,null,null,null,null,null,null,null,null,null,null,null,null,null,null,null,null,null,null,null,null,null,null,null,null,null,null,null,null,null,null,null,null,null,null,null,null,null,null,null,null,null,null,null,null,null,null,null,null,null,null,null,null,null,null,null,null,null,null,null,null,null,null,null,null,null,null,null,null,null,null,null,null,18]
[null,null,null,null,null,null,null,null,null,null,null,null,null,null,null,null,null,null,null,null,null,null,null,null,null,null,null,null,null,null,null,null,null,null,null,null,null,null,null,null,null,null,null,null,null,null,null,null,null,null,null,null,null,null,null,null,null,null,null,null,null,null,null,null,null,null,null,null,null,null,null,null,null,null,null,null,19]
[null,null,null,null,null,null,null,null,null,null,null,null,null,null,null,null,null,null,null,null,null,null,null,null,null,null,null,null,null,null,null,null,null,null,null,null,null,null,null,null,null,null,null,null,null,null,null,null,null,null,null,null,null,null,null,null,null,null,null,null,null,null,null,null,null,null,null,null,null,null,null,null,null,null,null,null,20]
[null,null,null,null,null,null,null,null,null,null,null,null,null,null,null,null,null,null,null,null,null,null,null,null,null,null,null,null,null,null,null,null,null,null,null,null,null,null,null,null,null,null,null,null,null,null,null,null,null,null,null,null,null,null,null,null,null,null,null,null,null,null,null,null,null,null,null,null,null,null,null,null,null,null,null,null,21]
[null,null,null,null,null,null,null,null,null,null,null,null,null,null,null,null,null,null,null,null,null,null,null,null,null,null,null,null,null,null,null,null,null,null,null,null,null,null,null,null,null,null,null,null,null,null,null,null,null,null,null,null,null,null,null,null,null,null,null,null,null,null,null,null,null,null,null,null,null,null,null,null,null,null,null,null,22]
[null,null,null,null,null,null,null,null,null,null,null,null,null,null,null,null,null,null,null,null,null,null,null,null,null,null,null,null,null,null,null,null,null,null,null,null,null,null,null,null,null,null,null,null,null,null,null,null,null,null,null,null,null,null,null,null,null,null,null,null,null,null,null,null,null,null,null,null,null,null,null,null,null,null,null,null,23]
[null,null,null,null,null,null,null,null,null,null,null,null,null,null,null,null,null,null,null,null,null,null,null,null,null,null,null,null,null,null,null,null,null,null,null,null,null,null,null,null,null,null,null,null,null,null,null,null,null,null,null,null,null,null,null,null,null,null,null,null,null,null,null,null,null,null,null,null,null,null,null,null,null,null,null,null,24]
[null,null,null,null,null,null,null,null,null,null,null,null,null,null,null,null,null,null,null,null,null,null,null,null,null,null,null,null,null,null,null,null,null,null,null,null,null,null,null,null,null,null,null,null,null,null,null,null,null,null,null,null,null,null,null,null,null,null,null,null,null,null,null,null,null,null,null,null,null,null,null,null,null,null,null,null,25]
[null,null,null,null,null,null,null,null,null,null,null,null,null,null,null,null,null,null,null,null,null,null,null,null,null,null,null,null,null,null,null,null,null,null,null,null,null,null,null,null,null,null,null,null,null,null,null,null,null,null,null,null,null,null,null,null,null,null,null,null,null,null,null,null,null,null,null,null,null,null,null,null,null,null,null,null,26]
[null,null,null,null,null,null,null,null,null,null,null,null,null,null,null,null,null,null,null,null,null,null,null,null,null,null,null,null,null,null,null,null,null,null,null,null,null,null,null,null,null,null,null,null,null,null,null,null,null,null,null,null,null,null,null,null,null,null,null,null,null,null,null,null,null,null,null,null,null,null,null,null,null,null,null,null,27]
[null,null,null,null,null,null,null,null,null,null,null,null,null,null,null,null,null,null,null,null,null,null,null,null,null,null,null,null,null,null,null,null,null,null,null,null,null,null,null,null,null,null,null,null,null,null,null,null,null,null,null,null,null,null,null,null,null,null,null,null,null,null,null,null,null,null,null,null,null,null,null,null,null,null,null,null,28]
[null,null,null,null,null,null,null,null,null,null,null,null,null,null,null,null,null,null,null,null,null,null,null,null,null,null,null,null,null,null,null,null,null,null,null,null,null,null,null,null,null,null,null,null,null,null,null,null,null,null,null,null,null,null,null,null,null,null,null,null,null,null,null,null,null,null,null,null,null,null,null,null,null,null,null,null,29]
[null,null,null,null,null,null,null,null,null,null,null,null,null,null,null,null,null,null,null,null,null,null,null,null,null,null,null,null,null,null,null,null,null,null,null,null,null,null,null,null,null,null,null,null,null,null,null,null,null,null,null,null,null,null,null,null,null,null,null,null,null,null,null,null,null,null,null,null,null,null,null,null,null,null,null,null,30]
[null,null,null,null,null,null,null,null,null,null,null,null,null,null,null,null,null,null,null,null,null,null,null,null,null,null,null,null,null,null,null,null,null,null,null,null,null,null,null,null,null,null,null,null,null,null,null,null,null,null,null,null,null,null,null,null,null,null,null,null,null,null,null,null,null,null,null,null,null,null,null,null,null,null,null,null,31]
[null,null,null,null,null,null,null,null,null,null,null,null,null,null,null,null,null,null,null,null,null,null,null,null,null,null,null,null,null,null,null,null,null,null,null,null,null,null,null,null,null,null,null,null,null,null,null,null,null,null,null,null,null,null,null,null,null,null,null,null,null,null,null,null,null,null,null,null,null,null,null,null,null,null,null,null,32]
[null,null,null,null,null,null,null,null,null,null,null,null,null,null,null,null,null,null,null,null,null,null,null,null,null,null,null,null,null,null,null,null,null,null,null,null,null,null,null,null,null,null,null,null,null,null,null,null,null,null,null,null,null,null,null,null,null,null,null,null,null,null,null,null,null,null,null,null,null,null,null,null,null,null,null,null,33]
[null,null,null,null,null,null,null,null,null,null,null,null,null,null,null,null,null,null,null,null,null,null,null,null,null,null,null,null,null,null,null,null,null,null,null,null,null,null,null,null,null,null,null,null,null,null,null,null,null,null,null,null,null,null,null,null,null,null,null,null,null,null,null,null,null,null,null,null,null,null,null,null,null,null,null,null,34]
[null,null,null,null,null,null,null,null,null,null,null,null,null,null,null,null,null,null,null,null,null,null,null,null,null,null,null,null,null,null,null,null,null,null,null,null,null,null,null,null,null,null,null,null,null,null,null,null,null,null,null,null,null,null,null,null,null,null,null,null,null,null,null,null,null,null,null,null,null,null,null,null,null,null,null,null,35]
[null,null,null,null,null,null,null,null,null,null,null,null,null,null,null,null,null,null,null,null,null,null,null,null,null,null,null,null,null,null,null,null,null,null,null,null,null,null,null,null,null,null,null,null,null,null,null,null,null,null,null,null,null,null,null,null,null,null,null,null,null,null,null,null,null,null,null,null,null,null,null,null,null,null,null,null,36]
[null,null,null,null,null,null,null,null,null,null,null,null,null,null,null,null,null,null,null,null,null,null,null,null,null,null,null,null,null,null,null,null,null,null,null,null,null,null,null,null,null,null,null,null,null,null,null,null,null,null,null,null,null,null,null,null,null,null,null,null,null,null,null,null,null,null,null,null,null,null,null,null,null,null,null,null,37]
[null,null,null,null,null,null,null,null,null,null,null,null,null,null,null,null,null,null,null,null,null,null,null,null,null,null,null,null,null,null,null,null,null,null,null,null,null,null,null,null,null,null,null,null,null,null,null,null,null,null,null,null,null,null,null,null,null,null,null,null,null,null,null,null,null,null,null,null,null,null,null,null,null,null,null,null,38]
[null,null,null,null,null,null,null,null,null,null,null,null,null,null,null,null,null,null,null,null,null,null,null,null,null,null,null,null,null,null,null,null,null,null,null,null,null,null,null,null,null,null,null,null,null,null,null,null,null,null,null,null,null,null,null,null,null,null,null,null,null,null,null,null,null,null,null,null,null,null,null,null,null,null,null,null,39]
[null,null,null,null,null,null,null,null,null,null,null,null,null,null,null,null,null,null,null,null,null,null,null,null,null,null,null,null,null,null,null,null,null,null,null,null,null,null,null,null,null,null,null,null,null,null,null,null,null,null,null,null,null,null,null,null,null,null,null,null,null,null,null,null,null,null,null,null,null,null,null,null,null,null,null,null,40]
[null,null,null,null,null,null,null,null,null,null,null,null,null,null,null,null,null,null,null,null,null,null,null,null,null,null,null,null,null,null,null,null,null,null,null,null,null,null,null,null,null,null,null,null,null,null,null,null,null,null,null,null,null,null,null,null,null,null,null,null,null,null,null,null,null,null,null,null,null,null,null,null,null,null,null,null,41]
[null,null,null,null,null,null,null,null,null,null,null,null,null,null,null,null,null,null,null,null,null,null,null,null,null,null,null,null,null,null,null,null,null,null,null,null,null,null,null,null,null,null,null,null,null,null,null,null,null,null,null,null,null,null,null,null,null,null,null,null,null,null,null,null,null,null,null,null,null,null,null,null,null,null,null,null,42]
[null,null,null,null,null,null,null,null,null,null,null,null,null,null,null,null,null,null,null,null,null,null,null,null,null,null,null,null,null,null,null,null,null,null,null,null,null,null,null,null,null,null,null,null,null,null,null,null,null,null,null,null,null,null,null,null,null,null,null,null,null,null,null,null,null,null,null,null,null,null,null,null,null,null,null,null,43]
[null,null,null,null,null,null,null,null,null,null,null,null,null,null,null,null,null,null,null,null,null,null,null,null,null,null,null,null,null,null,null,null,null,null,null,null,null,null,null,null,null,null,null,null,null,null,null,null,null,null,null,null,null,null,null,null,null,null,null,null,null,null,null,null,null,null,null,null,null,null,null,null,null,null,null,null,44]
[null,null,null,null,null,null,null,null,null,null,null,null,null,null,null,null,null,null,null,null,null,null,null,null,null,null,null,null,null,null,null,null,null,null,null,null,null,null,null,null,null,null,null,null,null,null,null,null,null,null,null,null,null,null,null,null,null,null,null,null,null,null,null,null,null,null,null,null,null,null,null,null,null,null,null,null,45]
[null,null,null,null,null,null,null,null,null,null,null,null,null,null,null,null,null,null,null,null,null,null,null,null,null,null,null,null,null,null,null,null,null,null,null,null,null,null,null,null,null,null,null,null,null,null,null,null,null,null,null,null,null,null,null,null,null,null,null,null,null,null,null,null,null,null,null,null,null,null,null,null,null,null,null,null,46]
[null,null,null,null,null,null,null,null,null,null,null,null,null,null,null,null,null,null,null,null,null,null,null,null,null,null,null,null,null,null,null,null,null,null,null,null,null,null,null,null,null,null,null,null,null,null,null,null,null,null,null,null,null,null,null,null,null,null,null,null,null,null,null,null,null,null,null,null,null,null,null,null,null,null,null,null,47]
[null,null,null,null,null,null,null,null,null,null,null,null,null,null,null,null,null,null,null,null,null,null,null,null,null,null,null,null,null,null,null,null,null,null,null,null,null,null,null,null,null,null,null,null,null,null,null,null,null,null,null,null,null,null,null,null,null,null,null,null,null,null,null,null,null,null,null,null,null,null,null,null,null,null,null,null,48]
[null,null,null,null,null,null,null,null,null,null,null,null,null,null,null,null,null,null,null,null,null,null,null,null,null,null,null,null,null,null,null,null,null,null,null,null,null,null,null,null,null,null,null,null,null,null,null,null,null,null,null,null,null,null,null,null,null,null,null,null,null,null,null,null,null,null,null,null,null,null,null,null,null,null,null,null,49]
[null,null,null,null,null,null,null,null,null,null,null,null,null,null,null,null,null,null,null,null,null,null,null,null,null,null,null,null,null,null,null,null,null,null,null,null,null,null,null,null,null,null,null,null,null,null,null,null,null,null,null,null,null,null,null,null,null,null,null,null,null,null,null,null,null,null,null,null,null,null,null,null,null,null,null,null,50]
[null,null,null,null,null,null,null,null,null,null,null,null,null,null,null,null,null,null,null,null,null,null,null,null,null,null,null,null,null,null,null,null,null,null,null,null,null,null,null,null,null,null,null,null,null,null,null,null,null,null,null,null,null,null,null,null,null,null,null,null,null,null,null,null,null,null,null,null,null,null,null,null,null,null,null,null,51]
[null,null,null,null,null,null,null,null,null,null,null,null,null,null,null,null,null,null,null,null,null,null,null,null,null,null,null,null,null,null,null,null,null,null,null,null,null,null,null,null,null,null,null,null,null,null,null,null,null,null,null,null,null,null,null,null,null,null,null,null,null,null,null,null,null,null,null,null,null,null,null,null,null,null,null,null,52]
[null,null,null,null,null,null,null,null,null,null,null,null,null,null,null,null,null,null,null,null,null,null,null,null,null,null,null,null,null,null,null,null,null,null,null,null,null,null,null,null,null,null,null,null,null,null,null,null,null,null,null,null,null,null,null,null,null,null,null,null,null,null,null,null,null,null,null,null,null,null,null,null,null,null,null,null,53]
[null,null,null,null,null,null,null,null,null,null,null,null,null,null,null,null,null,null,null,null,null,null,null,null,null,null,null,null,null,null,null,null,null,null,null,null,null,null,null,null,null,null,null,null,null,null,null,null,null,null,null,null,null,null,null,null,null,null,null,null,null,null,null,null,null,null,null,null,null,null,null,null,null,null,null,null,54]
[null,null,null,null,null,null,null,null,null,null,null,null,null,null,null,null,null,null,null,null,null,null,null,null,null,null,null,null,null,null,null,null,null,null,null,null,null,null,null,null,null,null,null,null,null,null,null,null,null,null,null,null,null,null,null,null,null,null,null,null,null,null,null,null,null,null,null,null,null,null,null,null,null,null,null,null,55]
[null,null,null,null,null,null,null,null,null,null,null,null,null,null,null,null,null,null,null,null,null,null,null,null,null,null,null,null,null,null,null,null,null,null,null,null,null,null,null,null,null,null,null,null,null,null,null,null,null,null,null,null,null,null,null,null,null,null,null,null,null,null,null,null,null,null,null,null,null,null,null,null,null,null,null,null,56]
[null,null,null,null,null,null,null,null,null,null,null,null,null,null,null,null,null,null,null,null,null,null,null,null,null,null,null,null,null,null,null,null,null,null,null,null,null,null,null,null,null,null,null,null,null,null,null,null,null,null,null,null,null,null,null,null,null,null,null,null,null,null,null,null,null,null,null,null,null,null,null,null,null,null,null,null,57]
[null,null,null,null,null,null,null,null,null,null,null,null,null,null,null,null,null,null,null,null,null,null,null,null,null,null,null,null,null,null,null,null,null,null,null,null,null,null,null,null,null,null,null,null,null,null,null,null,null,null,null,null,null,null,null,null,null,null,null,null,null,null,null,null,null,null,null,null,null,null,null,null,null,null,null,null,58]
[null,null,null,null,null,null,null,null,null,null,null,null,null,null,null,null,null,null,null,null,null,null,null,null,null,null,null,null,null,null,null,null,null,null,null,null,null,null,null,null,null,null,null,null,null,null,null,null,null,null,null,null,null,null,null,null,null,null,null,null,null,null,null,null,null,null,null,null,null,null,null,null,null,null,null,null,59]
[null,null,null,null,null,null,null,null,null,null,null,null,null,null,null,null,null,null,null,null,null,null,null,null,null,null,null,null,null,null,null,null,null,null,null,null,null,null,null,null,null,null,null,null,null,null,null,null,null,null,null,null,null,null,null,null,null,null,null,null,null,null,null,null,null,null,null,null,null,null,null,null,null,null,null,null,60]
[null,null,null,null,null,null,null,null,null,null,null,null,null,null,null,null,null,null,null,null,null,null,null,null,null,null,null,null,null,null,null,null,null,null,null,null,null,null,null,null,null,null,null,null,null,null,null,null,null,null,null,null,null,null,null,null,null,null,null,null,null,null,null,null,null,null,null,null,null,null,null,null,null,null,null,null,61]
[null,null,null,null,null,null,null,null,null,null,null,null,null,null,null,null,null,null,null,null,null,null,null,null,null,null,null,null,null,null,null,null,null,null,null,null,null,null,null,null,null,null,null,null,null,null,null,null,null,null,null,null,null,null,null,null,null,null,null,null,null,null,null,null,null,null,null,null,null,null,null,null,null,null,null,null,62]
[null,null,null,null,null,null,null,null,null,null,null,null,null,null,null,null,null,null,null,null,null,null,null,null,null,null,null,null,null,null,null,null,null,null,null,null,null,null,null,null,null,null,null,null,null,null,null,null,null,null,null,null,null,null,null,null,null,null,null,null,null,null,null,null,null,null,null,null,null,null,null,null,null,null,null,null,63]
[null,null,null,null,null,null,null,null,null,null,null,null,null,null,null,null,null,null,null,null,null,null,null,null,null,null,null,null,null,null,null,null,null,null,null,null,null,null,null,null,null,null,null,null,null,null,null,null,null,null,null,null,null,null,null,null,null,null,null,null,null,null,null,null,null,null,null,null,null,null,null,null,null,null,null,null,64]
[null,null,null,null,null,null,null,null,null,null,null,null,null,null,null,null,null,null,null,null,null,null,null,null,null,null,null,null,null,null,null,null,null,null,null,null,null,null,null,null,null,null,null,null,null,null,null,null,null,null,null,null,null,null,null,null,null,null,null,null,null,null,null,null,null,null,null,null,null,null,null,null,null,null,null,null,65]
[null,null,null,null,null,null,null,null,null,null,null,null,null,null,null,null,null,null,null,null,null,null,null,null,null,null,null,null,null,null,null,null,null,null,null,null,null,null,null,null,null,null,null,null,null,null,null,null,null,null,null,null,null,null,null,null,null,null,null,null,null,null,null,null,null,null,null,null,null,null,null,null,null,null,null,null,66]
[null,null,null,null,null,null,null,null,null,null,null,null,null,null,null,null,null,null,null,null,null,null,null,null,null,null,null,null,null,null,null,null,null,null,null,null,null,null,null,null,null,null,null,null,null,null,null,null,null,null,null,null,null,null,null,null,null,null,null,null,null,null,null,null,null,null,null,null,null,null,null,null,null,null,null,null,67]
[null,null,null,null,null,null,null,null,null,null,null,null,null,null,null,null,null,null,null,null,null,null,null,null,null,null,null,null,null,null,null,null,null,null,null,null,null,null,null,null,null,null,null,null,null,null,null,null,null,null,null,null,null,null,null,null,null,null,null,null,null,null,null,null,null,null,null,null,null,null,null,null,null,null,null,null,68]
[null,null,null,null,null,null,null,null,null,null,null,null,null,null,null,null,null,null,null,null,null,null,null,null,null,null,null,null,null,null,null,null,null,null,null,null,null,null,null,null,null,null,null,null,null,null,null,null,null,null,null,null,null,null,null,null,null,null,null,null,null,null,null,null,null,null,null,null,null,null,null,null,null,null,null,null,69]
[null,null,null,null,null,null,null,null,null,null,null,null,null,null,null,null,null,null,null,null,null,null,null,null,null,null,null,null,null,null,null,null,null,null,null,null,null,null,null,null,null,null,null,null,null,null,null,null,null,null,null,null,null,null,null,null,null,null,null,null,null,null,null,null,null,null,null,null,null,null,null,null,null,null,null,null,70]
[null,null,null,null,null,null,null,null,null,null,null,null,null,null,null,null,null,null,null,null,null,null,null,null,null,null,null,null,null,null,null,null,null,null,null,null,null,null,null,null,null,null,null,null,null,null,null,null,null,null,null,null,null,null,null,null,null,null,null,null,null,null,null,null,null,null,null,null,null,null,null,null,null,null,null,null,71]
[null,null,null,null,null,null,null,null,null,null,null,null,null,null,null,null,null,null,null,null,null,null,null,null,null,null,null,null,null,null,null,null,null,null,null,null,null,null,null,null,null,null,null,null,null,null,null,null,null,null,null,null,null,null,null,null,null,null,null,null,null,null,null,null,null,null,null,null,null,null,null,null,null,null,null,null,72]
[null,null,null,null,null,null,null,null,null,null,null,null,null,null,null,null,null,null,null,null,null,null,null,null,null,null,null,null,null,null,null,null,null,null,null,null,null,null,null,null,null,null,null,null,null,null,null,null,null,null,null,null,null,null,null,null,null,null,null,null,null,null,null,null,null,null,null,null,null,null,null,null,null,null,null,null,73]
[null,null,null,null,null,null,null,null,null,null,null,null,null,null,null,null,null,null,null,null,null,null,null,null,null,null,null,null,null,null,null,null,null,null,null,null,null,null,null,null,null,null,null,null,null,null,null,null,null,null,null,null,null,null,null,null,null,null,null,null,null,null,null,null,null,null,null,null,null,null,null,null,null,null,null,null,74]
[null,null,null,null,null,null,null,null,null,null,null,null,null,null,null,null,null,null,null,null,null,null,null,null,null,null,null,null,null,null,null,null,null,null,null,null,null,null,null,null,null,null,null,null,null,null,null,null,null,null,null,null,null,null,null,null,null,null,null,null,null,null,null,null,null,null,null,null,null,null,null,null,null,null,null,null,75]